Workbook

Sheet datos (hidden)
B1: solamente carga de datos
B3: Apellido y Nombre | C3: FEDE | D3: L1 | E3: L2 | F3: L3 | G3: L4 | H3: L5 | I3: L6 | J3: L7 | K3: L8 | L3: L9 | M3: L10 | N3: L11 | O3: L12 | P3: L13 | Q3: L14 | R3: L15 | S3: L16 | T3: L17 | U3: L18 | V3: L19 | W3: L20 | X3: L21 | Y3: L22 | Z3: L23 | AA3: L24 | AB3: LIN | AC3: TOTAL | AD3: PROM
A4: j12 | B4: AGUSTIN LEANDRO A. | C4: Argentina | D4: 184 | E4: 165 | F4: 165 | G4: 203 | H4: 178 | I4: 172 | J4: 147 | K4: 210 | L4: 171 | M4: 219 | N4: 157 | O4: 188 | P4: 138 | Q4: 177 | R4: 180 | S4: 184 | T4: 221 | U4: 153 | V4: 188 | W4: 199 | X4: 195 | Y4: 181 | Z4: 191 | AA4: 245 | AB4: =COUNTIF(D4:AA4,">0") -> 24 | AC4: =SUM(D4:AA4) -> 4411 | AD4: =AC4/AB4 -> 183.7916667 | AI4: 1
A5: j13 | B5: FRANCO R. GUALINI | C5: Argentina | D5: 200 | E5: 185 | F5: 192 | G5: 204 | H5: 177 | I5: 215 | J5: 168 | K5: 172 | L5: 180 | M5: 188 | N5: 182 | O5: 198 | P5: 187 | Q5: 160 | R5: 229 | S5: 203 | T5: 189 | U5: 224 | V5: 178 | W5: 234 | X5: 156 | Y5: 226 | Z5: 162 | AA5: 155 | AB5: 24 | AC5: 4564 | AD5: =AC5/AB5 -> 190.1666667 | AI5: 2
A6: j14 | B6: FABRICIO E. SANDUAY | C6: Argentina | D6: 140 | E6: 150 | F6: 204 | G6: 211 | H6: 146 | I6: 194 | J6: 170 | K6: 171 | L6: 157 | M6: 168 | N6: 178 | O6: 125 | P6: 202 | Q6: 162 | R6: 161 | S6: 176 | T6: 211 | U6: 194 | V6: 203 | W6: 171 | X6: 209 | Y6: 178 | Z6: 126 | AA6: 179 | AB6: 24 | AC6: 4186 | AD6: 174.4166667 | AI6: 3
A7: j15 | B7: FERNANDO TAPIA M. | C7: Argentina | D7: 193 | E7: 223 | F7: 180 | G7: 214 | H7: 183 | I7: 161 | J7: 205 | K7: 180 | L7: 149 | M7: 157 | N7: 176 | O7: 187 | P7: 206 | Q7: 182 | R7: 179 | S7: 201 | T7: 202 | U7: 171 | V7: 251 | W7: 171 | X7: 184 | Y7: 192 | Z7: 165 | AA7: 181 | AB7: 24 | AC7: 4493 | AD7: 187.2083333 | AI7: 4
A8: j16 | B8: BRIAN HELMEYER | C8: Aruba | D8: 176 | E8: 217 | F8: 155 | G8: 238 | H8: 174 | I8: 192 | J8: 177 | K8: 172 | L8: 193 | M8: 200 | N8: 235 | O8: 184 | P8: 227 | Q8: 245 | R8: 187 | S8: 197 | T8: 211 | U8: 167 | V8: 185 | W8: 233 | X8: 188 | Y8: 185 | Z8: 203 | AA8: 188 | AB8: 24 | AC8: 4729 | AD8: 197.0416667 | AI8: 5
A9: j17 | B9: YANNICK ROOS | C9: Aruba | D9: 162 | E9: 206 | F9: 207 | G9: 204 | H9: 193 | I9: 182 | J9: 187 | K9: 147 | L9: 135 | M9: 143 | N9: 161 | O9: 158 | P9: 195 | Q9: 180 | R9: 193 | S9: 182 | T9: 233 | U9: 200 | V9: 178 | W9: 195 | X9: 172 | Y9: 212 | Z9: 212 | AA9: 192 | AB9: 24 | AC9: 4429 | AD9: 184.5416667 | AI9: 6
A10: j18 | B10: OSMAR BISLIP | C10: Aruba | D10: 205 | E10: 195 | F10: 162 | G10: 164 | H10: 192 | I10: 168 | J10: 205 | K10: 159 | L10: 158 | M10: 200 | N10: 145 | O10: 175 | P10: 163 | Q10: 172 | R10: 161 | S10: 181 | T10: 193 | U10: 256 | V10: 159 | W10: 195 | X10: 172 | Y10: 158 | Z10: 221 | AA10: 173 | AB10: 24 | AC10: 4332 | AD10: 180.5 | AI10: 7
A11: j19 | B11: ELIAS HALABI | C11: Aruba | D11: 202 | E11: 155 | F11: 220 | G11: 142 | H11: 206 | I11: 207 | J11: 202 | K11: 154 | L11: 173 | M11: 186 | N11: 182 | O11: 126 | P11: 178 | Q11: 167 | R11: 178 | S11: 210 | T11: 170 | U11: 188 | V11: 171 | W11: 171 | X11: 227 | Y11: 229 | Z11: 159 | AA11: 194 | AB11: 24 | AC11: 4397 | AD11: 183.2083333 | AI11: 8
A12: j20 | B12: BRUNO COSTA S | C12: Brasil | D12: 202 | E12: 265 | F12: 214 | G12: 185 | H12: 211 | I12: 233 | J12: 178 | K12: 200 | L12: 213 | M12: 210 | N12: 202 | O12: 247 | P12: 182 | Q12: 277 | R12: 225 | S12: 254 | T12: 267 | U12: 213 | V12: 221 | W12: 190 | X12: 222 | Y12: 162 | Z12: 172 | AA12: 203 | AB12: 24 | AC12: 5148 | AD12: 214.5 | AI12: 9
A13: j21 | B13: BERNARDO ABREU | C13: Brasil | D13: 180 | E13: 177 | F13: 175 | G13: 190 | H13: 194 | I13: 173 | J13: 176 | K13: 154 | L13: 194 | M13: 131 | N13: 169 | O13: 165 | P13: 184 | Q13: 216 | R13: 162 | S13: 200 | T13: 194 | U13: 225 | V13: 150 | W13: 176 | X13: 181 | Y13: 156 | Z13: 193 | AA13: 205 | AB13: 24 | AC13: 4320 | AD13: 180 | AI13: 10
A14: j22 | B14: THIAGO FELICETTI | C14: Brasil | D14: 183 | E14: 157 | F14: 211 | G14: 224 | H14: 154 | I14: 234 | J14: 134 | K14: 214 | L14: 235 | M14: 173 | N14: 133 | O14: 173 | P14: 180 | Q14: 184 | R14: 233 | S14: 235 | T14: 180 | U14: 162 | V14: 210 | W14: 158 | X14: 227 | Y14: 161 | Z14: 145 | AA14: 171 | AB14: 24 | AC14: 4471 | AD14: 186.2916667 | AI14: 11
A15: j23 | B15: JOAO I. FERREIRA N. | C15: Brasil | D15: 199 | E15: 141 | F15: 169 | G15: 183 | H15: 214 | I15: 201 | J15: 157 | K15: 173 | L15: 200 | M15: 192 | N15: 156 | O15: 203 | P15: 212 | Q15: 200 | R15: 256 | S15: 156 | T15: 186 | U15: 194 | V15: 148 | W15: 212 | X15: 143 | Y15: 190 | Z15: 194 | AA15: 192 | AB15: 24 | AC15: 4471 | AD15: 186.2916667 | AI15: 12
A16: j24 | B16: CARLOS F. SAAVEDRA | C16: Colombia | D16: 192 | E16: 233 | F16: 245 | G16: 199 | H16: 244 | I16: 193 | J16: 154 | K16: 175 | L16: 164 | M16: 160 | N16: 149 | O16: 204 | P16: 150 | Q16: 204 | R16: 217 | S16: 227 | T16: 197 | U16: 194 | V16: 164 | W16: 167 | X16: 233 | Y16: 185 | Z16: 173 | AA16: 213 | AB16: 24 | AC16: 4636 | AD16: 193.1666667 | AI16: 13
A17: j25 | B17: SEBASTIAN DONADO | C17: Colombia | D17: 231 | E17: 201 | F17: 195 | G17: 222 | H17: 152 | I17: 155 | J17: 173 | K17: 197 | L17: 200 | M17: 157 | N17: 214 | O17: 202 | P17: 215 | Q17: 204 | R17: 238 | S17: 203 | T17: 157 | U17: 201 | V17: 170 | W17: 160 | X17: 168 | Y17: 175 | Z17: 206 | AA17: 210 | AB17: 24 | AC17: 4606 | AD17: 191.9166667 | AI17: 14
A18: j26 | B18: SEBASTIAN CHARRY | C18: Colombia | D18: 223 | E18: 223 | F18: 162 | G18: 246 | H18: 227 | I18: 257 | J18: 225 | K18: 199 | L18: 174 | M18: 169 | N18: 191 | O18: 195 | P18: 168 | Q18: 239 | R18: 211 | S18: 216 | T18: 198 | U18: 193 | V18: 215 | W18: 176 | X18: 178 | Y18: 203 | Z18: 224 | AA18: 186 | AB18: 24 | AC18: 4898 | AD18: 204.0833333 | AI18: 15
A19: j27 | B19: JORGE FIGUEROA | C19: Colombia | D19: 216 | E19: 214 | F19: 224 | G19: 233 | H19: 169 | I19: 207 | J19: 242 | K19: 148 | L19: 216 | M19: 212 | N19: 184 | O19: 175 | P19: 219 | Q19: 175 | R19: 223 | S19: 243 | T19: 214 | U19: 182 | V19: 152 | W19: 224 | X19: 183 | Y19: 226 | Z19: 236 | AA19: 204 | AB19: 24 | AC19: 4921 | AD19: 205.0416667 | AI19: 16
A20: j28 | B20: BASTIAN MALDONADO R. | C20: Chile | D20: 226 | E20: 169 | F20: 153 | G20: 184 | H20: 189 | I20: 195 | J20: 201 | K20: 148 | L20: 130 | M20: 165 | N20: 165 | O20: 152 | P20: 182 | Q20: 162 | R20: 222 | S20: 234 | T20: 182 | U20: 187 | V20: 148 | W20: 167 | X20: 205 | Y20: 200 | Z20: 209 | AA20: 161 | AB20: 24 | AC20: 4336 | AD20: 180.6666667 | AI20: 17
A21: j29 | B21: MATIAS NAZAR G. | C21: Chile | D21: 157 | E21: 167 | F21: 182 | G21: 159 | H21: 149 | I21: 160 | J21: 141 | K21: 212 | L21: 189 | M21: 195 | N21: 175 | O21: 165 | P21: 199 | Q21: 158 | R21: 180 | S21: 212 | T21: 145 | U21: 144 | V21: 156 | W21: 160 | X21: 160 | Y21: 185 | Z21: 167 | AA21: 162 | AB21: 24 | AC21: 4079 | AD21: 169.9583333 | AI21: 18
A22: j30 | B22: IVAN VELIZ H. | C22: Chile | D22: 158 | E22: 133 | F22: 123 | G22: 158 | H22: 137 | I22: 112 | J22: 154 | K22: 144 | L22: 168 | M22: 169 | N22: 158 | O22: 114 | P22: 131 | Q22: 153 | R22: 110 | S22: 177 | T22: 145 | U22: 142 | V22: 150 | W22: 163 | X22: 144 | Y22: 168 | Z22: 155 | AA22: 95 | AB22: 24 | AC22: 3461 | AD22: 144.2083333 | AI22: 19
A23: j31 | B23: LUIS JEREZ G. | C23: Chile | D23: 154 | E23: 116 | F23: 117 | G23: 116 | H23: 103 | I23: 103 | J23: 155 | K23: 159 | L23: 116 | M23: 128 | N23: 103 | O23: 144 | P23: 125 | Q23: 115 | R23: 89 | S23: 133 | T23: 176 | U23: 151 | V23: 157 | W23: 124 | X23: 166 | Y23: 125 | Z23: 123 | AA23: 126 | AB23: 24 | AC23: 3124 | AD23: 130.1666667 | AI23: 20
A24: j32 | B24: ADRIAN GUIBU K. | C24: Perú | D24: 170 | E24: 142 | F24: 139 | G24: 166 | H24: 269 | I24: 193 | J24: 133 | K24: 146 | L24: 224 | M24: 161 | N24: 149 | O24: 191 | P24: 177 | Q24: 196 | R24: 172 | S24: 151 | T24: 200 | U24: 148 | V24: 156 | W24: 158 | X24: 222 | Y24: 222 | Z24: 195 | AA24: 191 | AB24: 24 | AC24: 4271 | AD24: 177.9583333 | AI24: 21
A25: j33 | B25: JUAN ANDRES YUZURIHA | C25: Perú | D25: 145 | E25: 190 | F25: 181 | G25: 202 | H25: 213 | I25: 189 | J25: 213 | K25: 183 | L25: 159 | M25: 183 | N25: 207 | O25: 205 | P25: 233 | Q25: 188 | R25: 188 | S25: 170 | T25: 164 | U25: 175 | V25: 186 | W25: 187 | X25: 222 | Y25: 211 | Z25: 234 | AA25: 171 | AB25: 24 | AC25: 4599 | AD25: 191.625 | AI25: 22
A26: j34 | B26: KEIJI M. CAJACHACAHUA M. | C26: Perú | D26: 178 | E26: 198 | F26: 183 | G26: 127 | H26: 164 | I26: 150 | J26: 176 | K26: 155 | L26: 147 | M26: 140 | N26: 170 | O26: 206 | P26: 245 | Q26: 187 | R26: 166 | S26: 169 | T26: 234 | U26: 206 | V26: 134 | W26: 138 | X26: 134 | Y26: 139 | Z26: 135 | AA26: 200 | AB26: 24 | AC26: 4081 | AD26: 170.0416667 | AI26: 23
A27: j35 | B27: RENZO GUIBU K. | C27: Perú | D27: 214 | E27: 214 | F27: 232 | G27: 224 | H27: 192 | I27: 211 | J27: 154 | K27: 181 | L27: 145 | M27: 199 | N27: 184 | O27: 189 | P27: 148 | Q27: 211 | R27: 157 | S27: 178 | T27: 138 | U27: 188 | V27: 233 | W27: 168 | X27: 200 | Y27: 179 | Z27: 154 | AA27: 167 | AB27: 24 | AC27: 4460 | AD27: 185.8333333 | AI27: 24
A28: j36 | B28: MATIAS DA MOTTA L. | C28: Uruguay | D28: 125 | E28: 158 | F28: 139 | G28: 147 | H28: 124 | I28: 151 | J28: 134 | K28: 200 | L28: 148 | M28: 138 | N28: 189 | O28: 186 | P28: 147 | Q28: 157 | R28: 144 | S28: 137 | T28: 195 | U28: 137 | V28: 174 | W28: 205 | X28: 111 | Y28: 125 | Z28: 146 | AA28: 139 | AB28: 24 | AC28: 3656 | AD28: 152.3333333 | AI28: 25
A29: j37 | B29: ALFONSO RODRIGUEZ L. | C29: Uruguay | D29: 163 | E29: 160 | F29: 107 | G29: 130 | H29: 180 | I29: 151 | J29: 154 | K29: 158 | L29: 148 | M29: 128 | N29: 142 | O29: 132 | P29: 194 | Q29: 137 | R29: 128 | S29: 112 | T29: 121 | U29: 144 | V29: 139 | W29: 156 | X29: 130 | Y29: 151 | Z29: 131 | AA29: 167 | AB29: 24 | AC29: 3463 | AD29: 144.2916667 | AI29: 26
A30: j38 | B30: FELIPE FUENTES F. | C30: Uruguay | D30: 150 | E30: 125 | F30: 174 | G30: 191 | H30: 152 | I30: 140 | J30: 123 | K30: 146 | L30: 138 | M30: 130 | N30: 154 | O30: 125 | P30: 146 | Q30: 130 | R30: 108 | S30: 154 | T30: 142 | U30: 194 | V30: 157 | W30: 184 | X30: 211 | Y30: 131 | Z30: 168 | AA30: 161 | AB30: 24 | AC30: 3634 | AD30: 151.4166667 | AI30: 27
AB31: 0 | AC31: 0
AB32: 0 | AC32: 0
AB33: 0 | AC33: 0
AB34: 0 | AC34: 0
AB35: 0 | AC35: 0
AB36: 0 | AC36: 0
AB37: 0 | AC37: 0
AB38: =COUNTIF(D38:AA38,">0") -> 0 | AC38: =SUM(D38:AA38) -> 0
AB39: 0 | AC39: 0
AB40: 0 | AC40: 0
AB41: 0 | AC41: 0
AB42: 0 | AC42: 0
AB43: 0 | AC43: 0
AB44: 0 | AC44: 0
AB45: 0 | AC45: 0
AB46: 0 | AC46: 0
AB47: 0 | AC47: 0
AB48: 0 | AC48: 0
AB49: 0 | AC49: 0
AB50: 0 | AC50: 0
AB51: =COUNTIF(D51:AA51,">0") -> 0 | AC51: =SUM(D51:AA51) -> 0 | AD51: =AC51/AB51 -> 
AB52: 0 | AC52: 0
A53: 1 | B53: 2 | C53: 3 | D53: 4 | E53: 5 | F53: 6 | G53: 7 | H53: 8 | I53: 9 | J53: 10 | K53: 11 | L53: 12 | M53: 13 | N53: 14 | O53: 15 | P53: 16 | Q53: 17 | R53: 18 | S53: 19 | T53: 20 | U53: 21 | V53: 22 | W53: 23 | X53: 24 | Y53: 25 | Z53: 26 | AA53: 27 | AB53: 28 | AC53: 29 | AD53: 30

Sheet IND.
A2: CAMPEONATO SUDAMERICANO JUVENIL 2014
A3: INDVIDUAL SUB 20
A5: Cod | B5: Nombre del Jugador | C5: FEDERACION | D5: L1 | E5: L2 | F5: L3 | G5: L4 | H5: L5 | I5: L6 | J5: total | K5: lin | L5: Prom | M5: Pos. | N5: dif
A6: j26 | B6: =VLOOKUP($A6,datos!$A$4:$AD$52,2) -> SEBASTIAN CHARRY | C6: =VLOOKUP($A6,datos!$A$4:$AD$52,3) -> Colombia | D6: =VLOOKUP($A6,datos!$A$4:$AD$52,4) -> 223 | E6: =VLOOKUP($A6,datos!$A$4:$AD$52,5) -> 223 | F6: =VLOOKUP($A6,datos!$A$4:$AD$52,6) -> 162 | G6: =VLOOKUP($A6,datos!$A$4:$AD$52,7) -> 246 | H6: =VLOOKUP($A6,datos!$A$4:$AD$52,8) -> 227 | I6: =VLOOKUP($A6,datos!$A$4:$AD$52,9) -> 257 | J6: =SUM(D6:I6) -> 1338 | K6: =COUNTIF(D6:I6,">0") -> 6 | L6: =J6/K6 -> 223 | M6: 1° | N6: =MAX($J$6:$J$32)-J6 -> 0
A7: j20 | B7: =VLOOKUP($A7,datos!$A$4:$AD$52,2) -> BRUNO COSTA S | C7: =VLOOKUP($A7,datos!$A$4:$AD$52,3) -> Brasil | D7: =VLOOKUP($A7,datos!$A$4:$AD$52,4) -> 202 | E7: =VLOOKUP($A7,datos!$A$4:$AD$52,5) -> 265 | F7: =VLOOKUP($A7,datos!$A$4:$AD$52,6) -> 214 | G7: =VLOOKUP($A7,datos!$A$4:$AD$52,7) -> 185 | H7: =VLOOKUP($A7,datos!$A$4:$AD$52,8) -> 211 | I7: =VLOOKUP($A7,datos!$A$4:$AD$52,9) -> 233 | J7: 1310 | K7: 6 | L7: 218.3333333 | M7: 2° | N7: 28
A8: j24 | B8: =VLOOKUP($A8,datos!$A$4:$AD$52,2) -> CARLOS F. SAAVEDRA | C8: =VLOOKUP($A8,datos!$A$4:$AD$52,3) -> Colombia | D8: =VLOOKUP($A8,datos!$A$4:$AD$52,4) -> 192 | E8: =VLOOKUP($A8,datos!$A$4:$AD$52,5) -> 233 | F8: =VLOOKUP($A8,datos!$A$4:$AD$52,6) -> 245 | G8: =VLOOKUP($A8,datos!$A$4:$AD$52,7) -> 199 | H8: =VLOOKUP($A8,datos!$A$4:$AD$52,8) -> 244 | I8: =VLOOKUP($A8,datos!$A$4:$AD$52,9) -> 193 | J8: 1306 | K8: 6 | L8: 217.6666667 | M8: 3° | N8: 32
A9: j35 | B9: =VLOOKUP($A9,datos!$A$4:$AD$52,2) -> RENZO GUIBU K. | C9: =VLOOKUP($A9,datos!$A$4:$AD$52,3) -> Perú | D9: =VLOOKUP($A9,datos!$A$4:$AD$52,4) -> 214 | E9: =VLOOKUP($A9,datos!$A$4:$AD$52,5) -> 214 | F9: =VLOOKUP($A9,datos!$A$4:$AD$52,6) -> 232 | G9: =VLOOKUP($A9,datos!$A$4:$AD$52,7) -> 224 | H9: =VLOOKUP($A9,datos!$A$4:$AD$52,8) -> 192 | I9: =VLOOKUP($A9,datos!$A$4:$AD$52,9) -> 211 | J9: 1287 | K9: 6 | L9: 214.5 | M9: 4° | N9: 51
A10: j27 | B10: =VLOOKUP($A10,datos!$A$4:$AD$52,2) -> JORGE FIGUEROA | C10: =VLOOKUP($A10,datos!$A$4:$AD$52,3) -> Colombia | D10: =VLOOKUP($A10,datos!$A$4:$AD$52,4) -> 216 | E10: =VLOOKUP($A10,datos!$A$4:$AD$52,5) -> 214 | F10: =VLOOKUP($A10,datos!$A$4:$AD$52,6) -> 224 | G10: =VLOOKUP($A10,datos!$A$4:$AD$52,7) -> 233 | H10: =VLOOKUP($A10,datos!$A$4:$AD$52,8) -> 169 | I10: =VLOOKUP($A10,datos!$A$4:$AD$52,9) -> 207 | J10: 1263 | K10: 6 | L10: 210.5 | M10: 5° | N10: 75
A11: j13 | B11: =VLOOKUP($A11,datos!$A$4:$AD$52,2) -> FRANCO R. GUALINI | C11: =VLOOKUP($A11,datos!$A$4:$AD$52,3) -> Argentina | D11: =VLOOKUP($A11,datos!$A$4:$AD$52,4) -> 200 | E11: =VLOOKUP($A11,datos!$A$4:$AD$52,5) -> 185 | F11: =VLOOKUP($A11,datos!$A$4:$AD$52,6) -> 192 | G11: =VLOOKUP($A11,datos!$A$4:$AD$52,7) -> 204 | H11: =VLOOKUP($A11,datos!$A$4:$AD$52,8) -> 177 | I11: =VLOOKUP($A11,datos!$A$4:$AD$52,9) -> 215 | J11: 1173 | K11: 6 | L11: 195.5 | M11: 6° | N11: 165
A12: j22 | B12: =VLOOKUP($A12,datos!$A$4:$AD$52,2) -> THIAGO FELICETTI | C12: =VLOOKUP($A12,datos!$A$4:$AD$52,3) -> Brasil | D12: =VLOOKUP($A12,datos!$A$4:$AD$52,4) -> 183 | E12: =VLOOKUP($A12,datos!$A$4:$AD$52,5) -> 157 | F12: =VLOOKUP($A12,datos!$A$4:$AD$52,6) -> 211 | G12: =VLOOKUP($A12,datos!$A$4:$AD$52,7) -> 224 | H12: =VLOOKUP($A12,datos!$A$4:$AD$52,8) -> 154 | I12: =VLOOKUP($A12,datos!$A$4:$AD$52,9) -> 234 | J12: 1163 | K12: 6 | L12: 193.8333333 | M12: 7° | N12: 175
A13: j25 | B13: =VLOOKUP($A13,datos!$A$4:$AD$52,2) -> SEBASTIAN DONADO | C13: =VLOOKUP($A13,datos!$A$4:$AD$52,3) -> Colombia | D13: =VLOOKUP($A13,datos!$A$4:$AD$52,4) -> 231 | E13: =VLOOKUP($A13,datos!$A$4:$AD$52,5) -> 201 | F13: =VLOOKUP($A13,datos!$A$4:$AD$52,6) -> 195 | G13: =VLOOKUP($A13,datos!$A$4:$AD$52,7) -> 222 | H13: =VLOOKUP($A13,datos!$A$4:$AD$52,8) -> 152 | I13: =VLOOKUP($A13,datos!$A$4:$AD$52,9) -> 155 | J13: 1156 | K13: 6 | L13: 192.6666667 | M13: 8° | N13: 182
A14: j15 | B14: =VLOOKUP($A14,datos!$A$4:$AD$52,2) -> FERNANDO TAPIA M. | C14: =VLOOKUP($A14,datos!$A$4:$AD$52,3) -> Argentina | D14: =VLOOKUP($A14,datos!$A$4:$AD$52,4) -> 193 | E14: =VLOOKUP($A14,datos!$A$4:$AD$52,5) -> 223 | F14: =VLOOKUP($A14,datos!$A$4:$AD$52,6) -> 180 | G14: =VLOOKUP($A14,datos!$A$4:$AD$52,7) -> 214 | H14: =VLOOKUP($A14,datos!$A$4:$AD$52,8) -> 183 | I14: =VLOOKUP($A14,datos!$A$4:$AD$52,9) -> 161 | J14: 1154 | K14: 6 | L14: 192.3333333 | M14: 9° | N14: 184
A15: j17 | B15: =VLOOKUP($A15,datos!$A$4:$AD$52,2) -> YANNICK ROOS | C15: =VLOOKUP($A15,datos!$A$4:$AD$52,3) -> Aruba | D15: =VLOOKUP($A15,datos!$A$4:$AD$52,4) -> 162 | E15: =VLOOKUP($A15,datos!$A$4:$AD$52,5) -> 206 | F15: =VLOOKUP($A15,datos!$A$4:$AD$52,6) -> 207 | G15: =VLOOKUP($A15,datos!$A$4:$AD$52,7) -> 204 | H15: =VLOOKUP($A15,datos!$A$4:$AD$52,8) -> 193 | I15: =VLOOKUP($A15,datos!$A$4:$AD$52,9) -> 182 | J15: 1154 | K15: 6 | L15: 192.3333333 | M15: 10° | N15: 184
A16: j16 | B16: =VLOOKUP($A16,datos!$A$4:$AD$52,2) -> BRIAN HELMEYER | C16: =VLOOKUP($A16,datos!$A$4:$AD$52,3) -> Aruba | D16: =VLOOKUP($A16,datos!$A$4:$AD$52,4) -> 176 | E16: =VLOOKUP($A16,datos!$A$4:$AD$52,5) -> 217 | F16: =VLOOKUP($A16,datos!$A$4:$AD$52,6) -> 155 | G16: =VLOOKUP($A16,datos!$A$4:$AD$52,7) -> 238 | H16: =VLOOKUP($A16,datos!$A$4:$AD$52,8) -> 174 | I16: =VLOOKUP($A16,datos!$A$4:$AD$52,9) -> 192 | J16: 1152 | K16: 6 | L16: 192 | M16: 11° | N16: 186
A17: j19 | B17: =VLOOKUP($A17,datos!$A$4:$AD$52,2) -> ELIAS HALABI | C17: =VLOOKUP($A17,datos!$A$4:$AD$52,3) -> Aruba | D17: =VLOOKUP($A17,datos!$A$4:$AD$52,4) -> 202 | E17: =VLOOKUP($A17,datos!$A$4:$AD$52,5) -> 155 | F17: =VLOOKUP($A17,datos!$A$4:$AD$52,6) -> 220 | G17: =VLOOKUP($A17,datos!$A$4:$AD$52,7) -> 142 | H17: =VLOOKUP($A17,datos!$A$4:$AD$52,8) -> 206 | I17: =VLOOKUP($A17,datos!$A$4:$AD$52,9) -> 207 | J17: 1132 | K17: 6 | L17: 188.6666667 | M17: 12° | N17: 206
A18: j33 | B18: =VLOOKUP($A18,datos!$A$4:$AD$52,2) -> JUAN ANDRES YUZURIHA | C18: =VLOOKUP($A18,datos!$A$4:$AD$52,3) -> Perú | D18: =VLOOKUP($A18,datos!$A$4:$AD$52,4) -> 145 | E18: =VLOOKUP($A18,datos!$A$4:$AD$52,5) -> 190 | F18: =VLOOKUP($A18,datos!$A$4:$AD$52,6) -> 181 | G18: =VLOOKUP($A18,datos!$A$4:$AD$52,7) -> 202 | H18: =VLOOKUP($A18,datos!$A$4:$AD$52,8) -> 213 | I18: =VLOOKUP($A18,datos!$A$4:$AD$52,9) -> 189 | J18: 1120 | K18: 6 | L18: 186.6666667 | M18: 13° | N18: 218
A19: j28 | B19: =VLOOKUP($A19,datos!$A$4:$AD$52,2) -> BASTIAN MALDONADO R. | C19: =VLOOKUP($A19,datos!$A$4:$AD$52,3) -> Chile | D19: =VLOOKUP($A19,datos!$A$4:$AD$52,4) -> 226 | E19: =VLOOKUP($A19,datos!$A$4:$AD$52,5) -> 169 | F19: =VLOOKUP($A19,datos!$A$4:$AD$52,6) -> 153 | G19: =VLOOKUP($A19,datos!$A$4:$AD$52,7) -> 184 | H19: =VLOOKUP($A19,datos!$A$4:$AD$52,8) -> 189 | I19: =VLOOKUP($A19,datos!$A$4:$AD$52,9) -> 195 | J19: 1116 | K19: 6 | L19: 186 | M19: 14° | N19: 222
A20: j23 | B20: =VLOOKUP($A20,datos!$A$4:$AD$52,2) -> JOAO I. FERREIRA N. | C20: =VLOOKUP($A20,datos!$A$4:$AD$52,3) -> Brasil | D20: =VLOOKUP($A20,datos!$A$4:$AD$52,4) -> 199 | E20: =VLOOKUP($A20,datos!$A$4:$AD$52,5) -> 141 | F20: =VLOOKUP($A20,datos!$A$4:$AD$52,6) -> 169 | G20: =VLOOKUP($A20,datos!$A$4:$AD$52,7) -> 183 | H20: =VLOOKUP($A20,datos!$A$4:$AD$52,8) -> 214 | I20: =VLOOKUP($A20,datos!$A$4:$AD$52,9) -> 201 | J20: 1107 | K20: 6 | L20: 184.5 | M20: 15° | N20: 231
A21: j21 | B21: =VLOOKUP($A21,datos!$A$4:$AD$52,2) -> BERNARDO ABREU | C21: =VLOOKUP($A21,datos!$A$4:$AD$52,3) -> Brasil | D21: =VLOOKUP($A21,datos!$A$4:$AD$52,4) -> 180 | E21: =VLOOKUP($A21,datos!$A$4:$AD$52,5) -> 177 | F21: =VLOOKUP($A21,datos!$A$4:$AD$52,6) -> 175 | G21: =VLOOKUP($A21,datos!$A$4:$AD$52,7) -> 190 | H21: =VLOOKUP($A21,datos!$A$4:$AD$52,8) -> 194 | I21: =VLOOKUP($A21,datos!$A$4:$AD$52,9) -> 173 | J21: 1089 | K21: 6 | L21: 181.5 | M21: 16° | N21: 249
A22: j18 | B22: =VLOOKUP($A22,datos!$A$4:$AD$52,2) -> OSMAR BISLIP | C22: =VLOOKUP($A22,datos!$A$4:$AD$52,3) -> Aruba | D22: =VLOOKUP($A22,datos!$A$4:$AD$52,4) -> 205 | E22: =VLOOKUP($A22,datos!$A$4:$AD$52,5) -> 195 | F22: =VLOOKUP($A22,datos!$A$4:$AD$52,6) -> 162 | G22: =VLOOKUP($A22,datos!$A$4:$AD$52,7) -> 164 | H22: =VLOOKUP($A22,datos!$A$4:$AD$52,8) -> 192 | I22: =VLOOKUP($A22,datos!$A$4:$AD$52,9) -> 168 | J22: 1086 | K22: 6 | L22: 181 | M22: 17° | N22: 252
A23: j32 | B23: =VLOOKUP($A23,datos!$A$4:$AD$52,2) -> ADRIAN GUIBU K. | C23: =VLOOKUP($A23,datos!$A$4:$AD$52,3) -> Perú | D23: =VLOOKUP($A23,datos!$A$4:$AD$52,4) -> 170 | E23: =VLOOKUP($A23,datos!$A$4:$AD$52,5) -> 142 | F23: =VLOOKUP($A23,datos!$A$4:$AD$52,6) -> 139 | G23: =VLOOKUP($A23,datos!$A$4:$AD$52,7) -> 166 | H23: =VLOOKUP($A23,datos!$A$4:$AD$52,8) -> 269 | I23: =VLOOKUP($A23,datos!$A$4:$AD$52,9) -> 193 | J23: 1079 | K23: 6 | L23: 179.8333333 | M23: 18° | N23: 259
A24: j12 | B24: =VLOOKUP($A24,datos!$A$4:$AD$52,2) -> AGUSTIN LEANDRO A. | C24: =VLOOKUP($A24,datos!$A$4:$AD$52,3) -> Argentina | D24: =VLOOKUP($A24,datos!$A$4:$AD$52,4) -> 184 | E24: =VLOOKUP($A24,datos!$A$4:$AD$52,5) -> 165 | F24: =VLOOKUP($A24,datos!$A$4:$AD$52,6) -> 165 | G24: =VLOOKUP($A24,datos!$A$4:$AD$52,7) -> 203 | H24: =VLOOKUP($A24,datos!$A$4:$AD$52,8) -> 178 | I24: =VLOOKUP($A24,datos!$A$4:$AD$52,9) -> 172 | J24: 1067 | K24: 6 | L24: 177.8333333 | M24: 19° | N24: 271
A25: j14 | B25: =VLOOKUP($A25,datos!$A$4:$AD$52,2) -> FABRICIO E. SANDUAY | C25: =VLOOKUP($A25,datos!$A$4:$AD$52,3) -> Argentina | D25: =VLOOKUP($A25,datos!$A$4:$AD$52,4) -> 140 | E25: =VLOOKUP($A25,datos!$A$4:$AD$52,5) -> 150 | F25: =VLOOKUP($A25,datos!$A$4:$AD$52,6) -> 204 | G25: =VLOOKUP($A25,datos!$A$4:$AD$52,7) -> 211 | H25: =VLOOKUP($A25,datos!$A$4:$AD$52,8) -> 146 | I25: =VLOOKUP($A25,datos!$A$4:$AD$52,9) -> 194 | J25: 1045 | K25: 6 | L25: 174.1666667 | M25: 20° | N25: 293
A26: j34 | B26: =VLOOKUP($A26,datos!$A$4:$AD$52,2) -> KEIJI M. CAJACHACAHUA M. | C26: =VLOOKUP($A26,datos!$A$4:$AD$52,3) -> Perú | D26: =VLOOKUP($A26,datos!$A$4:$AD$52,4) -> 178 | E26: =VLOOKUP($A26,datos!$A$4:$AD$52,5) -> 198 | F26: =VLOOKUP($A26,datos!$A$4:$AD$52,6) -> 183 | G26: =VLOOKUP($A26,datos!$A$4:$AD$52,7) -> 127 | H26: =VLOOKUP($A26,datos!$A$4:$AD$52,8) -> 164 | I26: =VLOOKUP($A26,datos!$A$4:$AD$52,9) -> 150 | J26: 1000 | K26: 6 | L26: 166.6666667 | M26: 21° | N26: 338
A27: j29 | B27: =VLOOKUP($A27,datos!$A$4:$AD$52,2) -> MATIAS NAZAR G. | C27: =VLOOKUP($A27,datos!$A$4:$AD$52,3) -> Chile | D27: =VLOOKUP($A27,datos!$A$4:$AD$52,4) -> 157 | E27: =VLOOKUP($A27,datos!$A$4:$AD$52,5) -> 167 | F27: =VLOOKUP($A27,datos!$A$4:$AD$52,6) -> 182 | G27: =VLOOKUP($A27,datos!$A$4:$AD$52,7) -> 159 | H27: =VLOOKUP($A27,datos!$A$4:$AD$52,8) -> 149 | I27: =VLOOKUP($A27,datos!$A$4:$AD$52,9) -> 160 | J27: 974 | K27: 6 | L27: 162.3333333 | M27: 22° | N27: 364
A28: j38 | B28: =VLOOKUP($A28,datos!$A$4:$AD$52,2) -> FELIPE FUENTES F. | C28: =VLOOKUP($A28,datos!$A$4:$AD$52,3) -> Uruguay | D28: =VLOOKUP($A28,datos!$A$4:$AD$52,4) -> 150 | E28: =VLOOKUP($A28,datos!$A$4:$AD$52,5) -> 125 | F28: =VLOOKUP($A28,datos!$A$4:$AD$52,6) -> 174 | G28: =VLOOKUP($A28,datos!$A$4:$AD$52,7) -> 191 | H28: =VLOOKUP($A28,datos!$A$4:$AD$52,8) -> 152 | I28: =VLOOKUP($A28,datos!$A$4:$AD$52,9) -> 140 | J28: 932 | K28: 6 | L28: 155.3333333 | M28: 23° | N28: 406
A29: j37 | B29: =VLOOKUP($A29,datos!$A$4:$AD$52,2) -> ALFONSO RODRIGUEZ L. | C29: =VLOOKUP($A29,datos!$A$4:$AD$52,3) -> Uruguay | D29: =VLOOKUP($A29,datos!$A$4:$AD$52,4) -> 163 | E29: =VLOOKUP($A29,datos!$A$4:$AD$52,5) -> 160 | F29: =VLOOKUP($A29,datos!$A$4:$AD$52,6) -> 107 | G29: =VLOOKUP($A29,datos!$A$4:$AD$52,7) -> 130 | H29: =VLOOKUP($A29,datos!$A$4:$AD$52,8) -> 180 | I29: =VLOOKUP($A29,datos!$A$4:$AD$52,9) -> 151 | J29: 891 | K29: 6 | L29: 148.5 | M29: 24° | N29: 447
A30: j36 | B30: =VLOOKUP($A30,datos!$A$4:$AD$52,2) -> MATIAS DA MOTTA L. | C30: =VLOOKUP($A30,datos!$A$4:$AD$52,3) -> Uruguay | D30: =VLOOKUP($A30,datos!$A$4:$AD$52,4) -> 125 | E30: =VLOOKUP($A30,datos!$A$4:$AD$52,5) -> 158 | F30: =VLOOKUP($A30,datos!$A$4:$AD$52,6) -> 139 | G30: =VLOOKUP($A30,datos!$A$4:$AD$52,7) -> 147 | H30: =VLOOKUP($A30,datos!$A$4:$AD$52,8) -> 124 | I30: =VLOOKUP($A30,datos!$A$4:$AD$52,9) -> 151 | J30: 844 | K30: 6 | L30: 140.6666667 | M30: 25° | N30: 494
A31: j30 | B31: =VLOOKUP($A31,datos!$A$4:$AD$52,2) -> IVAN VELIZ H. | C31: =VLOOKUP($A31,datos!$A$4:$AD$52,3) -> Chile | D31: =VLOOKUP($A31,datos!$A$4:$AD$52,4) -> 158 | E31: =VLOOKUP($A31,datos!$A$4:$AD$52,5) -> 133 | F31: =VLOOKUP($A31,datos!$A$4:$AD$52,6) -> 123 | G31: =VLOOKUP($A31,datos!$A$4:$AD$52,7) -> 158 | H31: =VLOOKUP($A31,datos!$A$4:$AD$52,8) -> 137 | I31: =VLOOKUP($A31,datos!$A$4:$AD$52,9) -> 112 | J31: 821 | K31: 6 | L31: 136.8333333 | M31: 26° | N31: 517
A32: j31 | B32: =VLOOKUP($A32,datos!$A$4:$AD$52,2) -> LUIS JEREZ G. | C32: =VLOOKUP($A32,datos!$A$4:$AD$52,3) -> Chile | D32: =VLOOKUP($A32,datos!$A$4:$AD$52,4) -> 154 | E32: =VLOOKUP($A32,datos!$A$4:$AD$52,5) -> 116 | F32: =VLOOKUP($A32,datos!$A$4:$AD$52,6) -> 117 | G32: =VLOOKUP($A32,datos!$A$4:$AD$52,7) -> 116 | H32: =VLOOKUP($A32,datos!$A$4:$AD$52,8) -> 103 | I32: =VLOOKUP($A32,datos!$A$4:$AD$52,9) -> 103 | J32: 709 | K32: 6 | L32: 118.1666667 | M32: 27° | N32: 629

Sheet PAR
A2: CAMPEONATO SUDAMERICANO JUVENIL 2014
A3: DOBLES SUB 20
A5: Cod | B5: Nombre del Jugador | C5: FEDERACION | D5: L1 | E5: L2 | F5: L3 | G5: L4 | H5: L5 | I5: L6 | J5: Serie | L5: =M8 -> 193.3333333 | M5: Prom | N5: dif
A6: j27 | B6: =VLOOKUP($A6,datos!$A$4:$AD$52,2) -> JORGE FIGUEROA | C6: =VLOOKUP($A6,datos!$A$4:$AD$52,3) -> Colombia | D6: =VLOOKUP($A6,datos!$A$4:$AD$52,10) -> 242 | E6: =VLOOKUP($A6,datos!$A$4:$AD$52,11) -> 148 | F6: =VLOOKUP($A6,datos!$A$4:$AD$52,12) -> 216 | G6: =VLOOKUP($A6,datos!$A$4:$AD$52,13) -> 212 | H6: =VLOOKUP($A6,datos!$A$4:$AD$52,14) -> 184 | I6: =VLOOKUP($A6,datos!$A$4:$AD$52,15) -> 175 | J6: =SUM(D6:I6) -> 1177 | K6: =(COUNTIF(D6:I6,">0")) -> 6 | L6: =M8 -> 193.3333333 | M6: =J6/K6 -> 196.1666667
A7: j25 | B7: =VLOOKUP($A7,datos!$A$4:$AD$52,2) -> SEBASTIAN DONADO | C7: =VLOOKUP($A7,datos!$A$4:$AD$52,3) -> Colombia | D7: =VLOOKUP($A7,datos!$A$4:$AD$52,10) -> 173 | E7: =VLOOKUP($A7,datos!$A$4:$AD$52,11) -> 197 | F7: =VLOOKUP($A7,datos!$A$4:$AD$52,12) -> 200 | G7: =VLOOKUP($A7,datos!$A$4:$AD$52,13) -> 157 | H7: =VLOOKUP($A7,datos!$A$4:$AD$52,14) -> 214 | I7: =VLOOKUP($A7,datos!$A$4:$AD$52,15) -> 202 | J7: =SUM(D7:I7) -> 1143 | K7: =(COUNTIF(D7:I7,">0")) -> 6 | L7: =M8 -> 193.3333333 | M7: =J7/K7 -> 190.5 | N7: 1°
D8: =SUM(D6:D7) -> 415 | E8: 345 | F8: 416 | G8: 369 | H8: 398 | I8: 377 | J8: 2320 | K8: =(COUNTIF(D8:I8,">0"))*2 -> 12 | L8: =M8 -> 193.3333333 | M8: =J8/K8 -> 193.3333333 | P8: =MAX(D8:I8) -> 416
L9: =M8 -> 193.3333333
A10: Cod | B10: Nombre del Jugador | C10: FEDERACION | D10: L1 | E10: L2 | F10: L3 | G10: L4 | H10: L5 | I10: L6 | J10: Serie | L10: =M13 -> 192.6666667 | M10: Prom | N10: dif
A11: j22 | B11: =VLOOKUP($A11,datos!$A$4:$AD$52,2) -> THIAGO FELICETTI | C11: =VLOOKUP($A11,datos!$A$4:$AD$52,3) -> Brasil | D11: =VLOOKUP($A11,datos!$A$4:$AD$52,10) -> 134 | E11: =VLOOKUP($A11,datos!$A$4:$AD$52,11) -> 214 | F11: =VLOOKUP($A11,datos!$A$4:$AD$52,12) -> 235 | G11: =VLOOKUP($A11,datos!$A$4:$AD$52,13) -> 173 | H11: =VLOOKUP($A11,datos!$A$4:$AD$52,14) -> 133 | I11: =VLOOKUP($A11,datos!$A$4:$AD$52,15) -> 173 | J11: =SUM(D11:I11) -> 1062 | K11: =(COUNTIF(D11:I11,">0")) -> 6 | L11: =M13 -> 192.6666667 | M11: =J11/K11 -> 177 | N11: =$J$8-J13 -> 8
A12: j20 | B12: =VLOOKUP($A12,datos!$A$4:$AD$52,2) -> BRUNO COSTA S | C12: =VLOOKUP($A12,datos!$A$4:$AD$52,3) -> Brasil | D12: =VLOOKUP($A12,datos!$A$4:$AD$52,10) -> 178 | E12: =VLOOKUP($A12,datos!$A$4:$AD$52,11) -> 200 | F12: =VLOOKUP($A12,datos!$A$4:$AD$52,12) -> 213 | G12: =VLOOKUP($A12,datos!$A$4:$AD$52,13) -> 210 | H12: =VLOOKUP($A12,datos!$A$4:$AD$52,14) -> 202 | I12: =VLOOKUP($A12,datos!$A$4:$AD$52,15) -> 247 | J12: =SUM(D12:I12) -> 1250 | K12: =(COUNTIF(D12:I12,">0")) -> 6 | L12: =M13 -> 192.6666667 | M12: =J12/K12 -> 208.3333333 | N12: 2°
D13: =SUM(D11:D12) -> 312 | E13: 414 | F13: 448 | G13: 383 | H13: 335 | I13: 420 | J13: 2312 | K13: =(COUNTIF(D13:I13,">0"))*2 -> 12 | L13: =M13 -> 192.6666667 | M13: =J13/K13 -> 192.6666667 | P13: =MAX(D13:I13) -> 448
L14: =M13 -> 192.6666667
A15: Cod | B15: Nombre del Jugador | C15: FEDERACION | D15: L1 | E15: L2 | F15: L3 | G15: L4 | H15: L5 | I15: L6 | J15: Serie | L15: =M18 -> 183.5 | M15: Prom | N15: dif
A16: j33 | B16: =VLOOKUP($A16,datos!$A$4:$AD$52,2) -> JUAN ANDRES YUZURIHA | C16: =VLOOKUP($A16,datos!$A$4:$AD$52,3) -> Perú | D16: =VLOOKUP($A16,datos!$A$4:$AD$52,10) -> 213 | E16: =VLOOKUP($A16,datos!$A$4:$AD$52,11) -> 183 | F16: =VLOOKUP($A16,datos!$A$4:$AD$52,12) -> 159 | G16: =VLOOKUP($A16,datos!$A$4:$AD$52,13) -> 183 | H16: =VLOOKUP($A16,datos!$A$4:$AD$52,14) -> 207 | I16: =VLOOKUP($A16,datos!$A$4:$AD$52,15) -> 205 | J16: =SUM(D16:I16) -> 1150 | K16: =(COUNTIF(D16:I16,">0")) -> 6 | L16: =M18 -> 183.5 | M16: =J16/K16 -> 191.6666667 | N16: =$J$8-J18 -> 118
A17: j35 | B17: =VLOOKUP($A17,datos!$A$4:$AD$52,2) -> RENZO GUIBU K. | C17: =VLOOKUP($A17,datos!$A$4:$AD$52,3) -> Perú | D17: =VLOOKUP($A17,datos!$A$4:$AD$52,10) -> 154 | E17: =VLOOKUP($A17,datos!$A$4:$AD$52,11) -> 181 | F17: =VLOOKUP($A17,datos!$A$4:$AD$52,12) -> 145 | G17: =VLOOKUP($A17,datos!$A$4:$AD$52,13) -> 199 | H17: =VLOOKUP($A17,datos!$A$4:$AD$52,14) -> 184 | I17: =VLOOKUP($A17,datos!$A$4:$AD$52,15) -> 189 | J17: =SUM(D17:I17) -> 1052 | K17: =(COUNTIF(D17:I17,">0")) -> 6 | L17: =M18 -> 183.5 | M17: =J17/K17 -> 175.3333333 | N17: 3°
D18: =SUM(D16:D17) -> 367 | E18: 364 | F18: 304 | G18: 382 | H18: 391 | I18: 394 | J18: 2202 | K18: =(COUNTIF(D18:I18,">0"))*2 -> 12 | L18: =M18 -> 183.5 | M18: =J18/K18 -> 183.5 | P18: =MAX(D23:I23) -> 399
L19: =M18 -> 183.5
A20: Cod | B20: Nombre del Jugador | C20: FEDERACION | D20: L1 | E20: L2 | F20: L3 | G20: L4 | H20: L5 | I20: L6 | J20: Serie | L20: =M23 -> 179.9166667 | M20: Prom | N20: dif
A21: j26 | B21: =VLOOKUP($A21,datos!$A$4:$AD$52,2) -> SEBASTIAN CHARRY | C21: =VLOOKUP($A21,datos!$A$4:$AD$52,3) -> Colombia | D21: =VLOOKUP($A21,datos!$A$4:$AD$52,10) -> 225 | E21: =VLOOKUP($A21,datos!$A$4:$AD$52,11) -> 199 | F21: =VLOOKUP($A21,datos!$A$4:$AD$52,12) -> 174 | G21: =VLOOKUP($A21,datos!$A$4:$AD$52,13) -> 169 | H21: =VLOOKUP($A21,datos!$A$4:$AD$52,14) -> 191 | I21: =VLOOKUP($A21,datos!$A$4:$AD$52,15) -> 195 | J21: =SUM(D21:I21) -> 1153 | K21: =(COUNTIF(D21:I21,">0")) -> 6 | L21: =M23 -> 179.9166667 | M21: =J21/K21 -> 192.1666667 | N21: =$J$8-J23 -> 161
A22: j24 | B22: =VLOOKUP($A22,datos!$A$4:$AD$52,2) -> CARLOS F. SAAVEDRA | C22: =VLOOKUP($A22,datos!$A$4:$AD$52,3) -> Colombia | D22: =VLOOKUP($A22,datos!$A$4:$AD$52,10) -> 154 | E22: =VLOOKUP($A22,datos!$A$4:$AD$52,11) -> 175 | F22: =VLOOKUP($A22,datos!$A$4:$AD$52,12) -> 164 | G22: =VLOOKUP($A22,datos!$A$4:$AD$52,13) -> 160 | H22: =VLOOKUP($A22,datos!$A$4:$AD$52,14) -> 149 | I22: =VLOOKUP($A22,datos!$A$4:$AD$52,15) -> 204 | J22: =SUM(D22:I22) -> 1006 | K22: =(COUNTIF(D22:I22,">0")) -> 6 | L22: =M23 -> 179.9166667 | M22: =J22/K22 -> 167.6666667 | N22: 4°
D23: =SUM(D21:D22) -> 379 | E23: 374 | F23: 338 | G23: 329 | H23: 340 | I23: 399 | J23: 2159 | K23: =(COUNTIF(D23:I23,">0"))*2 -> 12 | L23: =M23 -> 179.9166667 | M23: =J23/K23 -> 179.9166667 | P23: =MAX(D28:I28) -> 385
L24: =M23 -> 179.9166667
A25: Cod | B25: Nombre del Jugador | C25: FEDERACION | D25: L1 | E25: L2 | F25: L3 | G25: L4 | H25: L5 | I25: L6 | J25: Serie | L25: =M28 -> 178.5 | M25: Prom | N25: dif
A26: j13 | B26: =VLOOKUP($A26,datos!$A$4:$AD$52,2) -> FRANCO R. GUALINI | C26: =VLOOKUP($A26,datos!$A$4:$AD$52,3) -> Argentina | D26: =VLOOKUP($A26,datos!$A$4:$AD$52,10) -> 168 | E26: =VLOOKUP($A26,datos!$A$4:$AD$52,11) -> 172 | F26: =VLOOKUP($A26,datos!$A$4:$AD$52,12) -> 180 | G26: =VLOOKUP($A26,datos!$A$4:$AD$52,13) -> 188 | H26: =VLOOKUP($A26,datos!$A$4:$AD$52,14) -> 182 | I26: =VLOOKUP($A26,datos!$A$4:$AD$52,15) -> 198 | J26: =SUM(D26:I26) -> 1088 | K26: =(COUNTIF(D26:I26,">0")) -> 6 | L26: =M28 -> 178.5 | M26: =J26/K26 -> 181.3333333 | N26: =$J$8-J28 -> 178
A27: j15 | B27: =VLOOKUP($A27,datos!$A$4:$AD$52,2) -> FERNANDO TAPIA M. | C27: =VLOOKUP($A27,datos!$A$4:$AD$52,3) -> Argentina | D27: =VLOOKUP($A27,datos!$A$4:$AD$52,10) -> 205 | E27: =VLOOKUP($A27,datos!$A$4:$AD$52,11) -> 180 | F27: =VLOOKUP($A27,datos!$A$4:$AD$52,12) -> 149 | G27: =VLOOKUP($A27,datos!$A$4:$AD$52,13) -> 157 | H27: =VLOOKUP($A27,datos!$A$4:$AD$52,14) -> 176 | I27: =VLOOKUP($A27,datos!$A$4:$AD$52,15) -> 187 | J27: =SUM(D27:I27) -> 1054 | K27: =(COUNTIF(D27:I27,">0")) -> 6 | L27: =M28 -> 178.5 | M27: =J27/K27 -> 175.6666667 | N27: 5°
D28: =SUM(D26:D27) -> 373 | E28: 352 | F28: 329 | G28: 345 | H28: 358 | I28: 385 | J28: 2142 | K28: =(COUNTIF(D28:I28,">0"))*2 -> 12 | L28: =M28 -> 178.5 | M28: =J28/K28 -> 178.5 | P28: =MAX(D38:I38) -> 394
L29: =M28 -> 178.5
A30: Cod | B30: Nombre del Jugador | C30: FEDERACION | D30: L1 | E30: L2 | F30: L3 | G30: L4 | H30: L5 | I30: L6 | J30: Serie | L30: =M33 -> 174.3333333 | M30: Prom | N30: dif
A31: j17 | B31: =VLOOKUP($A31,datos!$A$4:$AD$52,2) -> YANNICK ROOS | C31: =VLOOKUP($A31,datos!$A$4:$AD$52,3) -> Aruba | D31: =VLOOKUP($A31,datos!$A$4:$AD$52,10) -> 187 | E31: =VLOOKUP($A31,datos!$A$4:$AD$52,11) -> 147 | F31: =VLOOKUP($A31,datos!$A$4:$AD$52,12) -> 135 | G31: =VLOOKUP($A31,datos!$A$4:$AD$52,13) -> 143 | H31: =VLOOKUP($A31,datos!$A$4:$AD$52,14) -> 161 | I31: =VLOOKUP($A31,datos!$A$4:$AD$52,15) -> 158 | J31: =SUM(D31:I31) -> 931 | K31: =(COUNTIF(D31:I31,">0")) -> 6 | L31: =M33 -> 174.3333333 | M31: =J31/K31 -> 155.1666667 | N31: =$J$8-J33 -> 228
A32: j16 | B32: =VLOOKUP($A32,datos!$A$4:$AD$52,2) -> BRIAN HELMEYER | C32: =VLOOKUP($A32,datos!$A$4:$AD$52,3) -> Aruba | D32: =VLOOKUP($A32,datos!$A$4:$AD$52,10) -> 177 | E32: =VLOOKUP($A32,datos!$A$4:$AD$52,11) -> 172 | F32: =VLOOKUP($A32,datos!$A$4:$AD$52,12) -> 193 | G32: =VLOOKUP($A32,datos!$A$4:$AD$52,13) -> 200 | H32: =VLOOKUP($A32,datos!$A$4:$AD$52,14) -> 235 | I32: =VLOOKUP($A32,datos!$A$4:$AD$52,15) -> 184 | J32: =SUM(D32:I32) -> 1161 | K32: =(COUNTIF(D32:I32,">0")) -> 6 | L32: =M33 -> 174.3333333 | M32: =J32/K32 -> 193.5 | N32: 6°
D33: =SUM(D31:D32) -> 364 | E33: 319 | F33: 328 | G33: 343 | H33: 396 | I33: 342 | J33: 2092 | K33: =(COUNTIF(D33:I33,">0"))*2 -> 12 | L33: =M33 -> 174.3333333 | M33: =J33/K33 -> 174.3333333 | P33: =MAX(D43:I43) -> 407
L34: =M33 -> 174.3333333
A35: Cod | B35: Nombre del Jugador | C35: FEDERACION | D35: L1 | E35: L2 | F35: L3 | G35: L4 | H35: L5 | I35: L6 | J35: Serie | L35: =M38 -> 172.5 | M35: Prom | N35: dif
A36: j23 | B36: =VLOOKUP($A36,datos!$A$4:$AD$52,2) -> JOAO I. FERREIRA N. | C36: =VLOOKUP($A36,datos!$A$4:$AD$52,3) -> Brasil | D36: =VLOOKUP($A36,datos!$A$4:$AD$52,10) -> 157 | E36: =VLOOKUP($A36,datos!$A$4:$AD$52,11) -> 173 | F36: =VLOOKUP($A36,datos!$A$4:$AD$52,12) -> 200 | G36: =VLOOKUP($A36,datos!$A$4:$AD$52,13) -> 192 | H36: =VLOOKUP($A36,datos!$A$4:$AD$52,14) -> 156 | I36: =VLOOKUP($A36,datos!$A$4:$AD$52,15) -> 203 | J36: =SUM(D36:I36) -> 1081 | K36: =(COUNTIF(D36:I36,">0")) -> 6 | L36: =M38 -> 172.5 | M36: =J36/K36 -> 180.1666667 | N36: =$J$8-J38 -> 250
A37: j21 | B37: =VLOOKUP($A37,datos!$A$4:$AD$52,2) -> BERNARDO ABREU | C37: =VLOOKUP($A37,datos!$A$4:$AD$52,3) -> Brasil | D37: =VLOOKUP($A37,datos!$A$4:$AD$52,10) -> 176 | E37: =VLOOKUP($A37,datos!$A$4:$AD$52,11) -> 154 | F37: =VLOOKUP($A37,datos!$A$4:$AD$52,12) -> 194 | G37: =VLOOKUP($A37,datos!$A$4:$AD$52,13) -> 131 | H37: =VLOOKUP($A37,datos!$A$4:$AD$52,14) -> 169 | I37: =VLOOKUP($A37,datos!$A$4:$AD$52,15) -> 165 | J37: =SUM(D37:I37) -> 989 | K37: =(COUNTIF(D37:I37,">0")) -> 6 | L37: =M38 -> 172.5 | M37: =J37/K37 -> 164.8333333 | N37: 7°
D38: =SUM(D36:D37) -> 333 | E38: 327 | F38: 394 | G38: 323 | H38: 325 | I38: 368 | J38: 2070 | K38: =(COUNTIF(D38:I38,">0"))*2 -> 12 | L38: =M38 -> 172.5 | M38: =J38/K38 -> 172.5 | P38: =MAX(D98:I98) -> 
L39: =M38 -> 172.5
A40: Cod | B40: Nombre del Jugador | C40: FEDERACION | D40: L1 | E40: L2 | F40: L3 | G40: L4 | H40: L5 | I40: L6 | J40: Serie | L40: =M43 -> 172.0833333 | M40: Prom | N40: dif
A41: j18 | B41: =VLOOKUP($A41,datos!$A$4:$AD$52,2) -> OSMAR BISLIP | C41: =VLOOKUP($A41,datos!$A$4:$AD$52,3) -> Aruba | D41: =VLOOKUP($A41,datos!$A$4:$AD$52,10) -> 205 | E41: =VLOOKUP($A41,datos!$A$4:$AD$52,11) -> 159 | F41: =VLOOKUP($A41,datos!$A$4:$AD$52,12) -> 158 | G41: =VLOOKUP($A41,datos!$A$4:$AD$52,13) -> 200 | H41: =VLOOKUP($A41,datos!$A$4:$AD$52,14) -> 145 | I41: =VLOOKUP($A41,datos!$A$4:$AD$52,15) -> 175 | J41: =SUM(D41:I41) -> 1042 | K41: =(COUNTIF(D41:I41,">0")) -> 6 | L41: =M43 -> 172.0833333 | M41: =J41/K41 -> 173.6666667 | N41: =$J$8-J43 -> 255
A42: j19 | B42: =VLOOKUP($A42,datos!$A$4:$AD$52,2) -> ELIAS HALABI | C42: =VLOOKUP($A42,datos!$A$4:$AD$52,3) -> Aruba | D42: =VLOOKUP($A42,datos!$A$4:$AD$52,10) -> 202 | E42: =VLOOKUP($A42,datos!$A$4:$AD$52,11) -> 154 | F42: =VLOOKUP($A42,datos!$A$4:$AD$52,12) -> 173 | G42: =VLOOKUP($A42,datos!$A$4:$AD$52,13) -> 186 | H42: =VLOOKUP($A42,datos!$A$4:$AD$52,14) -> 182 | I42: =VLOOKUP($A42,datos!$A$4:$AD$52,15) -> 126 | J42: =SUM(D42:I42) -> 1023 | K42: =(COUNTIF(D42:I42,">0")) -> 6 | L42: =M43 -> 172.0833333 | M42: =J42/K42 -> 170.5 | N42: 8°
D43: =SUM(D41:D42) -> 407 | E43: 313 | F43: 331 | G43: 386 | H43: 327 | I43: 301 | J43: 2065 | K43: =(COUNTIF(D43:I43,">0"))*2 -> 12 | L43: =M43 -> 172.0833333 | M43: =J43/K43 -> 172.0833333 | P43: =MAX(D18:I18) -> 394
L44: =M43 -> 172.0833333
A45: Cod | B45: Nombre del Jugador | C45: FEDERACION | D45: L1 | E45: L2 | F45: L3 | G45: L4 | H45: L5 | I45: L6 | J45: Serie | L45: =M48 -> 171.75 | M45: Prom | N45: dif
A46: j12 | B46: =VLOOKUP($A46,datos!$A$4:$AD$52,2) -> AGUSTIN LEANDRO A. | C46: =VLOOKUP($A46,datos!$A$4:$AD$52,3) -> Argentina | D46: =VLOOKUP($A46,datos!$A$4:$AD$52,10) -> 147 | E46: =VLOOKUP($A46,datos!$A$4:$AD$52,11) -> 210 | F46: =VLOOKUP($A46,datos!$A$4:$AD$52,12) -> 171 | G46: =VLOOKUP($A46,datos!$A$4:$AD$52,13) -> 219 | H46: =VLOOKUP($A46,datos!$A$4:$AD$52,14) -> 157 | I46: =VLOOKUP($A46,datos!$A$4:$AD$52,15) -> 188 | J46: =SUM(D46:I46) -> 1092 | K46: =(COUNTIF(D46:I46,">0")) -> 6 | L46: =M48 -> 171.75 | M46: =J46/K46 -> 182 | N46: =$J$8-J48 -> 259
A47: j14 | B47: =VLOOKUP($A47,datos!$A$4:$AD$52,2) -> FABRICIO E. SANDUAY | C47: =VLOOKUP($A47,datos!$A$4:$AD$52,3) -> Argentina | D47: =VLOOKUP($A47,datos!$A$4:$AD$52,10) -> 170 | E47: =VLOOKUP($A47,datos!$A$4:$AD$52,11) -> 171 | F47: =VLOOKUP($A47,datos!$A$4:$AD$52,12) -> 157 | G47: =VLOOKUP($A47,datos!$A$4:$AD$52,13) -> 168 | H47: =VLOOKUP($A47,datos!$A$4:$AD$52,14) -> 178 | I47: =VLOOKUP($A47,datos!$A$4:$AD$52,15) -> 125 | J47: =SUM(D47:I47) -> 969 | K47: =(COUNTIF(D47:I47,">0")) -> 6 | L47: =M48 -> 171.75 | M47: =J47/K47 -> 161.5 | N47: 9°
D48: =SUM(D46:D47) -> 317 | E48: 381 | F48: 328 | G48: 387 | H48: 335 | I48: 313 | J48: 2061 | K48: =(COUNTIF(D48:I48,">0"))*2 -> 12 | L48: =M48 -> 171.75 | M48: =J48/K48 -> 171.75 | P48: =MAX(D73:I73) -> 
L49: =M48 -> 171.75
A50: Cod | B50: Nombre del Jugador | C50: FEDERACION | D50: L1 | E50: L2 | F50: L3 | G50: L4 | H50: L5 | I50: L6 | J50: Serie | L50: =M53 -> 169.8333333 | M50: Prom | N50: dif
A51: j28 | B51: =VLOOKUP($A51,datos!$A$4:$AD$52,2) -> BASTIAN MALDONADO R. | C51: =VLOOKUP($A51,datos!$A$4:$AD$52,3) -> Chile | D51: =VLOOKUP($A51,datos!$A$4:$AD$52,10) -> 201 | E51: =VLOOKUP($A51,datos!$A$4:$AD$52,11) -> 148 | F51: =VLOOKUP($A51,datos!$A$4:$AD$52,12) -> 130 | G51: =VLOOKUP($A51,datos!$A$4:$AD$52,13) -> 165 | H51: =VLOOKUP($A51,datos!$A$4:$AD$52,14) -> 165 | I51: =VLOOKUP($A51,datos!$A$4:$AD$52,15) -> 152 | J51: =SUM(D51:I51) -> 961 | K51: =(COUNTIF(D51:I51,">0")) -> 6 | L51: =M53 -> 169.8333333 | M51: =J51/K51 -> 160.1666667 | N51: =$J$8-J53 -> 282
A52: j29 | B52: =VLOOKUP($A52,datos!$A$4:$AD$52,2) -> MATIAS NAZAR G. | C52: =VLOOKUP($A52,datos!$A$4:$AD$52,3) -> Chile | D52: =VLOOKUP($A52,datos!$A$4:$AD$52,10) -> 141 | E52: =VLOOKUP($A52,datos!$A$4:$AD$52,11) -> 212 | F52: =VLOOKUP($A52,datos!$A$4:$AD$52,12) -> 189 | G52: =VLOOKUP($A52,datos!$A$4:$AD$52,13) -> 195 | H52: =VLOOKUP($A52,datos!$A$4:$AD$52,14) -> 175 | I52: =VLOOKUP($A52,datos!$A$4:$AD$52,15) -> 165 | J52: =SUM(D52:I52) -> 1077 | K52: =(COUNTIF(D52:I52,">0")) -> 6 | L52: =M53 -> 169.8333333 | M52: =J52/K52 -> 179.5 | N52: 10°
D53: =SUM(D51:D52) -> 342 | E53: 360 | F53: 319 | G53: 360 | H53: 340 | I53: 317 | J53: 2038 | K53: =(COUNTIF(D53:I53,">0"))*2 -> 12 | L53: =M53 -> 169.8333333 | M53: =J53/K53 -> 169.8333333 | P53: =MAX(D33:I33) -> 396
L54: =M53 -> 169.8333333
A55: Cod | B55: Nombre del Jugador | C55: FEDERACION | D55: L1 | E55: L2 | F55: L3 | G55: L4 | H55: L5 | I55: L6 | J55: Serie | L55: =M58 -> 166.5 | M55: Prom | N55: dif
A56: j34 | B56: =VLOOKUP($A56,datos!$A$4:$AD$52,2) -> KEIJI M. CAJACHACAHUA M. | C56: =VLOOKUP($A56,datos!$A$4:$AD$52,3) -> Perú | D56: =VLOOKUP($A56,datos!$A$4:$AD$52,10) -> 176 | E56: =VLOOKUP($A56,datos!$A$4:$AD$52,11) -> 155 | F56: =VLOOKUP($A56,datos!$A$4:$AD$52,12) -> 147 | G56: =VLOOKUP($A56,datos!$A$4:$AD$52,13) -> 140 | H56: =VLOOKUP($A56,datos!$A$4:$AD$52,14) -> 170 | I56: =VLOOKUP($A56,datos!$A$4:$AD$52,15) -> 206 | J56: =SUM(D56:I56) -> 994 | K56: =(COUNTIF(D56:I56,">0")) -> 6 | L56: =M58 -> 166.5 | M56: =J56/K56 -> 165.6666667 | N56: =$J$8-J58 -> 322
A57: j32 | B57: =VLOOKUP($A57,datos!$A$4:$AD$52,2) -> ADRIAN GUIBU K. | C57: =VLOOKUP($A57,datos!$A$4:$AD$52,3) -> Perú | D57: =VLOOKUP($A57,datos!$A$4:$AD$52,10) -> 133 | E57: =VLOOKUP($A57,datos!$A$4:$AD$52,11) -> 146 | F57: =VLOOKUP($A57,datos!$A$4:$AD$52,12) -> 224 | G57: =VLOOKUP($A57,datos!$A$4:$AD$52,13) -> 161 | H57: =VLOOKUP($A57,datos!$A$4:$AD$52,14) -> 149 | I57: =VLOOKUP($A57,datos!$A$4:$AD$52,15) -> 191 | J57: =SUM(D57:I57) -> 1004 | K57: =(COUNTIF(D57:I57,">0")) -> 6 | L57: =M58 -> 166.5 | M57: =J57/K57 -> 167.3333333 | N57: 11°
D58: =SUM(D56:D57) -> 309 | E58: 301 | F58: 371 | G58: 301 | H58: 319 | I58: 397 | J58: 1998 | K58: =(COUNTIF(D58:I58,">0"))*2 -> 12 | L58: =M58 -> 166.5 | M58: =J58/K58 -> 166.5 | P58: =MAX(D78:I78) -> 
L59: =M58 -> 166.5
A60: Cod | B60: Nombre del Jugador | C60: FEDERACION | D60: L1 | E60: L2 | F60: L3 | G60: L4 | H60: L5 | I60: L6 | J60: Serie | L60: =M63 -> 142.6666667 | M60: Prom | N60: dif
A61: j31 | B61: =VLOOKUP($A61,datos!$A$4:$AD$52,2) -> LUIS JEREZ G. | C61: =VLOOKUP($A61,datos!$A$4:$AD$52,3) -> Chile | D61: =VLOOKUP($A61,datos!$A$4:$AD$52,10) -> 155 | E61: =VLOOKUP($A61,datos!$A$4:$AD$52,11) -> 159 | F61: =VLOOKUP($A61,datos!$A$4:$AD$52,12) -> 116 | G61: =VLOOKUP($A61,datos!$A$4:$AD$52,13) -> 128 | H61: =VLOOKUP($A61,datos!$A$4:$AD$52,14) -> 103 | I61: =VLOOKUP($A61,datos!$A$4:$AD$52,15) -> 144 | J61: =SUM(D61:I61) -> 805 | K61: =(COUNTIF(D61:I61,">0")) -> 6 | L61: =M63 -> 142.6666667 | M61: =J61/K61 -> 134.1666667 | N61: =$J$8-J63 -> 608
A62: j30 | B62: =VLOOKUP($A62,datos!$A$4:$AD$52,2) -> IVAN VELIZ H. | C62: =VLOOKUP($A62,datos!$A$4:$AD$52,3) -> Chile | D62: =VLOOKUP($A62,datos!$A$4:$AD$52,10) -> 154 | E62: =VLOOKUP($A62,datos!$A$4:$AD$52,11) -> 144 | F62: =VLOOKUP($A62,datos!$A$4:$AD$52,12) -> 168 | G62: =VLOOKUP($A62,datos!$A$4:$AD$52,13) -> 169 | H62: =VLOOKUP($A62,datos!$A$4:$AD$52,14) -> 158 | I62: =VLOOKUP($A62,datos!$A$4:$AD$52,15) -> 114 | J62: =SUM(D62:I62) -> 907 | K62: =(COUNTIF(D62:I62,">0")) -> 6 | L62: =M63 -> 142.6666667 | M62: =J62/K62 -> 151.1666667 | N62: 12°
D63: =SUM(D61:D62) -> 309 | E63: 303 | F63: 284 | G63: 297 | H63: 261 | I63: 258 | J63: 1712 | K63: =(COUNTIF(D63:I63,">0"))*2 -> 12 | L63: =M63 -> 142.6666667 | M63: =J63/K63 -> 142.6666667 | P63: =MAX(D113:I113) -> 
L64: =M63 -> 142.6666667
A65: Cod | B65: Nombre del Jugador | C65: FEDERACION | D65: L1 | E65: L2 | F65: L3 | G65: L4 | H65: L5 | I65: L6 | J65: Serie | L65: =M68 -> 139.8333333 | M65: Prom | N65: dif
A66: j37 | B66: =VLOOKUP($A66,datos!$A$4:$AD$52,2) -> ALFONSO RODRIGUEZ L. | C66: =VLOOKUP($A66,datos!$A$4:$AD$52,3) -> Uruguay | D66: =VLOOKUP($A66,datos!$A$4:$AD$52,10) -> 154 | E66: =VLOOKUP($A66,datos!$A$4:$AD$52,11) -> 158 | F66: =VLOOKUP($A66,datos!$A$4:$AD$52,12) -> 148 | G66: =VLOOKUP($A66,datos!$A$4:$AD$52,13) -> 128 | H66: =VLOOKUP($A66,datos!$A$4:$AD$52,14) -> 142 | I66: =VLOOKUP($A66,datos!$A$4:$AD$52,15) -> 132 | J66: =SUM(D66:I66) -> 862 | K66: =(COUNTIF(D66:I66,">0")) -> 6 | L66: =M68 -> 139.8333333 | M66: =J66/K66 -> 143.6666667 | N66: =$J$8-J68 -> 642
A67: j38 | B67: =VLOOKUP($A67,datos!$A$4:$AD$52,2) -> FELIPE FUENTES F. | C67: =VLOOKUP($A67,datos!$A$4:$AD$52,3) -> Uruguay | D67: =VLOOKUP($A67,datos!$A$4:$AD$52,10) -> 123 | E67: =VLOOKUP($A67,datos!$A$4:$AD$52,11) -> 146 | F67: =VLOOKUP($A67,datos!$A$4:$AD$52,12) -> 138 | G67: =VLOOKUP($A67,datos!$A$4:$AD$52,13) -> 130 | H67: =VLOOKUP($A67,datos!$A$4:$AD$52,14) -> 154 | I67: =VLOOKUP($A67,datos!$A$4:$AD$52,15) -> 125 | J67: =SUM(D67:I67) -> 816 | K67: =(COUNTIF(D67:I67,">0")) -> 6 | L67: =M68 -> 139.8333333 | M67: =J67/K67 -> 136 | N67: 13°
D68: =SUM(D66:D67) -> 277 | E68: 304 | F68: 286 | G68: 258 | H68: 296 | I68: 257 | J68: 1678 | K68: =(COUNTIF(D68:I68,">0"))*2 -> 12 | L68: =M68 -> 139.8333333 | M68: =J68/K68 -> 139.8333333 | P68: =MAX(D83:I83) -> 
L69: =M68 -> 139.8333333
A70: Cod | B70: Nombre del Jugador | C70: FEDERACION | D70: L1 | E70: L2 | F70: L3 | G70: L4 | H70: L5 | I70: L6 | J70: Serie | L70: =M73 ->  | M70: Prom
A71: j36 | B71: =VLOOKUP($A71,datos!$A$4:$AD$52,2) -> MATIAS DA MOTTA L. | C71: =VLOOKUP($A71,datos!$A$4:$AD$52,3) -> Uruguay | D71: =VLOOKUP($A71,datos!$A$4:$AD$52,10) -> 134 | E71: =VLOOKUP($A71,datos!$A$4:$AD$52,11) -> 200 | F71: =VLOOKUP($A71,datos!$A$4:$AD$52,12) -> 148 | G71: =VLOOKUP($A71,datos!$A$4:$AD$52,13) -> 138 | H71: =VLOOKUP($A71,datos!$A$4:$AD$52,14) -> 189 | I71: =VLOOKUP($A71,datos!$A$4:$AD$52,15) -> 186 | J71: =SUM(D71:I71) -> 995 | K71: =(COUNTIF(D71:I71,">0")) -> 6 | L71: =M73 ->  | M71: =J71/K71 -> 165.8333333
A72: C13 | B72: =VLOOKUP($A72,datos!$A$4:$AD$52,2) ->  | C72: =VLOOKUP($A72,datos!$A$4:$AD$52,3) ->  | D72: =VLOOKUP($A72,datos!$A$4:$AD$52,10) ->  | E72: =VLOOKUP($A72,datos!$A$4:$AD$52,11) ->  | F72: =VLOOKUP($A72,datos!$A$4:$AD$52,12) ->  | G72: =VLOOKUP($A72,datos!$A$4:$AD$52,13) ->  | H72: =VLOOKUP($A72,datos!$A$4:$AD$52,14) ->  | I72: =VLOOKUP($A72,datos!$A$4:$AD$52,15) ->  | J72: =SUM(D72:I72) ->  | K72: =(COUNTIF(D72:I72,">0")) -> 0 | L72: =M73 ->  | M72: =J72/K72 ->  | N72: 14°
D73: =SUM(D71:D72) ->  | K73: =(COUNTIF(D73:I73,">0"))*2 -> 0 | L73: =M73 ->  | M73: =J73/K73 ->  | P73: =MAX(D68:I68) -> 304
L74: =M73 -> 
A75: Cod | B75: Nombre del Jugador | C75: FEDERACION | D75: L1 | E75: L2 | F75: L3 | G75: L4 | H75: L5 | I75: L6 | J75: Serie | L75: =M78 ->  | M75: Prom | N75: dif
A76: C11 | B76: =VLOOKUP($A76,datos!$A$4:$AD$52,2) ->  | C76: =VLOOKUP($A76,datos!$A$4:$AD$52,3) ->  | D76: =VLOOKUP($A76,datos!$A$4:$AD$52,10) ->  | E76: =VLOOKUP($A76,datos!$A$4:$AD$52,11) ->  | F76: =VLOOKUP($A76,datos!$A$4:$AD$52,12) ->  | G76: =VLOOKUP($A76,datos!$A$4:$AD$52,13) ->  | H76: =VLOOKUP($A76,datos!$A$4:$AD$52,14) ->  | I76: =VLOOKUP($A76,datos!$A$4:$AD$52,15) ->  | J76: =SUM(D76:I76) ->  | K76: =(COUNTIF(D76:I76,">0")) -> 0 | L76: =M78 ->  | M76: =J76/K76 ->  | N76: =$J$8-J78 -> 
A77: C07 | B77: =VLOOKUP($A77,datos!$A$4:$AD$52,2) ->  | C77: =VLOOKUP($A77,datos!$A$4:$AD$52,3) ->  | D77: =VLOOKUP($A77,datos!$A$4:$AD$52,10) ->  | E77: =VLOOKUP($A77,datos!$A$4:$AD$52,11) ->  | F77: =VLOOKUP($A77,datos!$A$4:$AD$52,12) ->  | G77: =VLOOKUP($A77,datos!$A$4:$AD$52,13) ->  | H77: =VLOOKUP($A77,datos!$A$4:$AD$52,14) ->  | I77: =VLOOKUP($A77,datos!$A$4:$AD$52,15) ->  | J77: =SUM(D77:I77) ->  | K77: =(COUNTIF(D77:I77,">0")) -> 0 | L77: =M78 ->  | M77: =J77/K77 ->  | N77: 15°
D78: =SUM(D76:D77) ->  | K78: =(COUNTIF(D78:I78,">0"))*2 -> 0 | L78: =M78 ->  | M78: =J78/K78 ->  | P78: =MAX(D58:I58) -> 397
L79: =M78 -> 
A80: Cod | B80: Nombre del Jugador | C80: FEDERACION | D80: L1 | E80: L2 | F80: L3 | G80: L4 | H80: L5 | I80: L6 | J80: Serie | L80: =M83 ->  | M80: Prom | N80: dif
A81: C15 | B81: =VLOOKUP($A81,datos!$A$4:$AD$52,2) ->  | C81: =VLOOKUP($A81,datos!$A$4:$AD$52,3) ->  | D81: =VLOOKUP($A81,datos!$A$4:$AD$52,10) ->  | E81: =VLOOKUP($A81,datos!$A$4:$AD$52,11) ->  | F81: =VLOOKUP($A81,datos!$A$4:$AD$52,12) ->  | G81: =VLOOKUP($A81,datos!$A$4:$AD$52,13) ->  | H81: =VLOOKUP($A81,datos!$A$4:$AD$52,14) ->  | I81: =VLOOKUP($A81,datos!$A$4:$AD$52,15) ->  | J81: =SUM(D81:I81) ->  | K81: =(COUNTIF(D81:I81,">0")) -> 0 | L81: =M83 ->  | M81: =J81/K81 ->  | N81: =$J$8-J83 -> 
A82: C16 | B82: =VLOOKUP($A82,datos!$A$4:$AD$52,2) ->  | C82: =VLOOKUP($A82,datos!$A$4:$AD$52,3) ->  | D82: =VLOOKUP($A82,datos!$A$4:$AD$52,10) ->  | E82: =VLOOKUP($A82,datos!$A$4:$AD$52,11) ->  | F82: =VLOOKUP($A82,datos!$A$4:$AD$52,12) ->  | G82: =VLOOKUP($A82,datos!$A$4:$AD$52,13) ->  | H82: =VLOOKUP($A82,datos!$A$4:$AD$52,14) ->  | I82: =VLOOKUP($A82,datos!$A$4:$AD$52,15) ->  | J82: =SUM(D82:I82) ->  | K82: =(COUNTIF(D82:I82,">0")) -> 0 | L82: =M83 ->  | M82: =J82/K82 ->  | N82: 16°
D83: =SUM(D81:D82) ->  | K83: =(COUNTIF(D83:I83,">0"))*2 -> 0 | L83: =M83 ->  | M83: =J83/K83 ->  | P83: =MAX(D53:I53) -> 360
L84: =M83 -> 
A85: Cod | B85: Nombre del Jugador | C85: FEDERACION | D85: L1 | E85: L2 | F85: L3 | G85: L4 | H85: L5 | I85: L6 | J85: Serie | L85: =M88 ->  | M85: Prom | N85: dif
A86: C46 | B86: =VLOOKUP($A86,datos!$A$4:$AD$52,2) ->  | C86: =VLOOKUP($A86,datos!$A$4:$AD$52,3) ->  | D86: =VLOOKUP($A86,datos!$A$4:$AD$52,10) ->  | E86: =VLOOKUP($A86,datos!$A$4:$AD$52,11) ->  | F86: =VLOOKUP($A86,datos!$A$4:$AD$52,12) ->  | G86: =VLOOKUP($A86,datos!$A$4:$AD$52,13) ->  | H86: =VLOOKUP($A86,datos!$A$4:$AD$52,14) ->  | I86: =VLOOKUP($A86,datos!$A$4:$AD$52,15) ->  | J86: =SUM(D86:I86) ->  | K86: =(COUNTIF(D86:I86,">0")) -> 0 | L86: =M88 ->  | M86: =J86/K86 ->  | N86: =$J$8-J88 -> 
A87: C45 | B87: =VLOOKUP($A87,datos!$A$4:$AD$52,2) ->  | C87: =VLOOKUP($A87,datos!$A$4:$AD$52,3) ->  | D87: =VLOOKUP($A87,datos!$A$4:$AD$52,10) ->  | E87: =VLOOKUP($A87,datos!$A$4:$AD$52,11) ->  | F87: =VLOOKUP($A87,datos!$A$4:$AD$52,12) ->  | G87: =VLOOKUP($A87,datos!$A$4:$AD$52,13) ->  | H87: =VLOOKUP($A87,datos!$A$4:$AD$52,14) ->  | I87: =VLOOKUP($A87,datos!$A$4:$AD$52,15) ->  | J87: =SUM(D87:I87) ->  | K87: =(COUNTIF(D87:I87,">0")) -> 0 | L87: =M88 ->  | M87: =J87/K87 ->  | N87: 17°
D88: =SUM(D86:D87) ->  | K88: =(COUNTIF(D88:I88,">0"))*2 -> 0 | L88: =M88 ->  | M88: =J88/K88 ->  | P88: =MAX(D93:I93) -> 
L89: =M88 -> 
A90: Cod | B90: Nombre del Jugador | C90: FEDERACION | D90: L1 | E90: L2 | F90: L3 | G90: L4 | H90: L5 | I90: L6 | J90: Serie | L90: =M93 ->  | M90: Prom | N90: dif
A91: C43 | B91: =VLOOKUP($A91,datos!$A$4:$AD$52,2) ->  | C91: =VLOOKUP($A91,datos!$A$4:$AD$52,3) ->  | D91: =VLOOKUP($A91,datos!$A$4:$AD$52,10) ->  | E91: =VLOOKUP($A91,datos!$A$4:$AD$52,11) ->  | F91: =VLOOKUP($A91,datos!$A$4:$AD$52,12) ->  | G91: =VLOOKUP($A91,datos!$A$4:$AD$52,13) ->  | H91: =VLOOKUP($A91,datos!$A$4:$AD$52,14) ->  | I91: =VLOOKUP($A91,datos!$A$4:$AD$52,15) ->  | J91: =SUM(D91:I91) ->  | K91: =(COUNTIF(D91:I91,">0")) -> 0 | L91: =M93 ->  | M91: =J91/K91 ->  | N91: =$J$8-J93 -> 
A92: C44 | B92: =VLOOKUP($A92,datos!$A$4:$AD$52,2) ->  | C92: =VLOOKUP($A92,datos!$A$4:$AD$52,3) ->  | D92: =VLOOKUP($A92,datos!$A$4:$AD$52,10) ->  | E92: =VLOOKUP($A92,datos!$A$4:$AD$52,11) ->  | F92: =VLOOKUP($A92,datos!$A$4:$AD$52,12) ->  | G92: =VLOOKUP($A92,datos!$A$4:$AD$52,13) ->  | H92: =VLOOKUP($A92,datos!$A$4:$AD$52,14) ->  | I92: =VLOOKUP($A92,datos!$A$4:$AD$52,15) ->  | J92: =SUM(D92:I92) ->  | K92: =(COUNTIF(D92:I92,">0")) -> 0 | L92: =M93 ->  | M92: =J92/K92 ->  | N92: 18°
D93: =SUM(D91:D92) ->  | K93: =(COUNTIF(D93:I93,">0"))*2 -> 0 | L93: =M93 ->  | M93: =J93/K93 ->  | P93: =MAX(D103:I103) -> 
L94: =M93 -> 
A95: Cod | B95: Nombre del Jugador | C95: FEDERACION | D95: L1 | E95: L2 | F95: L3 | G95: L4 | H95: L5 | I95: L6 | J95: Serie | L95: =M98 ->  | M95: Prom | N95: dif
A96: C35 | B96: =VLOOKUP($A96,datos!$A$4:$AD$52,2) ->  | C96: =VLOOKUP($A96,datos!$A$4:$AD$52,3) ->  | D96: =VLOOKUP($A96,datos!$A$4:$AD$52,10) ->  | E96: =VLOOKUP($A96,datos!$A$4:$AD$52,11) ->  | F96: =VLOOKUP($A96,datos!$A$4:$AD$52,12) ->  | G96: =VLOOKUP($A96,datos!$A$4:$AD$52,13) ->  | H96: =VLOOKUP($A96,datos!$A$4:$AD$52,14) ->  | I96: =VLOOKUP($A96,datos!$A$4:$AD$52,15) ->  | J96: =SUM(D96:I96) ->  | K96: =(COUNTIF(D96:I96,">0")) -> 0 | L96: =M98 ->  | M96: =J96/K96 ->  | N96: =$J$8-J98 -> 
A97: C31 | B97: =VLOOKUP($A97,datos!$A$4:$AD$52,2) ->  | C97: =VLOOKUP($A97,datos!$A$4:$AD$52,3) ->  | D97: =VLOOKUP($A97,datos!$A$4:$AD$52,10) ->  | E97: =VLOOKUP($A97,datos!$A$4:$AD$52,11) ->  | F97: =VLOOKUP($A97,datos!$A$4:$AD$52,12) ->  | G97: =VLOOKUP($A97,datos!$A$4:$AD$52,13) ->  | H97: =VLOOKUP($A97,datos!$A$4:$AD$52,14) ->  | I97: =VLOOKUP($A97,datos!$A$4:$AD$52,15) ->  | J97: =SUM(D97:I97) ->  | K97: =(COUNTIF(D97:I97,">0")) -> 0 | L97: =M98 ->  | M97: =J97/K97 ->  | N97: 19°
D98: =SUM(D96:D97) ->  | K98: =(COUNTIF(D98:I98,">0"))*2 -> 0 | L98: =M98 ->  | M98: =J98/K98 ->  | P98: =MAX(D63:I63) -> 309
L99: =M98 -> 
A100: Cod | B100: Nombre del Jugador | C100: FEDERACION | D100: L1 | E100: L2 | F100: L3 | G100: L4 | H100: L5 | I100: L6 | J100: Serie | L100: =M103 ->  | M100: Prom | N100: dif | Q100: =(COUNTIF(#REF!,">0")) -> 
A101: C10 | B101: =VLOOKUP($A101,datos!$A$4:$AD$52,2) ->  | C101: =VLOOKUP($A101,datos!$A$4:$AD$52,3) ->  | D101: =VLOOKUP($A101,datos!$A$4:$AD$52,10) ->  | E101: =VLOOKUP($A101,datos!$A$4:$AD$52,11) ->  | F101: =VLOOKUP($A101,datos!$A$4:$AD$52,12) ->  | G101: =VLOOKUP($A101,datos!$A$4:$AD$52,13) ->  | H101: =VLOOKUP($A101,datos!$A$4:$AD$52,14) ->  | I101: =VLOOKUP($A101,datos!$A$4:$AD$52,15) ->  | J101: =SUM(D101:I101) ->  | K101: =(COUNTIF(D101:I101,">0")) -> 0 | L101: =M103 ->  | M101: =J101/K101 ->  | N101: =$J$8-J103 -> 
A102: C08 | B102: =VLOOKUP($A102,datos!$A$4:$AD$52,2) ->  | C102: =VLOOKUP($A102,datos!$A$4:$AD$52,3) ->  | D102: =VLOOKUP($A102,datos!$A$4:$AD$52,10) ->  | E102: =VLOOKUP($A102,datos!$A$4:$AD$52,11) ->  | F102: =VLOOKUP($A102,datos!$A$4:$AD$52,12) ->  | G102: =VLOOKUP($A102,datos!$A$4:$AD$52,13) ->  | H102: =VLOOKUP($A102,datos!$A$4:$AD$52,14) ->  | I102: =VLOOKUP($A102,datos!$A$4:$AD$52,15) ->  | J102: =SUM(D102:I102) ->  | K102: =(COUNTIF(D102:I102,">0")) -> 0 | L102: =M103 ->  | M102: =J102/K102 ->  | N102: 20°
D103: =SUM(D101:D102) ->  | K103: =(COUNTIF(D103:I103,">0"))*2 -> 0 | L103: =M103 ->  | M103: =J103/K103 ->  | P103: =MAX(D108:I108) -> 
L104: =M103 -> 
A105: Cod | B105: Nombre del Jugador | C105: FEDERACION | D105: L1 | E105: L2 | F105: L3 | G105: L4 | H105: L5 | I105: L6 | J105: Serie | L105: =M108 ->  | M105: Prom | N105: dif
A106: C18 | B106: =VLOOKUP($A106,datos!$A$4:$AD$52,2) ->  | C106: =VLOOKUP($A106,datos!$A$4:$AD$52,3) ->  | D106: =VLOOKUP($A106,datos!$A$4:$AD$52,10) ->  | E106: =VLOOKUP($A106,datos!$A$4:$AD$52,11) ->  | F106: =VLOOKUP($A106,datos!$A$4:$AD$52,12) ->  | G106: =VLOOKUP($A106,datos!$A$4:$AD$52,13) ->  | H106: =VLOOKUP($A106,datos!$A$4:$AD$52,14) ->  | I106: =VLOOKUP($A106,datos!$A$4:$AD$52,15) ->  | J106: =SUM(D106:I106) ->  | K106: =(COUNTIF(D106:I106,">0")) -> 0 | L106: =M108 ->  | M106: =J106/K106 ->  | N106: =$J$8-J108 -> 
A107: C17 | B107: =VLOOKUP($A107,datos!$A$4:$AD$52,2) ->  | C107: =VLOOKUP($A107,datos!$A$4:$AD$52,3) ->  | D107: =VLOOKUP($A107,datos!$A$4:$AD$52,10) ->  | E107: =VLOOKUP($A107,datos!$A$4:$AD$52,11) ->  | F107: =VLOOKUP($A107,datos!$A$4:$AD$52,12) ->  | G107: =VLOOKUP($A107,datos!$A$4:$AD$52,13) ->  | H107: =VLOOKUP($A107,datos!$A$4:$AD$52,14) ->  | I107: =VLOOKUP($A107,datos!$A$4:$AD$52,15) ->  | J107: =SUM(D107:I107) ->  | K107: =(COUNTIF(D107:I107,">0")) -> 0 | L107: =M108 ->  | M107: =J107/K107 ->  | N107: 21°
D108: =SUM(D106:D107) ->  | K108: =(COUNTIF(D108:I108,">0"))*2 -> 0 | L108: =M108 ->  | M108: =J108/K108 ->  | P108: =MAX(D48:I48) -> 387
L109: =M108 -> 
A110: Cod | B110: Nombre del Jugador | C110: FEDERACION | D110: L1 | E110: L2 | F110: L3 | G110: L4 | H110: L5 | I110: L6 | J110: Serie | L110: =M113 ->  | M110: Prom | N110: dif
A111: C09 | B111: =VLOOKUP($A111,datos!$A$4:$AD$52,2) ->  | C111: =VLOOKUP($A111,datos!$A$4:$AD$52,3) ->  | D111: =VLOOKUP($A111,datos!$A$4:$AD$52,10) ->  | E111: =VLOOKUP($A111,datos!$A$4:$AD$52,11) ->  | F111: =VLOOKUP($A111,datos!$A$4:$AD$52,12) ->  | G111: =VLOOKUP($A111,datos!$A$4:$AD$52,13) ->  | H111: =VLOOKUP($A111,datos!$A$4:$AD$52,14) ->  | I111: =VLOOKUP($A111,datos!$A$4:$AD$52,15) ->  | J111: =SUM(D111:I111) ->  | K111: =(COUNTIF(D111:I111,">0")) -> 0 | L111: =M113 ->  | M111: =J111/K111 ->  | N111: =$J$8-J113 -> 
A112: C12 | B112: =VLOOKUP($A112,datos!$A$4:$AD$52,2) ->  | C112: =VLOOKUP($A112,datos!$A$4:$AD$52,3) ->  | D112: =VLOOKUP($A112,datos!$A$4:$AD$52,10) ->  | E112: =VLOOKUP($A112,datos!$A$4:$AD$52,11) ->  | F112: =VLOOKUP($A112,datos!$A$4:$AD$52,12) ->  | G112: =VLOOKUP($A112,datos!$A$4:$AD$52,13) ->  | H112: =VLOOKUP($A112,datos!$A$4:$AD$52,14) ->  | I112: =VLOOKUP($A112,datos!$A$4:$AD$52,15) ->  | J112: =SUM(D112:I112) ->  | K112: =(COUNTIF(D112:I112,">0")) -> 0 | L112: =M113 ->  | M112: =J112/K112 ->  | N112: 22°
D113: =SUM(D111:D112) ->  | K113: =(COUNTIF(D113:I113,">0"))*2 -> 0 | L113: =M113 ->  | M113: =J113/K113 ->  | P113: =MAX(D88:I88) -> 
L114: =M113 -> 
A115: Cod | B115: Nombre del Jugador | C115: FEDERACION | D115: L1 | E115: L2 | F115: L3 | G115: L4 | H115: L5 | I115: L6 | J115: Serie | L115: =M118 ->  | M115: Prom | N115: dif
A116: C47 | B116: =VLOOKUP($A116,datos!$A$4:$AD$52,2) ->  | C116: =VLOOKUP($A116,datos!$A$4:$AD$52,3) ->  | D116: =VLOOKUP($A116,datos!$A$4:$AD$52,10) ->  | E116: =VLOOKUP($A116,datos!$A$4:$AD$52,11) ->  | F116: =VLOOKUP($A116,datos!$A$4:$AD$52,12) ->  | G116: =VLOOKUP($A116,datos!$A$4:$AD$52,13) ->  | H116: =VLOOKUP($A116,datos!$A$4:$AD$52,14) ->  | I116: =VLOOKUP($A116,datos!$A$4:$AD$52,15) ->  | J116: =SUM(D116:I116) ->  | K116: =(COUNTIF(D116:I116,">0")) -> 0 | L116: =M118 ->  | M116: =J116/K116 ->  | N116: =$J$8-J118 -> 
A117: C48 | B117: =VLOOKUP($A117,datos!$A$4:$AD$52,2) ->  | C117: =VLOOKUP($A117,datos!$A$4:$AD$52,3) ->  | D117: =VLOOKUP($A117,datos!$A$4:$AD$52,10) ->  | E117: =VLOOKUP($A117,datos!$A$4:$AD$52,11) ->  | F117: =VLOOKUP($A117,datos!$A$4:$AD$52,12) ->  | G117: =VLOOKUP($A117,datos!$A$4:$AD$52,13) ->  | H117: =VLOOKUP($A117,datos!$A$4:$AD$52,14) ->  | I117: =VLOOKUP($A117,datos!$A$4:$AD$52,15) ->  | J117: =SUM(D117:I117) ->  | K117: =(COUNTIF(D117:I117,">0")) -> 0 | L117: =M118 ->  | M117: =J117/K117 ->  | N117: 23°
D118: =SUM(D116:D117) ->  | K118: =(COUNTIF(D118:I118,">0"))*2 -> 0 | L118: =M118 ->  | M118: =J118/K118 ->  | P118: =MAX(D93:I93) -> 
L119: =M118 -> 
A120: Cod | B120: Nombre del Jugador | C120: FEDERACION | D120: L1 | E120: L2 | F120: L3 | G120: L4 | H120: L5 | I120: L6 | J120: Serie | L120: =M123 ->  | M120: Prom | N120: dif
A121: C21 | B121: =VLOOKUP($A121,datos!$A$4:$AD$52,2) ->  | C121: =VLOOKUP($A121,datos!$A$4:$AD$52,3) ->  | D121: =VLOOKUP($A121,datos!$A$4:$AD$52,10) ->  | E121: =VLOOKUP($A121,datos!$A$4:$AD$52,11) ->  | F121: =VLOOKUP($A121,datos!$A$4:$AD$52,12) ->  | G121: =VLOOKUP($A121,datos!$A$4:$AD$52,13) ->  | H121: =VLOOKUP($A121,datos!$A$4:$AD$52,14) ->  | I121: =VLOOKUP($A121,datos!$A$4:$AD$52,15) ->  | J121: =SUM(D121:I121) ->  | K121: =(COUNTIF(D121:I121,">0")) -> 0 | L121: =M123 ->  | M121: =J121/K121 ->  | N121: =$J$8-J123 -> 
A122: C19 | B122: =VLOOKUP($A122,datos!$A$4:$AD$52,2) ->  | C122: =VLOOKUP($A122,datos!$A$4:$AD$52,3) ->  | D122: =VLOOKUP($A122,datos!$A$4:$AD$52,10) ->  | E122: =VLOOKUP($A122,datos!$A$4:$AD$52,11) ->  | F122: =VLOOKUP($A122,datos!$A$4:$AD$52,12) ->  | G122: =VLOOKUP($A122,datos!$A$4:$AD$52,13) ->  | H122: =VLOOKUP($A122,datos!$A$4:$AD$52,14) ->  | I122: =VLOOKUP($A122,datos!$A$4:$AD$52,15) ->  | J122: =SUM(D122:I122) ->  | K122: =(COUNTIF(D122:I122,">0")) -> 0 | L122: =M123 ->  | M122: =J122/K122 ->  | N122: 24°
D123: =SUM(D121:D122) ->  | K123: =(COUNTIF(D123:I123,">0"))*2 -> 0 | L123: =M123 ->  | M123: =J123/K123 ->  | P123: =MAX(D98:I98) -> 
L124: =M123 -> 

Sheet TER
A2: CAMPEONATO SUDAMERICANO JUVENIL 2014
A3: TRIOS SUB 20
A5: Cod | B5: Nombre del Jugador | C5: FEDERACION | D5: L1 | E5: L2 | F5: L3 | G5: L4 | H5: L5 | I5: L6 | J5: Serie | L5: =J9 -> 3796 | M5: Prom
A6: j23 | B6: =VLOOKUP($A6,datos!$A$4:$AD$52,2) -> JOAO I. FERREIRA N. | C6: =VLOOKUP($A6,datos!$A$4:$AD$52,3) -> Brasil | D6: =VLOOKUP($A6,datos!$A$4:$AD$52,16) -> 212 | E6: =VLOOKUP($A6,datos!$A$4:$AD$52,17) -> 200 | F6: =VLOOKUP($A6,datos!$A$4:$AD$52,18) -> 256 | G6: =VLOOKUP($A6,datos!$A$4:$AD$52,19) -> 156 | H6: =VLOOKUP($A6,datos!$A$4:$AD$52,20) -> 186 | I6: =VLOOKUP($A6,datos!$A$4:$AD$52,21) -> 194 | J6: =SUM(D6:I6) -> 1204 | K6: =COUNTIF(D6:I6,">0") -> 6 | L6: =J9 -> 3796 | M6: =J6/K6 -> 200.6666667 | N6: dif
A7: j22 | B7: =VLOOKUP($A7,datos!$A$4:$AD$52,2) -> THIAGO FELICETTI | C7: =VLOOKUP($A7,datos!$A$4:$AD$52,3) -> Brasil | D7: =VLOOKUP($A7,datos!$A$4:$AD$52,16) -> 180 | E7: =VLOOKUP($A7,datos!$A$4:$AD$52,17) -> 184 | F7: =VLOOKUP($A7,datos!$A$4:$AD$52,18) -> 233 | G7: =VLOOKUP($A7,datos!$A$4:$AD$52,19) -> 235 | H7: =VLOOKUP($A7,datos!$A$4:$AD$52,20) -> 180 | I7: =VLOOKUP($A7,datos!$A$4:$AD$52,21) -> 162 | J7: =SUM(D7:I7) -> 1174 | K7: =COUNTIF(D7:I7,">0") -> 6 | L7: =J9 -> 3796 | M7: =J7/K7 -> 195.6666667 | N7: =MAX($J$51,$J$45,$J$27,$J$39,$J$21,$J$33,$J$9,$J$15)-J9 -> 0
A8: j20 | B8: =VLOOKUP($A8,datos!$A$4:$AD$52,2) -> BRUNO COSTA S | C8: =VLOOKUP($A8,datos!$A$4:$AD$52,3) -> Brasil | D8: =VLOOKUP($A8,datos!$A$4:$AD$52,16) -> 182 | E8: =VLOOKUP($A8,datos!$A$4:$AD$52,17) -> 277 | F8: =VLOOKUP($A8,datos!$A$4:$AD$52,18) -> 225 | G8: =VLOOKUP($A8,datos!$A$4:$AD$52,19) -> 254 | H8: =VLOOKUP($A8,datos!$A$4:$AD$52,20) -> 267 | I8: =VLOOKUP($A8,datos!$A$4:$AD$52,21) -> 213 | J8: =SUM(D8:I8) -> 1418 | K8: =COUNTIF(D8:I8,">0") -> 6 | L8: =J9 -> 3796 | M8: =J8/K8 -> 236.3333333 | N8: 1
D9: =SUM(D6:D8) -> 574 | E9: 661 | F9: 714 | G9: 645 | H9: 633 | I9: 569 | J9: 3796 | K9: =COUNTIF(D9:I9,">0")*3 -> 18 | L9: =J9 -> 3796 | M9: =J9/K9 -> 210.8888889 | P9: =MAX(D39:I39) -> 631
L10: =J9 -> 3796
A11: Cod | B11: Nombre del Jugador | C11: FEDERACION | D11: L1 | E11: L2 | F11: L3 | G11: L4 | H11: L5 | I11: L6 | J11: Serie | L11: =J15 -> 3670 | M11: Prom
A12: j27 | B12: =VLOOKUP($A12,datos!$A$4:$AD$52,2) -> JORGE FIGUEROA | C12: =VLOOKUP($A12,datos!$A$4:$AD$52,3) -> Colombia | D12: =VLOOKUP($A12,datos!$A$4:$AD$52,16) -> 219 | E12: =VLOOKUP($A12,datos!$A$4:$AD$52,17) -> 175 | F12: =VLOOKUP($A12,datos!$A$4:$AD$52,18) -> 223 | G12: =VLOOKUP($A12,datos!$A$4:$AD$52,19) -> 243 | H12: =VLOOKUP($A12,datos!$A$4:$AD$52,20) -> 214 | I12: =VLOOKUP($A12,datos!$A$4:$AD$52,21) -> 182 | J12: =SUM(D12:I12) -> 1256 | K12: =COUNTIF(D12:I12,">0") -> 6 | L12: =J15 -> 3670 | M12: =J12/K12 -> 209.3333333 | N12: dif
A13: j26 | B13: =VLOOKUP($A13,datos!$A$4:$AD$52,2) -> SEBASTIAN CHARRY | C13: =VLOOKUP($A13,datos!$A$4:$AD$52,3) -> Colombia | D13: =VLOOKUP($A13,datos!$A$4:$AD$52,16) -> 168 | E13: =VLOOKUP($A13,datos!$A$4:$AD$52,17) -> 239 | F13: =VLOOKUP($A13,datos!$A$4:$AD$52,18) -> 211 | G13: =VLOOKUP($A13,datos!$A$4:$AD$52,19) -> 216 | H13: =VLOOKUP($A13,datos!$A$4:$AD$52,20) -> 198 | I13: =VLOOKUP($A13,datos!$A$4:$AD$52,21) -> 193 | J13: =SUM(D13:I13) -> 1225 | K13: =COUNTIF(D13:I13,">0") -> 6 | L13: =J15 -> 3670 | M13: 204.1666667 | N13: =MAX($J$51,$J$45,$J$27,$J$39,$J$21,$J$33,$J$9,$J$15)-J15 -> 126
A14: j24 | B14: =VLOOKUP($A14,datos!$A$4:$AD$52,2) -> CARLOS F. SAAVEDRA | C14: =VLOOKUP($A14,datos!$A$4:$AD$52,3) -> Colombia | D14: =VLOOKUP($A14,datos!$A$4:$AD$52,16) -> 150 | E14: =VLOOKUP($A14,datos!$A$4:$AD$52,17) -> 204 | F14: =VLOOKUP($A14,datos!$A$4:$AD$52,18) -> 217 | G14: =VLOOKUP($A14,datos!$A$4:$AD$52,19) -> 227 | H14: =VLOOKUP($A14,datos!$A$4:$AD$52,20) -> 197 | I14: =VLOOKUP($A14,datos!$A$4:$AD$52,21) -> 194 | J14: =SUM(D14:I14) -> 1189 | K14: =COUNTIF(D14:I14,">0") -> 6 | L14: =J15 -> 3670 | M14: 198.1666667 | N14: 2
D15: =SUM(D12:D14) -> 537 | E15: 618 | F15: 651 | G15: 686 | H15: 609 | I15: 569 | J15: 3670 | K15: =COUNTIF(D15:I15,">0")*3 -> 18 | L15: =J15 -> 3670 | M15: 203.8888889 | P15: =MAX(#REF!) -> 
L16: =J15 -> 3670
A17: Cod | B17: Nombre del Jugador | C17: FEDERACION | D17: L1 | E17: L2 | F17: L3 | G17: L4 | H17: L5 | I17: L6 | J17: Serie | L17: =J21 -> 3439 | M17: Prom
A18: j13 | B18: =VLOOKUP($A18,datos!$A$4:$AD$52,2) -> FRANCO R. GUALINI | C18: =VLOOKUP($A18,datos!$A$4:$AD$52,3) -> Argentina | D18: =VLOOKUP($A18,datos!$A$4:$AD$52,16) -> 187 | E18: =VLOOKUP($A18,datos!$A$4:$AD$52,17) -> 160 | F18: =VLOOKUP($A18,datos!$A$4:$AD$52,18) -> 229 | G18: =VLOOKUP($A18,datos!$A$4:$AD$52,19) -> 203 | H18: =VLOOKUP($A18,datos!$A$4:$AD$52,20) -> 189 | I18: =VLOOKUP($A18,datos!$A$4:$AD$52,21) -> 224 | J18: =SUM(D18:I18) -> 1192 | K18: =COUNTIF(D18:I18,">0") -> 6 | L18: =J21 -> 3439 | M18: =J18/K18 -> 198.6666667 | N18: dif
A19: j14 | B19: =VLOOKUP($A19,datos!$A$4:$AD$52,2) -> FABRICIO E. SANDUAY | C19: =VLOOKUP($A19,datos!$A$4:$AD$52,3) -> Argentina | D19: =VLOOKUP($A19,datos!$A$4:$AD$52,16) -> 202 | E19: =VLOOKUP($A19,datos!$A$4:$AD$52,17) -> 162 | F19: =VLOOKUP($A19,datos!$A$4:$AD$52,18) -> 161 | G19: =VLOOKUP($A19,datos!$A$4:$AD$52,19) -> 176 | H19: =VLOOKUP($A19,datos!$A$4:$AD$52,20) -> 211 | I19: =VLOOKUP($A19,datos!$A$4:$AD$52,21) -> 194 | J19: =SUM(D19:I19) -> 1106 | K19: =COUNTIF(D19:I19,">0") -> 6 | L19: =J21 -> 3439 | M19: 184.3333333 | N19: =MAX($J$51,$J$45,$J$27,$J$39,$J$21,$J$33,$J$9,$J$15)-J21 -> 357
A20: j15 | B20: =VLOOKUP($A20,datos!$A$4:$AD$52,2) -> FERNANDO TAPIA M. | C20: =VLOOKUP($A20,datos!$A$4:$AD$52,3) -> Argentina | D20: =VLOOKUP($A20,datos!$A$4:$AD$52,16) -> 206 | E20: =VLOOKUP($A20,datos!$A$4:$AD$52,17) -> 182 | F20: =VLOOKUP($A20,datos!$A$4:$AD$52,18) -> 179 | G20: =VLOOKUP($A20,datos!$A$4:$AD$52,19) -> 201 | H20: =VLOOKUP($A20,datos!$A$4:$AD$52,20) -> 202 | I20: =VLOOKUP($A20,datos!$A$4:$AD$52,21) -> 171 | J20: =SUM(D20:I20) -> 1141 | K20: =COUNTIF(D20:I20,">0") -> 6 | L20: =J21 -> 3439 | M20: 190.1666667 | N20: 3
D21: =SUM(D18:D20) -> 595 | E21: 504 | F21: 569 | G21: 580 | H21: 602 | I21: 589 | J21: 3439 | K21: =COUNTIF(D21:I21,">0")*3 -> 18 | L21: =J21 -> 3439 | M21: 191.0555556 | P21: =MAX(D21:I21) -> 602
L22: =J21 -> 3439
A23: Cod | B23: Nombre del Jugador | C23: FEDERACION | D23: L1 | E23: L2 | F23: L3 | G23: L4 | H23: L5 | I23: L6 | J23: Serie | L23: =J27 -> 3508 | M23: Prom
A24: j17 | B24: =VLOOKUP($A24,datos!$A$4:$AD$52,2) -> YANNICK ROOS | C24: =VLOOKUP($A24,datos!$A$4:$AD$52,3) -> Aruba | D24: =VLOOKUP($A24,datos!$A$4:$AD$52,16) -> 195 | E24: =VLOOKUP($A24,datos!$A$4:$AD$52,17) -> 180 | F24: =VLOOKUP($A24,datos!$A$4:$AD$52,18) -> 193 | G24: =VLOOKUP($A24,datos!$A$4:$AD$52,19) -> 182 | H24: =VLOOKUP($A24,datos!$A$4:$AD$52,20) -> 233 | I24: =VLOOKUP($A24,datos!$A$4:$AD$52,21) -> 200 | J24: =SUM(D24:I24) -> 1183 | K24: =COUNTIF(D24:I24,">0") -> 6 | L24: =J27 -> 3508 | M24: =J24/K24 -> 197.1666667 | N24: dif
A25: j19 | B25: =VLOOKUP($A25,datos!$A$4:$AD$52,2) -> ELIAS HALABI | C25: =VLOOKUP($A25,datos!$A$4:$AD$52,3) -> Aruba | D25: =VLOOKUP($A25,datos!$A$4:$AD$52,16) -> 178 | E25: =VLOOKUP($A25,datos!$A$4:$AD$52,17) -> 167 | F25: =VLOOKUP($A25,datos!$A$4:$AD$52,18) -> 178 | G25: =VLOOKUP($A25,datos!$A$4:$AD$52,19) -> 210 | H25: =VLOOKUP($A25,datos!$A$4:$AD$52,20) -> 170 | I25: =VLOOKUP($A25,datos!$A$4:$AD$52,21) -> 188 | J25: =SUM(D25:I25) -> 1091 | K25: =COUNTIF(D25:I25,">0") -> 6 | L25: =J27 -> 3508 | M25: 181.8333333 | N25: =MAX($J$51,$J$45,$J$27,$J$39,$J$21,$J$33,$J$9,$J$15)-J27 -> 288
A26: j16 | B26: =VLOOKUP($A26,datos!$A$4:$AD$52,2) -> BRIAN HELMEYER | C26: =VLOOKUP($A26,datos!$A$4:$AD$52,3) -> Aruba | D26: =VLOOKUP($A26,datos!$A$4:$AD$52,16) -> 227 | E26: =VLOOKUP($A26,datos!$A$4:$AD$52,17) -> 245 | F26: =VLOOKUP($A26,datos!$A$4:$AD$52,18) -> 187 | G26: =VLOOKUP($A26,datos!$A$4:$AD$52,19) -> 197 | H26: =VLOOKUP($A26,datos!$A$4:$AD$52,20) -> 211 | I26: =VLOOKUP($A26,datos!$A$4:$AD$52,21) -> 167 | J26: =SUM(D26:I26) -> 1234 | K26: =COUNTIF(D26:I26,">0") -> 6 | L26: =J27 -> 3508 | M26: 205.6666667 | N26: 4
D27: =SUM(D24:D26) -> 600 | E27: 592 | F27: 558 | G27: 589 | H27: 614 | I27: 555 | J27: 3508 | K27: =COUNTIF(D27:I27,">0")*3 -> 18 | L27: =J27 -> 3508 | M27: 194.8888889 | P27: =MAX(D33:I33) -> 595
L28: =J27 -> 3508
A29: Cod | B29: Nombre del Jugador | C29: FEDERACION | D29: L1 | E29: L2 | F29: L3 | G29: L4 | H29: L5 | I29: L6 | J29: Serie | L29: =J33 -> 3182 | M29: Prom
A30: j33 | B30: =VLOOKUP($A30,datos!$A$4:$AD$52,2) -> JUAN ANDRES YUZURIHA | C30: =VLOOKUP($A30,datos!$A$4:$AD$52,3) -> Perú | D30: =VLOOKUP($A30,datos!$A$4:$AD$52,16) -> 233 | E30: =VLOOKUP($A30,datos!$A$4:$AD$52,17) -> 188 | F30: =VLOOKUP($A30,datos!$A$4:$AD$52,18) -> 188 | G30: =VLOOKUP($A30,datos!$A$4:$AD$52,19) -> 170 | H30: =VLOOKUP($A30,datos!$A$4:$AD$52,20) -> 164 | I30: =VLOOKUP($A30,datos!$A$4:$AD$52,21) -> 175 | J30: =SUM(D30:I30) -> 1118 | K30: =COUNTIF(D30:I30,">0") -> 6 | L30: =J33 -> 3182 | M30: =J30/K30 -> 186.3333333 | N30: dif
A31: j32 | B31: =VLOOKUP($A31,datos!$A$4:$AD$52,2) -> ADRIAN GUIBU K. | C31: =VLOOKUP($A31,datos!$A$4:$AD$52,3) -> Perú | D31: =VLOOKUP($A31,datos!$A$4:$AD$52,16) -> 177 | E31: =VLOOKUP($A31,datos!$A$4:$AD$52,17) -> 196 | F31: =VLOOKUP($A31,datos!$A$4:$AD$52,18) -> 172 | G31: =VLOOKUP($A31,datos!$A$4:$AD$52,19) -> 151 | H31: =VLOOKUP($A31,datos!$A$4:$AD$52,20) -> 200 | I31: =VLOOKUP($A31,datos!$A$4:$AD$52,21) -> 148 | J31: =SUM(D31:I31) -> 1044 | K31: =COUNTIF(D31:I31,">0") -> 6 | L31: =J33 -> 3182 | M31: 174 | N31: =MAX($J$51,$J$45,$J$27,$J$39,$J$21,$J$33,$J$9,$J$15)-J33 -> 614
A32: j35 | B32: =VLOOKUP($A32,datos!$A$4:$AD$52,2) -> RENZO GUIBU K. | C32: =VLOOKUP($A32,datos!$A$4:$AD$52,3) -> Perú | D32: =VLOOKUP($A32,datos!$A$4:$AD$52,16) -> 148 | E32: =VLOOKUP($A32,datos!$A$4:$AD$52,17) -> 211 | F32: =VLOOKUP($A32,datos!$A$4:$AD$52,18) -> 157 | G32: =VLOOKUP($A32,datos!$A$4:$AD$52,19) -> 178 | H32: =VLOOKUP($A32,datos!$A$4:$AD$52,20) -> 138 | I32: =VLOOKUP($A32,datos!$A$4:$AD$52,21) -> 188 | J32: =SUM(D32:I32) -> 1020 | K32: =COUNTIF(D32:I32,">0") -> 6 | L32: =J33 -> 3182 | M32: 170 | N32: 5
D33: =SUM(D30:D32) -> 558 | E33: 595 | F33: 517 | G33: 499 | H33: 502 | I33: 511 | J33: 3182 | K33: =COUNTIF(D33:I33,">0")*3 -> 18 | L33: =J33 -> 3182 | M33: 176.7777778 | P33: =MAX(D9:I9) -> 714
L34: =J33 -> 3182
A35: Cod | B35: Nombre del Jugador | C35: FEDERACION | D35: L1 | E35: L2 | F35: L3 | G35: L4 | H35: L5 | I35: L6 | J35: Serie | L35: =J39 -> 3049 | M35: Prom
A36: j12 | B36: =VLOOKUP($A36,datos!$A$4:$AD$52,2) -> AGUSTIN LEANDRO A. | C36: =VLOOKUP($A36,datos!$A$4:$AD$52,3) -> Argentina | D36: =VLOOKUP($A36,datos!$A$4:$AD$52,16) -> 138 | E36: =VLOOKUP($A36,datos!$A$4:$AD$52,17) -> 177 | F36: =VLOOKUP($A36,datos!$A$4:$AD$52,18) -> 180 | G36: =VLOOKUP($A36,datos!$A$4:$AD$52,19) -> 184 | H36: =VLOOKUP($A36,datos!$A$4:$AD$52,20) -> 221 | I36: =VLOOKUP($A36,datos!$A$4:$AD$52,21) -> 153 | J36: =SUM(D36:I36) -> 1053 | K36: =COUNTIF(D36:I36,">0") -> 6 | L36: =J39 -> 3049 | M36: =J36/K36 -> 175.5 | N36: dif
A37: j34 | B37: =VLOOKUP($A37,datos!$A$4:$AD$52,2) -> KEIJI M. CAJACHACAHUA M. | C37: =VLOOKUP($A37,datos!$A$4:$AD$52,3) -> Perú | D37: =VLOOKUP($A37,datos!$A$4:$AD$52,16) -> 245 | E37: =VLOOKUP($A37,datos!$A$4:$AD$52,17) -> 187 | F37: =VLOOKUP($A37,datos!$A$4:$AD$52,18) -> 166 | G37: =VLOOKUP($A37,datos!$A$4:$AD$52,19) -> 169 | H37: =VLOOKUP($A37,datos!$A$4:$AD$52,20) -> 234 | I37: =VLOOKUP($A37,datos!$A$4:$AD$52,21) -> 206 | J37: =SUM(D37:I37) -> 1207 | K37: =COUNTIF(D37:I37,">0") -> 6 | L37: =J39 -> 3049 | M37: 201.1666667 | N37: =MAX($J$51,$J$45,$J$27,$J$39,$J$21,$J$33,$J$9,$J$15)-J39 -> 747
A38: j31 | B38: =VLOOKUP($A38,datos!$A$4:$AD$52,2) -> LUIS JEREZ G. | C38: =VLOOKUP($A38,datos!$A$4:$AD$52,3) -> Chile | D38: =VLOOKUP($A38,datos!$A$4:$AD$52,16) -> 125 | E38: =VLOOKUP($A38,datos!$A$4:$AD$52,17) -> 115 | F38: =VLOOKUP($A38,datos!$A$4:$AD$52,18) -> 89 | G38: =VLOOKUP($A38,datos!$A$4:$AD$52,19) -> 133 | H38: =VLOOKUP($A38,datos!$A$4:$AD$52,20) -> 176 | I38: =VLOOKUP($A38,datos!$A$4:$AD$52,21) -> 151 | J38: =SUM(D38:I38) -> 789 | K38: =COUNTIF(D38:I38,">0") -> 6 | L38: =J39 -> 3049 | M38: 131.5 | N38: 6
D39: =SUM(D36:D38) -> 508 | E39: 479 | F39: 435 | G39: 486 | H39: 631 | I39: 510 | J39: 3049 | K39: =COUNTIF(D39:I39,">0")*3 -> 18 | L39: =J39 -> 3049 | M39: 169.3888889 | P39: =MAX(D15:I15) -> 686
L40: =J39 -> 3049
A41: Cod | B41: Nombre del Jugador | C41: FEDERACION | D41: L1 | E41: L2 | F41: L3 | G41: L4 | H41: L5 | I41: L6 | J41: Serie | L41: =J45 -> 3065 | M41: Prom
A42: j28 | B42: =VLOOKUP($A42,datos!$A$4:$AD$52,2) -> BASTIAN MALDONADO R. | C42: =VLOOKUP($A42,datos!$A$4:$AD$52,3) -> Chile | D42: =VLOOKUP($A42,datos!$A$4:$AD$52,16) -> 182 | E42: =VLOOKUP($A42,datos!$A$4:$AD$52,17) -> 162 | F42: =VLOOKUP($A42,datos!$A$4:$AD$52,18) -> 222 | G42: =VLOOKUP($A42,datos!$A$4:$AD$52,19) -> 234 | H42: =VLOOKUP($A42,datos!$A$4:$AD$52,20) -> 182 | I42: =VLOOKUP($A42,datos!$A$4:$AD$52,21) -> 187 | J42: =SUM(D42:I42) -> 1169 | K42: =COUNTIF(D42:I42,">0") -> 6 | L42: =J45 -> 3065 | M42: =J42/K42 -> 194.8333333 | N42: dif
A43: j30 | B43: =VLOOKUP($A43,datos!$A$4:$AD$52,2) -> IVAN VELIZ H. | C43: =VLOOKUP($A43,datos!$A$4:$AD$52,3) -> Chile | D43: =VLOOKUP($A43,datos!$A$4:$AD$52,16) -> 131 | E43: =VLOOKUP($A43,datos!$A$4:$AD$52,17) -> 153 | F43: =VLOOKUP($A43,datos!$A$4:$AD$52,18) -> 110 | G43: =VLOOKUP($A43,datos!$A$4:$AD$52,19) -> 177 | H43: =VLOOKUP($A43,datos!$A$4:$AD$52,20) -> 145 | I43: =VLOOKUP($A43,datos!$A$4:$AD$52,21) -> 142 | J43: =SUM(D43:I43) -> 858 | K43: =COUNTIF(D43:I43,">0") -> 6 | L43: =J45 -> 3065 | M43: 143 | N43: =MAX($J$51,$J$45,$J$27,$J$39,$J$21,$J$33,$J$9,$J$15)-J45 -> 731
A44: j29 | B44: =VLOOKUP($A44,datos!$A$4:$AD$52,2) -> MATIAS NAZAR G. | C44: =VLOOKUP($A44,datos!$A$4:$AD$52,3) -> Chile | D44: =VLOOKUP($A44,datos!$A$4:$AD$52,16) -> 199 | E44: =VLOOKUP($A44,datos!$A$4:$AD$52,17) -> 158 | F44: =VLOOKUP($A44,datos!$A$4:$AD$52,18) -> 180 | G44: =VLOOKUP($A44,datos!$A$4:$AD$52,19) -> 212 | H44: =VLOOKUP($A44,datos!$A$4:$AD$52,20) -> 145 | I44: =VLOOKUP($A44,datos!$A$4:$AD$52,21) -> 144 | J44: =SUM(D44:I44) -> 1038 | K44: =COUNTIF(D44:I44,">0") -> 6 | L44: =J45 -> 3065 | M44: 173 | N44: 7
D45: =SUM(D42:D44) -> 512 | E45: 473 | F45: 512 | G45: 623 | H45: 472 | I45: 473 | J45: 3065 | K45: =COUNTIF(D45:I45,">0")*3 -> 18 | L45: =J45 -> 3065 | M45: 170.2777778
L46: =J45 -> 3065
A47: Cod | B47: Nombre del Jugador | C47: FEDERACION | D47: L1 | E47: L2 | F47: L3 | G47: L4 | H47: L5 | I47: L6 | J47: Serie | L47: =J51 -> 2627 | M47: Prom
A48: j38 | B48: =VLOOKUP($A48,datos!$A$4:$AD$52,2) -> FELIPE FUENTES F. | C48: =VLOOKUP($A48,datos!$A$4:$AD$52,3) -> Uruguay | D48: =VLOOKUP($A48,datos!$A$4:$AD$52,16) -> 146 | E48: =VLOOKUP($A48,datos!$A$4:$AD$52,17) -> 130 | F48: =VLOOKUP($A48,datos!$A$4:$AD$52,18) -> 108 | G48: =VLOOKUP($A48,datos!$A$4:$AD$52,19) -> 154 | H48: =VLOOKUP($A48,datos!$A$4:$AD$52,20) -> 142 | I48: =VLOOKUP($A48,datos!$A$4:$AD$52,21) -> 194 | J48: =SUM(D48:I48) -> 874 | K48: =COUNTIF(D48:I48,">0") -> 6 | L48: =J51 -> 2627 | M48: =J48/K48 -> 145.6666667 | N48: dif
A49: j36 | B49: =VLOOKUP($A49,datos!$A$4:$AD$52,2) -> MATIAS DA MOTTA L. | C49: =VLOOKUP($A49,datos!$A$4:$AD$52,3) -> Uruguay | D49: =VLOOKUP($A49,datos!$A$4:$AD$52,16) -> 147 | E49: =VLOOKUP($A49,datos!$A$4:$AD$52,17) -> 157 | F49: =VLOOKUP($A49,datos!$A$4:$AD$52,18) -> 144 | G49: =VLOOKUP($A49,datos!$A$4:$AD$52,19) -> 137 | H49: =VLOOKUP($A49,datos!$A$4:$AD$52,20) -> 195 | I49: =VLOOKUP($A49,datos!$A$4:$AD$52,21) -> 137 | J49: =SUM(D49:I49) -> 917 | K49: =COUNTIF(D49:I49,">0") -> 6 | L49: =J51 -> 2627 | M49: 152.8333333 | N49: =MAX($J$51,$J$45,$J$27,$J$39,$J$21,$J$33,$J$9,$J$15)-J51 -> 1169
A50: j37 | B50: =VLOOKUP($A50,datos!$A$4:$AD$52,2) -> ALFONSO RODRIGUEZ L. | C50: =VLOOKUP($A50,datos!$A$4:$AD$52,3) -> Uruguay | D50: =VLOOKUP($A50,datos!$A$4:$AD$52,16) -> 194 | E50: =VLOOKUP($A50,datos!$A$4:$AD$52,17) -> 137 | F50: =VLOOKUP($A50,datos!$A$4:$AD$52,18) -> 128 | G50: =VLOOKUP($A50,datos!$A$4:$AD$52,19) -> 112 | H50: =VLOOKUP($A50,datos!$A$4:$AD$52,20) -> 121 | I50: =VLOOKUP($A50,datos!$A$4:$AD$52,21) -> 144 | J50: =SUM(D50:I50) -> 836 | K50: =COUNTIF(D50:I50,">0") -> 6 | L50: =J51 -> 2627 | M50: 139.3333333 | N50: 8
D51: =SUM(D48:D50) -> 487 | E51: 424 | F51: 380 | G51: 403 | H51: 458 | I51: 475 | J51: 2627 | K51: =COUNTIF(D51:I51,">0")*3 -> 18 | L51: =J51 -> 2627 | M51: 145.9444444
L52: =J51 -> 2627

Sheet cuarteto
A2: CAMPEONATO SUDAMERICANO JUVENIL 2014
A3: EQUIPOS SUB 20
B4: SANTIAGO DE CHILE - DEL 12 AL 18 DE ABRIL DE 2014
A5: Cod | B5: Nombre del Jugador | C5: FEDERACION | D5: L1 | E5: L2 | F5: L3 | G5: L4 | H5: L5 | I5: L6 | J5: Serie | K5: =J10 -> 4631 | M5: Prom
A6: j24 | B6: =VLOOKUP($A6,datos!$A$4:$AD$52,2) -> CARLOS F. SAAVEDRA | C6: =VLOOKUP($A6,datos!$A$4:$AD$52,3) -> Colombia | D6: =VLOOKUP($A6,datos!$A$4:$AD$52,22) -> 164 | E6: =VLOOKUP($A6,datos!$A$4:$AD$52,23) -> 167 | F6: =VLOOKUP($A6,datos!$A$4:$AD$52,24) -> 233 | G6: =VLOOKUP($A6,datos!$A$4:$AD$52,25) -> 185 | H6: =VLOOKUP($A6,datos!$A$4:$AD$52,26) -> 173 | I6: =VLOOKUP($A6,datos!$A$4:$AD$52,27) -> 213 | J6: =SUM(D6:I6) -> 1135 | K6: =J10 -> 4631 | L6: =(COUNTIF(D6:I6,">0")) -> 6 | M6: =J6/L6 -> 189.1666667
A7: j25 | B7: =VLOOKUP($A7,datos!$A$4:$AD$52,2) -> SEBASTIAN DONADO | C7: =VLOOKUP($A7,datos!$A$4:$AD$52,3) -> Colombia | D7: =VLOOKUP($A7,datos!$A$4:$AD$52,22) -> 170 | E7: =VLOOKUP($A7,datos!$A$4:$AD$52,23) -> 160 | F7: =VLOOKUP($A7,datos!$A$4:$AD$52,24) -> 168 | G7: =VLOOKUP($A7,datos!$A$4:$AD$52,25) -> 175 | H7: =VLOOKUP($A7,datos!$A$4:$AD$52,26) -> 206 | I7: =VLOOKUP($A7,datos!$A$4:$AD$52,27) -> 210 | J7: =SUM(D7:I7) -> 1089 | K7: =J10 -> 4631 | L7: =(COUNTIF(D7:I7,">0")) -> 6 | M7: =J7/L7 -> 181.5 | N7: dif
A8: j26 | B8: =VLOOKUP($A8,datos!$A$4:$AD$52,2) -> SEBASTIAN CHARRY | C8: =VLOOKUP($A8,datos!$A$4:$AD$52,3) -> Colombia | D8: =VLOOKUP($A8,datos!$A$4:$AD$52,22) -> 215 | E8: =VLOOKUP($A8,datos!$A$4:$AD$52,23) -> 176 | F8: =VLOOKUP($A8,datos!$A$4:$AD$52,24) -> 178 | G8: =VLOOKUP($A8,datos!$A$4:$AD$52,25) -> 203 | H8: =VLOOKUP($A8,datos!$A$4:$AD$52,26) -> 224 | I8: =VLOOKUP($A8,datos!$A$4:$AD$52,27) -> 186 | J8: =SUM(D8:I8) -> 1182 | K8: =J10 -> 4631 | L8: =(COUNTIF(D8:I8,">0")) -> 6 | M8: =J8/L8 -> 197 | N8: =MAX($J$45,$J$38,$J$31,$J$17,$J$10,$J$24,$J$52)-J10 -> 0
A9: j27 | B9: =VLOOKUP($A9,datos!$A$4:$AD$52,2) -> JORGE FIGUEROA | C9: =VLOOKUP($A9,datos!$A$4:$AD$52,3) -> Colombia | D9: =VLOOKUP($A9,datos!$A$4:$AD$52,22) -> 152 | E9: =VLOOKUP($A9,datos!$A$4:$AD$52,23) -> 224 | F9: =VLOOKUP($A9,datos!$A$4:$AD$52,24) -> 183 | G9: =VLOOKUP($A9,datos!$A$4:$AD$52,25) -> 226 | H9: =VLOOKUP($A9,datos!$A$4:$AD$52,26) -> 236 | I9: =VLOOKUP($A9,datos!$A$4:$AD$52,27) -> 204 | J9: =SUM(D9:I9) -> 1225 | K9: =J10 -> 4631 | L9: =(COUNTIF(D9:I9,">0")) -> 6 | M9: =J9/L9 -> 204.1666667 | N9: 1°
D10: =SUM(D6:D9) -> 701 | E10: 727 | F10: 762 | G10: 789 | H10: 839 | I10: 813 | J10: 4631 | K10: =J10 -> 4631 | L10: =(COUNTIF(D10:I10,">0"))*6 -> 36 | M10: =J10/L10 -> 128.6388889 | P10: =MAX(D10:I10) -> 839
K11: =J10 -> 4631
A12: Cod | B12: Nombre del Jugador | C12: FEDERACION | D12: L1 | E12: L2 | F12: L3 | G12: L4 | H12: L5 | I12: L6 | J12: Serie | K12: =J17 -> 4572 | M12: Prom
A13: j16 | B13: =VLOOKUP($A13,datos!$A$4:$AD$52,2) -> BRIAN HELMEYER | C13: =VLOOKUP($A13,datos!$A$4:$AD$52,3) -> Aruba | D13: =VLOOKUP($A13,datos!$A$4:$AD$52,22) -> 185 | E13: =VLOOKUP($A13,datos!$A$4:$AD$52,23) -> 233 | F13: =VLOOKUP($A13,datos!$A$4:$AD$52,24) -> 188 | G13: =VLOOKUP($A13,datos!$A$4:$AD$52,25) -> 185 | H13: =VLOOKUP($A13,datos!$A$4:$AD$52,26) -> 203 | I13: =VLOOKUP($A13,datos!$A$4:$AD$52,27) -> 188 | J13: =SUM(D13:I13) -> 1182 | K13: =J17 -> 4572 | L13: =(COUNTIF(D13:I13,">0")) -> 6 | M13: =J13/L13 -> 197
A14: j17 | B14: =VLOOKUP($A14,datos!$A$4:$AD$52,2) -> YANNICK ROOS | C14: =VLOOKUP($A14,datos!$A$4:$AD$52,3) -> Aruba | D14: =VLOOKUP($A14,datos!$A$4:$AD$52,22) -> 178 | E14: =VLOOKUP($A14,datos!$A$4:$AD$52,23) -> 195 | F14: =VLOOKUP($A14,datos!$A$4:$AD$52,24) -> 172 | G14: =VLOOKUP($A14,datos!$A$4:$AD$52,25) -> 212 | H14: =VLOOKUP($A14,datos!$A$4:$AD$52,26) -> 212 | I14: =VLOOKUP($A14,datos!$A$4:$AD$52,27) -> 192 | J14: =SUM(D14:I14) -> 1161 | K14: =J17 -> 4572 | L14: =(COUNTIF(D14:I14,">0")) -> 6 | M14: =J14/L14 -> 193.5 | N14: dif
A15: j18 | B15: =VLOOKUP($A15,datos!$A$4:$AD$52,2) -> OSMAR BISLIP | C15: =VLOOKUP($A15,datos!$A$4:$AD$52,3) -> Aruba | D15: =VLOOKUP($A15,datos!$A$4:$AD$52,22) -> 159 | E15: =VLOOKUP($A15,datos!$A$4:$AD$52,23) -> 195 | F15: =VLOOKUP($A15,datos!$A$4:$AD$52,24) -> 172 | G15: =VLOOKUP($A15,datos!$A$4:$AD$52,25) -> 158 | H15: =VLOOKUP($A15,datos!$A$4:$AD$52,26) -> 221 | I15: =VLOOKUP($A15,datos!$A$4:$AD$52,27) -> 173 | J15: =SUM(D15:I15) -> 1078 | K15: =J17 -> 4572 | L15: =(COUNTIF(D15:I15,">0")) -> 6 | M15: =J15/L15 -> 179.6666667 | N15: =MAX($J$45,$J$38,$J$31,$J$17,$J$10,$J$24,$J$52)-J17 -> 59
A16: j19 | B16: =VLOOKUP($A16,datos!$A$4:$AD$52,2) -> ELIAS HALABI | C16: =VLOOKUP($A16,datos!$A$4:$AD$52,3) -> Aruba | D16: =VLOOKUP($A16,datos!$A$4:$AD$52,22) -> 171 | E16: =VLOOKUP($A16,datos!$A$4:$AD$52,23) -> 171 | F16: =VLOOKUP($A16,datos!$A$4:$AD$52,24) -> 227 | G16: =VLOOKUP($A16,datos!$A$4:$AD$52,25) -> 229 | H16: =VLOOKUP($A16,datos!$A$4:$AD$52,26) -> 159 | I16: =VLOOKUP($A16,datos!$A$4:$AD$52,27) -> 194 | J16: =SUM(D16:I16) -> 1151 | K16: =J17 -> 4572 | L16: =(COUNTIF(D16:I16,">0")) -> 6 | M16: =J16/L16 -> 191.8333333 | N16: 2°
D17: =SUM(D13:D16) -> 693 | E17: 794 | F17: 759 | G17: 784 | H17: 795 | I17: 747 | J17: 4572 | K17: =J17 -> 4572 | L17: =(COUNTIF(D17:I17,">0"))*6 -> 36 | M17: =J17/L17 -> 127 | P17: =MAX(D17:I17) -> 795
K18: =J17 -> 4572
A19: Cod | B19: Nombre del Jugador | C19: FEDERACION | D19: L1 | E19: L2 | F19: L3 | G19: L4 | H19: L5 | I19: L6 | J19: Serie | K19: =J24 -> 4520 | M19: Prom
A20: j12 | B20: =VLOOKUP($A20,datos!$A$4:$AD$52,2) -> AGUSTIN LEANDRO A. | C20: =VLOOKUP($A20,datos!$A$4:$AD$52,3) -> Argentina | D20: =VLOOKUP($A20,datos!$A$4:$AD$52,22) -> 188 | E20: =VLOOKUP($A20,datos!$A$4:$AD$52,23) -> 199 | F20: =VLOOKUP($A20,datos!$A$4:$AD$52,24) -> 195 | G20: =VLOOKUP($A20,datos!$A$4:$AD$52,25) -> 181 | H20: =VLOOKUP($A20,datos!$A$4:$AD$52,26) -> 191 | I20: =VLOOKUP($A20,datos!$A$4:$AD$52,27) -> 245 | J20: =SUM(D20:I20) -> 1199 | K20: =J24 -> 4520 | L20: =(COUNTIF(D20:I20,">0")) -> 6 | M20: =J20/L20 -> 199.8333333
A21: j13 | B21: =VLOOKUP($A21,datos!$A$4:$AD$52,2) -> FRANCO R. GUALINI | C21: =VLOOKUP($A21,datos!$A$4:$AD$52,3) -> Argentina | D21: =VLOOKUP($A21,datos!$A$4:$AD$52,22) -> 178 | E21: =VLOOKUP($A21,datos!$A$4:$AD$52,23) -> 234 | F21: =VLOOKUP($A21,datos!$A$4:$AD$52,24) -> 156 | G21: =VLOOKUP($A21,datos!$A$4:$AD$52,25) -> 226 | H21: =VLOOKUP($A21,datos!$A$4:$AD$52,26) -> 162 | I21: =VLOOKUP($A21,datos!$A$4:$AD$52,27) -> 155 | J21: =SUM(D21:I21) -> 1111 | K21: =J24 -> 4520 | L21: =(COUNTIF(D21:I21,">0")) -> 6 | M21: =J21/L21 -> 185.1666667 | N21: dif
A22: j14 | B22: =VLOOKUP($A22,datos!$A$4:$AD$52,2) -> FABRICIO E. SANDUAY | C22: =VLOOKUP($A22,datos!$A$4:$AD$52,3) -> Argentina | D22: =VLOOKUP($A22,datos!$A$4:$AD$52,22) -> 203 | E22: =VLOOKUP($A22,datos!$A$4:$AD$52,23) -> 171 | F22: =VLOOKUP($A22,datos!$A$4:$AD$52,24) -> 209 | G22: =VLOOKUP($A22,datos!$A$4:$AD$52,25) -> 178 | H22: =VLOOKUP($A22,datos!$A$4:$AD$52,26) -> 126 | I22: =VLOOKUP($A22,datos!$A$4:$AD$52,27) -> 179 | J22: =SUM(D22:I22) -> 1066 | K22: =J24 -> 4520 | L22: =(COUNTIF(D22:I22,">0")) -> 6 | M22: =J22/L22 -> 177.6666667 | N22: =MAX($J$45,$J$38,$J$31,$J$17,$J$10,$J$24,$J$52)-J24 -> 111
A23: j15 | B23: =VLOOKUP($A23,datos!$A$4:$AD$52,2) -> FERNANDO TAPIA M. | C23: =VLOOKUP($A23,datos!$A$4:$AD$52,3) -> Argentina | D23: =VLOOKUP($A23,datos!$A$4:$AD$52,22) -> 251 | E23: =VLOOKUP($A23,datos!$A$4:$AD$52,23) -> 171 | F23: =VLOOKUP($A23,datos!$A$4:$AD$52,24) -> 184 | G23: =VLOOKUP($A23,datos!$A$4:$AD$52,25) -> 192 | H23: =VLOOKUP($A23,datos!$A$4:$AD$52,26) -> 165 | I23: =VLOOKUP($A23,datos!$A$4:$AD$52,27) -> 181 | J23: =SUM(D23:I23) -> 1144 | K23: =J24 -> 4520 | L23: =(COUNTIF(D23:I23,">0")) -> 6 | M23: =J23/L23 -> 190.6666667 | N23: 3°
D24: =SUM(D20:D23) -> 820 | E24: 775 | F24: 744 | G24: 777 | H24: 644 | I24: 760 | J24: 4520 | K24: =J24 -> 4520 | L24: =(COUNTIF(D24:I24,">0"))*6 -> 36 | M24: =J24/L24 -> 125.5555556 | P24: =MAX(D24:I24) -> 820
K25: =J24 -> 4520
A26: Cod | B26: Nombre del Jugador | C26: FEDERACION | D26: L1 | E26: L2 | F26: L3 | G26: L4 | H26: L5 | I26: L6 | J26: Serie | K26: =J31 -> 4382 | M26: Prom
A27: j20 | B27: =VLOOKUP($A27,datos!$A$4:$AD$52,2) -> BRUNO COSTA S | C27: =VLOOKUP($A27,datos!$A$4:$AD$52,3) -> Brasil | D27: =VLOOKUP($A27,datos!$A$4:$AD$52,22) -> 221 | E27: =VLOOKUP($A27,datos!$A$4:$AD$52,23) -> 190 | F27: =VLOOKUP($A27,datos!$A$4:$AD$52,24) -> 222 | G27: =VLOOKUP($A27,datos!$A$4:$AD$52,25) -> 162 | H27: =VLOOKUP($A27,datos!$A$4:$AD$52,26) -> 172 | I27: =VLOOKUP($A27,datos!$A$4:$AD$52,27) -> 203 | J27: =SUM(D27:I27) -> 1170 | K27: =J31 -> 4382 | L27: =(COUNTIF(D27:I27,">0")) -> 6 | M27: =J27/L27 -> 195
A28: j21 | B28: =VLOOKUP($A28,datos!$A$4:$AD$52,2) -> BERNARDO ABREU | C28: =VLOOKUP($A28,datos!$A$4:$AD$52,3) -> Brasil | D28: =VLOOKUP($A28,datos!$A$4:$AD$52,22) -> 150 | E28: =VLOOKUP($A28,datos!$A$4:$AD$52,23) -> 176 | F28: =VLOOKUP($A28,datos!$A$4:$AD$52,24) -> 181 | G28: =VLOOKUP($A28,datos!$A$4:$AD$52,25) -> 156 | H28: =VLOOKUP($A28,datos!$A$4:$AD$52,26) -> 193 | I28: =VLOOKUP($A28,datos!$A$4:$AD$52,27) -> 205 | J28: =SUM(D28:I28) -> 1061 | K28: =J31 -> 4382 | L28: =(COUNTIF(D28:I28,">0")) -> 6 | M28: =J28/L28 -> 176.8333333 | N28: dif
A29: j22 | B29: =VLOOKUP($A29,datos!$A$4:$AD$52,2) -> THIAGO FELICETTI | C29: =VLOOKUP($A29,datos!$A$4:$AD$52,3) -> Brasil | D29: =VLOOKUP($A29,datos!$A$4:$AD$52,22) -> 210 | E29: =VLOOKUP($A29,datos!$A$4:$AD$52,23) -> 158 | F29: =VLOOKUP($A29,datos!$A$4:$AD$52,24) -> 227 | G29: =VLOOKUP($A29,datos!$A$4:$AD$52,25) -> 161 | H29: =VLOOKUP($A29,datos!$A$4:$AD$52,26) -> 145 | I29: =VLOOKUP($A29,datos!$A$4:$AD$52,27) -> 171 | J29: =SUM(D29:I29) -> 1072 | K29: =J31 -> 4382 | L29: =(COUNTIF(D29:I29,">0")) -> 6 | M29: =J29/L29 -> 178.6666667 | N29: =MAX($J$45,$J$38,$J$31,$J$17,$J$10,$J$24,$J$52)-J31 -> 249
A30: j23 | B30: =VLOOKUP($A30,datos!$A$4:$AD$52,2) -> JOAO I. FERREIRA N. | C30: =VLOOKUP($A30,datos!$A$4:$AD$52,3) -> Brasil | D30: =VLOOKUP($A30,datos!$A$4:$AD$52,22) -> 148 | E30: =VLOOKUP($A30,datos!$A$4:$AD$52,23) -> 212 | F30: =VLOOKUP($A30,datos!$A$4:$AD$52,24) -> 143 | G30: =VLOOKUP($A30,datos!$A$4:$AD$52,25) -> 190 | H30: =VLOOKUP($A30,datos!$A$4:$AD$52,26) -> 194 | I30: =VLOOKUP($A30,datos!$A$4:$AD$52,27) -> 192 | J30: =SUM(D30:I30) -> 1079 | K30: =J31 -> 4382 | L30: =(COUNTIF(D30:I30,">0")) -> 6 | M30: =J30/L30 -> 179.8333333 | N30: 4°
D31: =SUM(D27:D30) -> 729 | E31: 736 | F31: 773 | G31: 669 | H31: 704 | I31: 771 | J31: 4382 | K31: =J31 -> 4382 | L31: =(COUNTIF(D31:I31,">0"))*6 -> 36 | M31: =J31/L31 -> 121.7222222 | P31: =MAX(D31:I31) -> 773
K32: =J31 -> 4382
A33: Cod | B33: Nombre del Jugador | C33: FEDERACION | D33: L1 | E33: L2 | F33: L3 | G33: L4 | H33: L5 | I33: L6 | J33: Serie | K33: =J38 -> 4336 | M33: Prom
A34: j32 | B34: =VLOOKUP($A34,datos!$A$4:$AD$52,2) -> ADRIAN GUIBU K. | C34: =VLOOKUP($A34,datos!$A$4:$AD$52,3) -> Perú | D34: =VLOOKUP($A34,datos!$A$4:$AD$52,22) -> 156 | E34: =VLOOKUP($A34,datos!$A$4:$AD$52,23) -> 158 | F34: =VLOOKUP($A34,datos!$A$4:$AD$52,24) -> 222 | G34: =VLOOKUP($A34,datos!$A$4:$AD$52,25) -> 222 | H34: =VLOOKUP($A34,datos!$A$4:$AD$52,26) -> 195 | I34: =VLOOKUP($A34,datos!$A$4:$AD$52,27) -> 191 | J34: =SUM(D34:I34) -> 1144 | K34: =J38 -> 4336 | L34: =(COUNTIF(D34:I34,">0")) -> 6 | M34: =J34/L34 -> 190.6666667 | P34: =MAX(P5:P32) -> 839
A35: j33 | B35: =VLOOKUP($A35,datos!$A$4:$AD$52,2) -> JUAN ANDRES YUZURIHA | C35: =VLOOKUP($A35,datos!$A$4:$AD$52,3) -> Perú | D35: =VLOOKUP($A35,datos!$A$4:$AD$52,22) -> 186 | E35: =VLOOKUP($A35,datos!$A$4:$AD$52,23) -> 187 | F35: =VLOOKUP($A35,datos!$A$4:$AD$52,24) -> 222 | G35: =VLOOKUP($A35,datos!$A$4:$AD$52,25) -> 211 | H35: =VLOOKUP($A35,datos!$A$4:$AD$52,26) -> 234 | I35: =VLOOKUP($A35,datos!$A$4:$AD$52,27) -> 171 | J35: =SUM(D35:I35) -> 1211 | K35: =J38 -> 4336 | L35: =(COUNTIF(D35:I35,">0")) -> 6 | M35: =J35/L35 -> 201.8333333 | N35: dif
A36: j34 | B36: =VLOOKUP($A36,datos!$A$4:$AD$52,2) -> KEIJI M. CAJACHACAHUA M. | C36: =VLOOKUP($A36,datos!$A$4:$AD$52,3) -> Perú | D36: =VLOOKUP($A36,datos!$A$4:$AD$52,22) -> 134 | E36: =VLOOKUP($A36,datos!$A$4:$AD$52,23) -> 138 | F36: =VLOOKUP($A36,datos!$A$4:$AD$52,24) -> 134 | G36: =VLOOKUP($A36,datos!$A$4:$AD$52,25) -> 139 | H36: =VLOOKUP($A36,datos!$A$4:$AD$52,26) -> 135 | I36: =VLOOKUP($A36,datos!$A$4:$AD$52,27) -> 200 | J36: =SUM(D36:I36) -> 880 | K36: =J38 -> 4336 | L36: =(COUNTIF(D36:I36,">0")) -> 6 | M36: =J36/L36 -> 146.6666667 | N36: =MAX($J$45,$J$38,$J$31,$J$17,$J$10,$J$24,$J$52)-J38 -> 295
A37: j35 | B37: =VLOOKUP($A37,datos!$A$4:$AD$52,2) -> RENZO GUIBU K. | C37: =VLOOKUP($A37,datos!$A$4:$AD$52,3) -> Perú | D37: =VLOOKUP($A37,datos!$A$4:$AD$52,22) -> 233 | E37: =VLOOKUP($A37,datos!$A$4:$AD$52,23) -> 168 | F37: =VLOOKUP($A37,datos!$A$4:$AD$52,24) -> 200 | G37: =VLOOKUP($A37,datos!$A$4:$AD$52,25) -> 179 | H37: =VLOOKUP($A37,datos!$A$4:$AD$52,26) -> 154 | I37: =VLOOKUP($A37,datos!$A$4:$AD$52,27) -> 167 | J37: =SUM(D37:I37) -> 1101 | K37: =J38 -> 4336 | L37: =(COUNTIF(D37:I37,">0")) -> 6 | M37: =J37/L37 -> 183.5 | N37: 5°
D38: =SUM(D34:D37) -> 709 | E38: 651 | F38: 778 | G38: 751 | H38: 718 | I38: 729 | J38: 4336 | K38: =J38 -> 4336 | L38: =(COUNTIF(D38:I38,">0"))*6 -> 36 | M38: =J38/L38 -> 120.4444444 | P38: =MAX(D38:I38) -> 778
K39: =J38 -> 4336
A40: Cod | B40: Nombre del Jugador | C40: FEDERACION | D40: L1 | E40: L2 | F40: L3 | G40: L4 | H40: L5 | I40: L6 | J40: Serie | K40: =J45 -> 3776 | M40: Prom
A41: j28 | B41: =VLOOKUP($A41,datos!$A$4:$AD$52,2) -> BASTIAN MALDONADO R. | C41: =VLOOKUP($A41,datos!$A$4:$AD$52,3) -> Chile | D41: =VLOOKUP($A41,datos!$A$4:$AD$52,22) -> 148 | E41: =VLOOKUP($A41,datos!$A$4:$AD$52,23) -> 167 | F41: =VLOOKUP($A41,datos!$A$4:$AD$52,24) -> 205 | G41: =VLOOKUP($A41,datos!$A$4:$AD$52,25) -> 200 | H41: =VLOOKUP($A41,datos!$A$4:$AD$52,26) -> 209 | I41: =VLOOKUP($A41,datos!$A$4:$AD$52,27) -> 161 | J41: =SUM(D41:I41) -> 1090 | K41: =J45 -> 3776 | L41: =(COUNTIF(D41:I41,">0")) -> 6 | M41: =J41/L41 -> 181.6666667
A42: j29 | B42: =VLOOKUP($A42,datos!$A$4:$AD$52,2) -> MATIAS NAZAR G. | C42: =VLOOKUP($A42,datos!$A$4:$AD$52,3) -> Chile | D42: =VLOOKUP($A42,datos!$A$4:$AD$52,22) -> 156 | E42: =VLOOKUP($A42,datos!$A$4:$AD$52,23) -> 160 | F42: =VLOOKUP($A42,datos!$A$4:$AD$52,24) -> 160 | G42: =VLOOKUP($A42,datos!$A$4:$AD$52,25) -> 185 | H42: =VLOOKUP($A42,datos!$A$4:$AD$52,26) -> 167 | I42: =VLOOKUP($A42,datos!$A$4:$AD$52,27) -> 162 | J42: =SUM(D42:I42) -> 990 | K42: =J45 -> 3776 | L42: =(COUNTIF(D42:I42,">0")) -> 6 | M42: =J42/L42 -> 165 | N42: dif
A43: j30 | B43: =VLOOKUP($A43,datos!$A$4:$AD$52,2) -> IVAN VELIZ H. | C43: =VLOOKUP($A43,datos!$A$4:$AD$52,3) -> Chile | D43: =VLOOKUP($A43,datos!$A$4:$AD$52,22) -> 150 | E43: =VLOOKUP($A43,datos!$A$4:$AD$52,23) -> 163 | F43: =VLOOKUP($A43,datos!$A$4:$AD$52,24) -> 144 | G43: =VLOOKUP($A43,datos!$A$4:$AD$52,25) -> 168 | H43: =VLOOKUP($A43,datos!$A$4:$AD$52,26) -> 155 | I43: =VLOOKUP($A43,datos!$A$4:$AD$52,27) -> 95 | J43: =SUM(D43:I43) -> 875 | K43: =J45 -> 3776 | L43: =(COUNTIF(D43:I43,">0")) -> 6 | M43: =J43/L43 -> 145.8333333 | N43: =MAX($J$45,$J$38,$J$31,$J$17,$J$10,$J$24,$J$52)-J45 -> 855
A44: j31 | B44: =VLOOKUP($A44,datos!$A$4:$AD$52,2) -> LUIS JEREZ G. | C44: =VLOOKUP($A44,datos!$A$4:$AD$52,3) -> Chile | D44: =VLOOKUP($A44,datos!$A$4:$AD$52,22) -> 157 | E44: =VLOOKUP($A44,datos!$A$4:$AD$52,23) -> 124 | F44: =VLOOKUP($A44,datos!$A$4:$AD$52,24) -> 166 | G44: =VLOOKUP($A44,datos!$A$4:$AD$52,25) -> 125 | H44: =VLOOKUP($A44,datos!$A$4:$AD$52,26) -> 123 | I44: =VLOOKUP($A44,datos!$A$4:$AD$52,27) -> 126 | J44: =SUM(D44:I44) -> 821 | K44: =J45 -> 3776 | L44: =(COUNTIF(D44:I44,">0")) -> 6 | M44: =J44/L44 -> 136.8333333 | N44: 6°
D45: =SUM(D41:D44) -> 611 | E45: 614 | F45: 675 | G45: 678 | H45: 654 | I45: 544 | J45: 3776 | K45: =J45 -> 3776 | L45: =(COUNTIF(D45:I45,">0"))*6 -> 36 | M45: =J45/L45 -> 104.8888889 | P45: =MAX(D45:I45) -> 678
K46: =J45 -> 3776
A47: Cod | B47: Nombre del Jugador | C47: FEDERACION | D47: L1 | E47: L2 | F47: L3 | G47: L4 | H47: L5 | I47: L6 | J47: Serie | K47: =J52 -> 2786 | M47: Prom
A48: j36 | B48: =VLOOKUP($A48,datos!$A$4:$AD$52,2) -> MATIAS DA MOTTA L. | C48: =VLOOKUP($A48,datos!$A$4:$AD$52,3) -> Uruguay | D48: =VLOOKUP($A48,datos!$A$4:$AD$52,22) -> 174 | E48: =VLOOKUP($A48,datos!$A$4:$AD$52,23) -> 205 | F48: =VLOOKUP($A48,datos!$A$4:$AD$52,24) -> 111 | G48: =VLOOKUP($A48,datos!$A$4:$AD$52,25) -> 125 | H48: =VLOOKUP($A48,datos!$A$4:$AD$52,26) -> 146 | I48: =VLOOKUP($A48,datos!$A$4:$AD$52,27) -> 139 | J48: =SUM(D48:I48) -> 900 | K48: =J52 -> 2786 | L48: =(COUNTIF(D48:I48,">0")) -> 6 | M48: =J48/L48 -> 150
A49: j37 | B49: =VLOOKUP($A49,datos!$A$4:$AD$52,2) -> ALFONSO RODRIGUEZ L. | C49: =VLOOKUP($A49,datos!$A$4:$AD$52,3) -> Uruguay | D49: =VLOOKUP($A49,datos!$A$4:$AD$52,22) -> 139 | E49: =VLOOKUP($A49,datos!$A$4:$AD$52,23) -> 156 | F49: =VLOOKUP($A49,datos!$A$4:$AD$52,24) -> 130 | G49: =VLOOKUP($A49,datos!$A$4:$AD$52,25) -> 151 | H49: =VLOOKUP($A49,datos!$A$4:$AD$52,26) -> 131 | I49: =VLOOKUP($A49,datos!$A$4:$AD$52,27) -> 167 | J49: =SUM(D49:I49) -> 874 | K49: =J52 -> 2786 | L49: =(COUNTIF(D49:I49,">0")) -> 6 | M49: =J49/L49 -> 145.6666667
A50: j38 | B50: =VLOOKUP($A50,datos!$A$4:$AD$52,2) -> FELIPE FUENTES F. | C50: =VLOOKUP($A50,datos!$A$4:$AD$52,3) -> Uruguay | D50: =VLOOKUP($A50,datos!$A$4:$AD$52,22) -> 157 | E50: =VLOOKUP($A50,datos!$A$4:$AD$52,23) -> 184 | F50: =VLOOKUP($A50,datos!$A$4:$AD$52,24) -> 211 | G50: =VLOOKUP($A50,datos!$A$4:$AD$52,25) -> 131 | H50: =VLOOKUP($A50,datos!$A$4:$AD$52,26) -> 168 | I50: =VLOOKUP($A50,datos!$A$4:$AD$52,27) -> 161 | J50: =SUM(D50:I50) -> 1012 | K50: =J52 -> 2786 | L50: =(COUNTIF(D50:I50,">0")) -> 6 | M50: =J50/L50 -> 168.6666667
K51: 2349
D52: =SUM(D48:D51) -> 470 | E52: 545 | F52: 452 | G52: 407 | H52: 445 | I52: 467 | J52: 2786 | K52: =J52 -> 2786 | L52: =(COUNTIF(D52:I52,">0"))*6 -> 36 | M52: =J52/L52 -> 77.38888889 | P52: =MAX(D52:I52) -> 545
K53: =J52 -> 2786
A54: Cod | B54: Nombre del Jugador | C54: FEDERACION | D54: L1 | E54: L2 | F54: L3 | G54: L4 | H54: L5 | I54: L6 | J54: Serie | K54: =J59 ->  | M54: Prom
B55: =VLOOKUP($A55,datos!$A$4:$AD$52,2) ->  | C55: =VLOOKUP($A55,datos!$A$4:$AD$52,3) ->  | D55: =VLOOKUP($A55,datos!$A$4:$AD$52,22) ->  | E55: =VLOOKUP($A55,datos!$A$4:$AD$52,23) ->  | F55: =VLOOKUP($A55,datos!$A$4:$AD$52,24) ->  | G55: =VLOOKUP($A55,datos!$A$4:$AD$52,25) ->  | H55: =VLOOKUP($A55,datos!$A$4:$AD$52,26) ->  | I55: =VLOOKUP($A55,datos!$A$4:$AD$52,27) ->  | J55: =SUM(D55:I55) ->  | K55: =J59 ->  | L55: =(COUNTIF(D55:I55,">0")) -> 0 | M55: =J55/L55 -> 
B56: =VLOOKUP($A56,datos!$A$4:$AD$52,2) ->  | C56: =VLOOKUP($A56,datos!$A$4:$AD$52,3) ->  | D56: =VLOOKUP($A56,datos!$A$4:$AD$52,22) ->  | E56: =VLOOKUP($A56,datos!$A$4:$AD$52,23) ->  | F56: =VLOOKUP($A56,datos!$A$4:$AD$52,24) ->  | G56: =VLOOKUP($A56,datos!$A$4:$AD$52,25) ->  | H56: =VLOOKUP($A56,datos!$A$4:$AD$52,26) ->  | I56: =VLOOKUP($A56,datos!$A$4:$AD$52,27) ->  | J56: =SUM(D56:I56) ->  | K56: =J59 ->  | L56: =(COUNTIF(D56:I56,">0")) -> 0 | M56: =J56/L56 -> 
B57: =VLOOKUP($A57,datos!$A$4:$AD$52,2) ->  | C57: =VLOOKUP($A57,datos!$A$4:$AD$52,3) ->  | D57: =VLOOKUP($A57,datos!$A$4:$AD$52,22) ->  | E57: =VLOOKUP($A57,datos!$A$4:$AD$52,23) ->  | F57: =VLOOKUP($A57,datos!$A$4:$AD$52,24) ->  | G57: =VLOOKUP($A57,datos!$A$4:$AD$52,25) ->  | H57: =VLOOKUP($A57,datos!$A$4:$AD$52,26) ->  | I57: =VLOOKUP($A57,datos!$A$4:$AD$52,27) ->  | J57: =SUM(D57:I57) ->  | K57: =J59 ->  | L57: =(COUNTIF(D57:I57,">0")) -> 0 | M57: =J57/L57 -> 
B58: =VLOOKUP($A58,datos!$A$4:$AD$52,2) ->  | C58: =VLOOKUP($A58,datos!$A$4:$AD$52,3) ->  | D58: =VLOOKUP($A58,datos!$A$4:$AD$52,22) ->  | E58: =VLOOKUP($A58,datos!$A$4:$AD$52,23) ->  | F58: =VLOOKUP($A58,datos!$A$4:$AD$52,24) ->  | G58: =VLOOKUP($A58,datos!$A$4:$AD$52,25) ->  | H58: =VLOOKUP($A58,datos!$A$4:$AD$52,26) ->  | I58: =VLOOKUP($A58,datos!$A$4:$AD$52,27) ->  | J58: =SUM(D58:I58) ->  | K58: =J59 ->  | L58: =(COUNTIF(D58:I58,">0")) -> 0 | M58: =J58/L58 -> 
D59: =SUM(D55:D58) ->  | K59: =J59 ->  | L59: =(COUNTIF(D59:I59,">0"))*6 -> 0 | M59: =J59/L59 ->  | P59: =MAX(D59:I59) -> 
K60: =J59 -> 

Sheet T EVENTO
A2: CAMPEONATO SUDAMERICANO JUVENIL 2014
A3: TODO EVENTO INDIVIDUAL
A4: SANTIAGO DE CHILE - DEL 12 AL 18 DE ABRIL DE 2014
D5: INDIVIDUAL | K5: PAREJAS | R5: TERCETOS | Y5: CUARTETOS
A6: Cod | B6: Nombre del Jugador | C6: FEDERACION | D6: L1 | E6: L2 | F6: L3 | G6: L4 | H6: L5 | I6: L6 | J6: Serie | K6: L7 | L6: L8 | M6: L9 | N6: L10 | O6: L11 | P6: L12 | Q6: Serie | R6: L13 | S6: L14 | T6: L15 | U6: L16 | V6: L17 | W6: L18 | X6: Serie | Y6: L19 | Z6: L20 | AA6: L21 | AB6: L22 | AC6: L23 | AD6: L24 | AE6: Serie | AF6: L | AG6: Total | AH6: Prom | AI6: Pos. | AJ6: dif
A7: J20 | B7: =VLOOKUP($A7,datos!$A$4:$AD$52,2) -> BRUNO COSTA S | C7: =VLOOKUP($A7,datos!$A$4:$AD$52,3) -> Brasil | D7: =VLOOKUP($A7,datos!$A$4:$AD$52,4) -> 202 | E7: =VLOOKUP($A7,datos!$A$4:$AD$52,5) -> 265 | F7: =VLOOKUP($A7,datos!$A$4:$AD$52,6) -> 214 | G7: =VLOOKUP($A7,datos!$A$4:$AD$52,7) -> 185 | H7: =VLOOKUP($A7,datos!$A$4:$AD$52,8) -> 211 | I7: =VLOOKUP($A7,datos!$A$4:$AD$52,9) -> 233 | J7: =SUM(D7:I7) -> 1310 | K7: =VLOOKUP($A7,datos!$A$4:$AD$52,10) -> 178 | L7: =VLOOKUP($A7,datos!$A$4:$AD$52,11) -> 200 | M7: =VLOOKUP($A7,datos!$A$4:$AD$52,12) -> 213 | N7: =VLOOKUP($A7,datos!$A$4:$AD$52,13) -> 210 | O7: =VLOOKUP($A7,datos!$A$4:$AD$52,14) -> 202 | P7: =VLOOKUP($A7,datos!$A$4:$AD$52,15) -> 247 | Q7: =SUM(K7:P7) -> 1250 | R7: =VLOOKUP($A7,datos!$A$4:$AD$52,16) -> 182 | S7: =VLOOKUP($A7,datos!$A$4:$AD$52,17) -> 277 | T7: =VLOOKUP($A7,datos!$A$4:$AD$52,18) -> 225 | U7: =VLOOKUP($A7,datos!$A$4:$AD$52,19) -> 254 | V7: =VLOOKUP($A7,datos!$A$4:$AD$52,20) -> 267 | W7: =VLOOKUP($A7,datos!$A$4:$AD$52,21) -> 213 | X7: =SUM(R7:W7) -> 1418 | Y7: =VLOOKUP($A7,datos!$A$4:$AD$52,22) -> 221 | Z7: =VLOOKUP($A7,datos!$A$4:$AD$52,23) -> 190 | AA7: =VLOOKUP($A7,datos!$A$4:$AD$52,24) -> 222 | AB7: =VLOOKUP($A7,datos!$A$4:$AD$52,25) -> 162 | AC7: =VLOOKUP($A7,datos!$A$4:$AD$52,26) -> 172 | AD7: =VLOOKUP($A7,datos!$A$4:$AD$52,27) -> 203 | AE7: =SUM(Y7:AD7) -> 1170 | AF7: =VLOOKUP($A7,datos!$A$4:$AD$52,28) -> 24 | AG7: =VLOOKUP($A7,datos!$A$4:$AD$52,29) -> 5148 | AH7: =AG7/AF7 -> 214.5 | AI7: 1º | AJ7: =MAX($AG$7:$AG$51)-AG7 -> 
A8: J27 | B8: =VLOOKUP($A8,datos!$A$4:$AD$52,2) -> JORGE FIGUEROA | C8: =VLOOKUP($A8,datos!$A$4:$AD$52,3) -> Colombia | D8: =VLOOKUP($A8,datos!$A$4:$AD$52,4) -> 216 | E8: =VLOOKUP($A8,datos!$A$4:$AD$52,5) -> 214 | F8: =VLOOKUP($A8,datos!$A$4:$AD$52,6) -> 224 | G8: =VLOOKUP($A8,datos!$A$4:$AD$52,7) -> 233 | H8: =VLOOKUP($A8,datos!$A$4:$AD$52,8) -> 169 | I8: =VLOOKUP($A8,datos!$A$4:$AD$52,9) -> 207 | J8: 1263 | K8: =VLOOKUP($A8,datos!$A$4:$AD$52,10) -> 242 | L8: =VLOOKUP($A8,datos!$A$4:$AD$52,11) -> 148 | M8: =VLOOKUP($A8,datos!$A$4:$AD$52,12) -> 216 | N8: =VLOOKUP($A8,datos!$A$4:$AD$52,13) -> 212 | O8: =VLOOKUP($A8,datos!$A$4:$AD$52,14) -> 184 | P8: =VLOOKUP($A8,datos!$A$4:$AD$52,15) -> 175 | Q8: 1177 | R8: =VLOOKUP($A8,datos!$A$4:$AD$52,16) -> 219 | S8: =VLOOKUP($A8,datos!$A$4:$AD$52,17) -> 175 | T8: =VLOOKUP($A8,datos!$A$4:$AD$52,18) -> 223 | U8: =VLOOKUP($A8,datos!$A$4:$AD$52,19) -> 243 | V8: =VLOOKUP($A8,datos!$A$4:$AD$52,20) -> 214 | W8: =VLOOKUP($A8,datos!$A$4:$AD$52,21) -> 182 | X8: 1256 | Y8: =VLOOKUP($A8,datos!$A$4:$AD$52,22) -> 152 | Z8: =VLOOKUP($A8,datos!$A$4:$AD$52,23) -> 224 | AA8: =VLOOKUP($A8,datos!$A$4:$AD$52,24) -> 183 | AB8: =VLOOKUP($A8,datos!$A$4:$AD$52,25) -> 226 | AC8: =VLOOKUP($A8,datos!$A$4:$AD$52,26) -> 236 | AD8: =VLOOKUP($A8,datos!$A$4:$AD$52,27) -> 204 | AE8: 1225 | AF8: =VLOOKUP($A8,datos!$A$4:$AD$52,28) -> 24 | AG8: =VLOOKUP($A8,datos!$A$4:$AD$52,29) -> 4921 | AH8: 205.0416667 | AI8: 2º
A9: J26 | B9: =VLOOKUP($A9,datos!$A$4:$AD$52,2) -> SEBASTIAN CHARRY | C9: =VLOOKUP($A9,datos!$A$4:$AD$52,3) -> Colombia | D9: =VLOOKUP($A9,datos!$A$4:$AD$52,4) -> 223 | E9: =VLOOKUP($A9,datos!$A$4:$AD$52,5) -> 223 | F9: =VLOOKUP($A9,datos!$A$4:$AD$52,6) -> 162 | G9: =VLOOKUP($A9,datos!$A$4:$AD$52,7) -> 246 | H9: =VLOOKUP($A9,datos!$A$4:$AD$52,8) -> 227 | I9: =VLOOKUP($A9,datos!$A$4:$AD$52,9) -> 257 | J9: 1338 | K9: =VLOOKUP($A9,datos!$A$4:$AD$52,10) -> 225 | L9: =VLOOKUP($A9,datos!$A$4:$AD$52,11) -> 199 | M9: =VLOOKUP($A9,datos!$A$4:$AD$52,12) -> 174 | N9: =VLOOKUP($A9,datos!$A$4:$AD$52,13) -> 169 | O9: =VLOOKUP($A9,datos!$A$4:$AD$52,14) -> 191 | P9: =VLOOKUP($A9,datos!$A$4:$AD$52,15) -> 195 | Q9: 1153 | R9: =VLOOKUP($A9,datos!$A$4:$AD$52,16) -> 168 | S9: =VLOOKUP($A9,datos!$A$4:$AD$52,17) -> 239 | T9: =VLOOKUP($A9,datos!$A$4:$AD$52,18) -> 211 | U9: =VLOOKUP($A9,datos!$A$4:$AD$52,19) -> 216 | V9: =VLOOKUP($A9,datos!$A$4:$AD$52,20) -> 198 | W9: =VLOOKUP($A9,datos!$A$4:$AD$52,21) -> 193 | X9: 1225 | Y9: =VLOOKUP($A9,datos!$A$4:$AD$52,22) -> 215 | Z9: =VLOOKUP($A9,datos!$A$4:$AD$52,23) -> 176 | AA9: =VLOOKUP($A9,datos!$A$4:$AD$52,24) -> 178 | AB9: =VLOOKUP($A9,datos!$A$4:$AD$52,25) -> 203 | AC9: =VLOOKUP($A9,datos!$A$4:$AD$52,26) -> 224 | AD9: =VLOOKUP($A9,datos!$A$4:$AD$52,27) -> 186 | AE9: 1182 | AF9: =VLOOKUP($A9,datos!$A$4:$AD$52,28) -> 24 | AG9: =VLOOKUP($A9,datos!$A$4:$AD$52,29) -> 4898 | AH9: 204.0833333 | AI9: 3º
A10: J16 | B10: =VLOOKUP($A10,datos!$A$4:$AD$52,2) -> BRIAN HELMEYER | C10: =VLOOKUP($A10,datos!$A$4:$AD$52,3) -> Aruba | D10: =VLOOKUP($A10,datos!$A$4:$AD$52,4) -> 176 | E10: =VLOOKUP($A10,datos!$A$4:$AD$52,5) -> 217 | F10: =VLOOKUP($A10,datos!$A$4:$AD$52,6) -> 155 | G10: =VLOOKUP($A10,datos!$A$4:$AD$52,7) -> 238 | H10: =VLOOKUP($A10,datos!$A$4:$AD$52,8) -> 174 | I10: =VLOOKUP($A10,datos!$A$4:$AD$52,9) -> 192 | J10: 1152 | K10: =VLOOKUP($A10,datos!$A$4:$AD$52,10) -> 177 | L10: =VLOOKUP($A10,datos!$A$4:$AD$52,11) -> 172 | M10: =VLOOKUP($A10,datos!$A$4:$AD$52,12) -> 193 | N10: =VLOOKUP($A10,datos!$A$4:$AD$52,13) -> 200 | O10: =VLOOKUP($A10,datos!$A$4:$AD$52,14) -> 235 | P10: =VLOOKUP($A10,datos!$A$4:$AD$52,15) -> 184 | Q10: 1161 | R10: =VLOOKUP($A10,datos!$A$4:$AD$52,16) -> 227 | S10: =VLOOKUP($A10,datos!$A$4:$AD$52,17) -> 245 | T10: =VLOOKUP($A10,datos!$A$4:$AD$52,18) -> 187 | U10: =VLOOKUP($A10,datos!$A$4:$AD$52,19) -> 197 | V10: =VLOOKUP($A10,datos!$A$4:$AD$52,20) -> 211 | W10: =VLOOKUP($A10,datos!$A$4:$AD$52,21) -> 167 | X10: 1234 | Y10: =VLOOKUP($A10,datos!$A$4:$AD$52,22) -> 185 | Z10: =VLOOKUP($A10,datos!$A$4:$AD$52,23) -> 233 | AA10: =VLOOKUP($A10,datos!$A$4:$AD$52,24) -> 188 | AB10: =VLOOKUP($A10,datos!$A$4:$AD$52,25) -> 185 | AC10: =VLOOKUP($A10,datos!$A$4:$AD$52,26) -> 203 | AD10: =VLOOKUP($A10,datos!$A$4:$AD$52,27) -> 188 | AE10: 1182 | AF10: =VLOOKUP($A10,datos!$A$4:$AD$52,28) -> 24 | AG10: =VLOOKUP($A10,datos!$A$4:$AD$52,29) -> 4729 | AH10: 197.0416667 | AI10: 4º
A11: J24 | B11: =VLOOKUP($A11,datos!$A$4:$AD$52,2) -> CARLOS F. SAAVEDRA | C11: =VLOOKUP($A11,datos!$A$4:$AD$52,3) -> Colombia | D11: =VLOOKUP($A11,datos!$A$4:$AD$52,4) -> 192 | E11: =VLOOKUP($A11,datos!$A$4:$AD$52,5) -> 233 | F11: =VLOOKUP($A11,datos!$A$4:$AD$52,6) -> 245 | G11: =VLOOKUP($A11,datos!$A$4:$AD$52,7) -> 199 | H11: =VLOOKUP($A11,datos!$A$4:$AD$52,8) -> 244 | I11: =VLOOKUP($A11,datos!$A$4:$AD$52,9) -> 193 | J11: 1306 | K11: =VLOOKUP($A11,datos!$A$4:$AD$52,10) -> 154 | L11: =VLOOKUP($A11,datos!$A$4:$AD$52,11) -> 175 | M11: =VLOOKUP($A11,datos!$A$4:$AD$52,12) -> 164 | N11: =VLOOKUP($A11,datos!$A$4:$AD$52,13) -> 160 | O11: =VLOOKUP($A11,datos!$A$4:$AD$52,14) -> 149 | P11: =VLOOKUP($A11,datos!$A$4:$AD$52,15) -> 204 | Q11: 1006 | R11: =VLOOKUP($A11,datos!$A$4:$AD$52,16) -> 150 | S11: =VLOOKUP($A11,datos!$A$4:$AD$52,17) -> 204 | T11: =VLOOKUP($A11,datos!$A$4:$AD$52,18) -> 217 | U11: =VLOOKUP($A11,datos!$A$4:$AD$52,19) -> 227 | V11: =VLOOKUP($A11,datos!$A$4:$AD$52,20) -> 197 | W11: =VLOOKUP($A11,datos!$A$4:$AD$52,21) -> 194 | X11: 1189 | Y11: =VLOOKUP($A11,datos!$A$4:$AD$52,22) -> 164 | Z11: =VLOOKUP($A11,datos!$A$4:$AD$52,23) -> 167 | AA11: =VLOOKUP($A11,datos!$A$4:$AD$52,24) -> 233 | AB11: =VLOOKUP($A11,datos!$A$4:$AD$52,25) -> 185 | AC11: =VLOOKUP($A11,datos!$A$4:$AD$52,26) -> 173 | AD11: =VLOOKUP($A11,datos!$A$4:$AD$52,27) -> 213 | AE11: 1135 | AF11: =VLOOKUP($A11,datos!$A$4:$AD$52,28) -> 24 | AG11: =VLOOKUP($A11,datos!$A$4:$AD$52,29) -> 4636 | AH11: 193.1666667 | AI11: 5º
A12: J25 | B12: =VLOOKUP($A12,datos!$A$4:$AD$52,2) -> SEBASTIAN DONADO | C12: =VLOOKUP($A12,datos!$A$4:$AD$52,3) -> Colombia | D12: =VLOOKUP($A12,datos!$A$4:$AD$52,4) -> 231 | E12: =VLOOKUP($A12,datos!$A$4:$AD$52,5) -> 201 | F12: =VLOOKUP($A12,datos!$A$4:$AD$52,6) -> 195 | G12: =VLOOKUP($A12,datos!$A$4:$AD$52,7) -> 222 | H12: =VLOOKUP($A12,datos!$A$4:$AD$52,8) -> 152 | I12: =VLOOKUP($A12,datos!$A$4:$AD$52,9) -> 155 | J12: 1156 | K12: =VLOOKUP($A12,datos!$A$4:$AD$52,10) -> 173 | L12: =VLOOKUP($A12,datos!$A$4:$AD$52,11) -> 197 | M12: =VLOOKUP($A12,datos!$A$4:$AD$52,12) -> 200 | N12: =VLOOKUP($A12,datos!$A$4:$AD$52,13) -> 157 | O12: =VLOOKUP($A12,datos!$A$4:$AD$52,14) -> 214 | P12: =VLOOKUP($A12,datos!$A$4:$AD$52,15) -> 202 | Q12: 1143 | R12: =VLOOKUP($A12,datos!$A$4:$AD$52,16) -> 215 | S12: =VLOOKUP($A12,datos!$A$4:$AD$52,17) -> 204 | T12: =VLOOKUP($A12,datos!$A$4:$AD$52,18) -> 238 | U12: =VLOOKUP($A12,datos!$A$4:$AD$52,19) -> 203 | V12: =VLOOKUP($A12,datos!$A$4:$AD$52,20) -> 157 | W12: =VLOOKUP($A12,datos!$A$4:$AD$52,21) -> 201 | X12: 1218 | Y12: =VLOOKUP($A12,datos!$A$4:$AD$52,22) -> 170 | Z12: =VLOOKUP($A12,datos!$A$4:$AD$52,23) -> 160 | AA12: =VLOOKUP($A12,datos!$A$4:$AD$52,24) -> 168 | AB12: =VLOOKUP($A12,datos!$A$4:$AD$52,25) -> 175 | AC12: =VLOOKUP($A12,datos!$A$4:$AD$52,26) -> 206 | AD12: =VLOOKUP($A12,datos!$A$4:$AD$52,27) -> 210 | AE12: 1089 | AF12: =VLOOKUP($A12,datos!$A$4:$AD$52,28) -> 24 | AG12: =VLOOKUP($A12,datos!$A$4:$AD$52,29) -> 4606 | AH12: 191.9166667 | AI12: 6º
A13: J33 | B13: =VLOOKUP($A13,datos!$A$4:$AD$52,2) -> JUAN ANDRES YUZURIHA | C13: =VLOOKUP($A13,datos!$A$4:$AD$52,3) -> Perú | D13: =VLOOKUP($A13,datos!$A$4:$AD$52,4) -> 145 | E13: =VLOOKUP($A13,datos!$A$4:$AD$52,5) -> 190 | F13: =VLOOKUP($A13,datos!$A$4:$AD$52,6) -> 181 | G13: =VLOOKUP($A13,datos!$A$4:$AD$52,7) -> 202 | H13: =VLOOKUP($A13,datos!$A$4:$AD$52,8) -> 213 | I13: =VLOOKUP($A13,datos!$A$4:$AD$52,9) -> 189 | J13: 1120 | K13: =VLOOKUP($A13,datos!$A$4:$AD$52,10) -> 213 | L13: =VLOOKUP($A13,datos!$A$4:$AD$52,11) -> 183 | M13: =VLOOKUP($A13,datos!$A$4:$AD$52,12) -> 159 | N13: =VLOOKUP($A13,datos!$A$4:$AD$52,13) -> 183 | O13: =VLOOKUP($A13,datos!$A$4:$AD$52,14) -> 207 | P13: =VLOOKUP($A13,datos!$A$4:$AD$52,15) -> 205 | Q13: 1150 | R13: =VLOOKUP($A13,datos!$A$4:$AD$52,16) -> 233 | S13: =VLOOKUP($A13,datos!$A$4:$AD$52,17) -> 188 | T13: =VLOOKUP($A13,datos!$A$4:$AD$52,18) -> 188 | U13: =VLOOKUP($A13,datos!$A$4:$AD$52,19) -> 170 | V13: =VLOOKUP($A13,datos!$A$4:$AD$52,20) -> 164 | W13: =VLOOKUP($A13,datos!$A$4:$AD$52,21) -> 175 | X13: 1118 | Y13: =VLOOKUP($A13,datos!$A$4:$AD$52,22) -> 186 | Z13: =VLOOKUP($A13,datos!$A$4:$AD$52,23) -> 187 | AA13: =VLOOKUP($A13,datos!$A$4:$AD$52,24) -> 222 | AB13: =VLOOKUP($A13,datos!$A$4:$AD$52,25) -> 211 | AC13: =VLOOKUP($A13,datos!$A$4:$AD$52,26) -> 234 | AD13: =VLOOKUP($A13,datos!$A$4:$AD$52,27) -> 171 | AE13: 1211 | AF13: =VLOOKUP($A13,datos!$A$4:$AD$52,28) -> 24 | AG13: =VLOOKUP($A13,datos!$A$4:$AD$52,29) -> 4599 | AH13: 191.625 | AI13: 7º
A14: J13 | B14: =VLOOKUP($A14,datos!$A$4:$AD$52,2) -> FRANCO R. GUALINI | C14: =VLOOKUP($A14,datos!$A$4:$AD$52,3) -> Argentina | D14: =VLOOKUP($A14,datos!$A$4:$AD$52,4) -> 200 | E14: =VLOOKUP($A14,datos!$A$4:$AD$52,5) -> 185 | F14: =VLOOKUP($A14,datos!$A$4:$AD$52,6) -> 192 | G14: =VLOOKUP($A14,datos!$A$4:$AD$52,7) -> 204 | H14: =VLOOKUP($A14,datos!$A$4:$AD$52,8) -> 177 | I14: =VLOOKUP($A14,datos!$A$4:$AD$52,9) -> 215 | J14: 1173 | K14: =VLOOKUP($A14,datos!$A$4:$AD$52,10) -> 168 | L14: =VLOOKUP($A14,datos!$A$4:$AD$52,11) -> 172 | M14: =VLOOKUP($A14,datos!$A$4:$AD$52,12) -> 180 | N14: =VLOOKUP($A14,datos!$A$4:$AD$52,13) -> 188 | O14: =VLOOKUP($A14,datos!$A$4:$AD$52,14) -> 182 | P14: =VLOOKUP($A14,datos!$A$4:$AD$52,15) -> 198 | Q14: 1088 | R14: =VLOOKUP($A14,datos!$A$4:$AD$52,16) -> 187 | S14: =VLOOKUP($A14,datos!$A$4:$AD$52,17) -> 160 | T14: =VLOOKUP($A14,datos!$A$4:$AD$52,18) -> 229 | U14: =VLOOKUP($A14,datos!$A$4:$AD$52,19) -> 203 | V14: =VLOOKUP($A14,datos!$A$4:$AD$52,20) -> 189 | W14: =VLOOKUP($A14,datos!$A$4:$AD$52,21) -> 224 | X14: 1192 | Y14: =VLOOKUP($A14,datos!$A$4:$AD$52,22) -> 178 | Z14: =VLOOKUP($A14,datos!$A$4:$AD$52,23) -> 234 | AA14: =VLOOKUP($A14,datos!$A$4:$AD$52,24) -> 156 | AB14: =VLOOKUP($A14,datos!$A$4:$AD$52,25) -> 226 | AC14: =VLOOKUP($A14,datos!$A$4:$AD$52,26) -> 162 | AD14: =VLOOKUP($A14,datos!$A$4:$AD$52,27) -> 155 | AE14: 1111 | AF14: =VLOOKUP($A14,datos!$A$4:$AD$52,28) -> 24 | AG14: =VLOOKUP($A14,datos!$A$4:$AD$52,29) -> 4564 | AH14: 190.1666667 | AI14: 8º
A15: J15 | B15: =VLOOKUP($A15,datos!$A$4:$AD$52,2) -> FERNANDO TAPIA M. | C15: =VLOOKUP($A15,datos!$A$4:$AD$52,3) -> Argentina | D15: =VLOOKUP($A15,datos!$A$4:$AD$52,4) -> 193 | E15: =VLOOKUP($A15,datos!$A$4:$AD$52,5) -> 223 | F15: =VLOOKUP($A15,datos!$A$4:$AD$52,6) -> 180 | G15: =VLOOKUP($A15,datos!$A$4:$AD$52,7) -> 214 | H15: =VLOOKUP($A15,datos!$A$4:$AD$52,8) -> 183 | I15: =VLOOKUP($A15,datos!$A$4:$AD$52,9) -> 161 | J15: 1154 | K15: =VLOOKUP($A15,datos!$A$4:$AD$52,10) -> 205 | L15: =VLOOKUP($A15,datos!$A$4:$AD$52,11) -> 180 | M15: =VLOOKUP($A15,datos!$A$4:$AD$52,12) -> 149 | N15: =VLOOKUP($A15,datos!$A$4:$AD$52,13) -> 157 | O15: =VLOOKUP($A15,datos!$A$4:$AD$52,14) -> 176 | P15: =VLOOKUP($A15,datos!$A$4:$AD$52,15) -> 187 | Q15: 1054 | R15: =VLOOKUP($A15,datos!$A$4:$AD$52,16) -> 206 | S15: =VLOOKUP($A15,datos!$A$4:$AD$52,17) -> 182 | T15: =VLOOKUP($A15,datos!$A$4:$AD$52,18) -> 179 | U15: =VLOOKUP($A15,datos!$A$4:$AD$52,19) -> 201 | V15: =VLOOKUP($A15,datos!$A$4:$AD$52,20) -> 202 | W15: =VLOOKUP($A15,datos!$A$4:$AD$52,21) -> 171 | X15: 1141 | Y15: =VLOOKUP($A15,datos!$A$4:$AD$52,22) -> 251 | Z15: =VLOOKUP($A15,datos!$A$4:$AD$52,23) -> 171 | AA15: =VLOOKUP($A15,datos!$A$4:$AD$52,24) -> 184 | AB15: =VLOOKUP($A15,datos!$A$4:$AD$52,25) -> 192 | AC15: =VLOOKUP($A15,datos!$A$4:$AD$52,26) -> 165 | AD15: =VLOOKUP($A15,datos!$A$4:$AD$52,27) -> 181 | AE15: 1144 | AF15: =VLOOKUP($A15,datos!$A$4:$AD$52,28) -> 24 | AG15: =VLOOKUP($A15,datos!$A$4:$AD$52,29) -> 4493 | AH15: 187.2083333 | AI15: 9º
A16: J22 | B16: =VLOOKUP($A16,datos!$A$4:$AD$52,2) -> THIAGO FELICETTI | C16: =VLOOKUP($A16,datos!$A$4:$AD$52,3) -> Brasil | D16: =VLOOKUP($A16,datos!$A$4:$AD$52,4) -> 183 | E16: =VLOOKUP($A16,datos!$A$4:$AD$52,5) -> 157 | F16: =VLOOKUP($A16,datos!$A$4:$AD$52,6) -> 211 | G16: =VLOOKUP($A16,datos!$A$4:$AD$52,7) -> 224 | H16: =VLOOKUP($A16,datos!$A$4:$AD$52,8) -> 154 | I16: =VLOOKUP($A16,datos!$A$4:$AD$52,9) -> 234 | J16: 1163 | K16: =VLOOKUP($A16,datos!$A$4:$AD$52,10) -> 134 | L16: =VLOOKUP($A16,datos!$A$4:$AD$52,11) -> 214 | M16: =VLOOKUP($A16,datos!$A$4:$AD$52,12) -> 235 | N16: =VLOOKUP($A16,datos!$A$4:$AD$52,13) -> 173 | O16: =VLOOKUP($A16,datos!$A$4:$AD$52,14) -> 133 | P16: =VLOOKUP($A16,datos!$A$4:$AD$52,15) -> 173 | Q16: 1062 | R16: =VLOOKUP($A16,datos!$A$4:$AD$52,16) -> 180 | S16: =VLOOKUP($A16,datos!$A$4:$AD$52,17) -> 184 | T16: =VLOOKUP($A16,datos!$A$4:$AD$52,18) -> 233 | U16: =VLOOKUP($A16,datos!$A$4:$AD$52,19) -> 235 | V16: =VLOOKUP($A16,datos!$A$4:$AD$52,20) -> 180 | W16: =VLOOKUP($A16,datos!$A$4:$AD$52,21) -> 162 | X16: 1174 | Y16: =VLOOKUP($A16,datos!$A$4:$AD$52,22) -> 210 | Z16: =VLOOKUP($A16,datos!$A$4:$AD$52,23) -> 158 | AA16: =VLOOKUP($A16,datos!$A$4:$AD$52,24) -> 227 | AB16: =VLOOKUP($A16,datos!$A$4:$AD$52,25) -> 161 | AC16: =VLOOKUP($A16,datos!$A$4:$AD$52,26) -> 145 | AD16: =VLOOKUP($A16,datos!$A$4:$AD$52,27) -> 171 | AE16: 1072 | AF16: =VLOOKUP($A16,datos!$A$4:$AD$52,28) -> 24 | AG16: =VLOOKUP($A16,datos!$A$4:$AD$52,29) -> 4471 | AH16: 186.2916667 | AI16: 10º
A17: J23 | B17: =VLOOKUP($A17,datos!$A$4:$AD$52,2) -> JOAO I. FERREIRA N. | C17: =VLOOKUP($A17,datos!$A$4:$AD$52,3) -> Brasil | D17: =VLOOKUP($A17,datos!$A$4:$AD$52,4) -> 199 | E17: =VLOOKUP($A17,datos!$A$4:$AD$52,5) -> 141 | F17: =VLOOKUP($A17,datos!$A$4:$AD$52,6) -> 169 | G17: =VLOOKUP($A17,datos!$A$4:$AD$52,7) -> 183 | H17: =VLOOKUP($A17,datos!$A$4:$AD$52,8) -> 214 | I17: =VLOOKUP($A17,datos!$A$4:$AD$52,9) -> 201 | J17: 1107 | K17: =VLOOKUP($A17,datos!$A$4:$AD$52,10) -> 157 | L17: =VLOOKUP($A17,datos!$A$4:$AD$52,11) -> 173 | M17: =VLOOKUP($A17,datos!$A$4:$AD$52,12) -> 200 | N17: =VLOOKUP($A17,datos!$A$4:$AD$52,13) -> 192 | O17: =VLOOKUP($A17,datos!$A$4:$AD$52,14) -> 156 | P17: =VLOOKUP($A17,datos!$A$4:$AD$52,15) -> 203 | Q17: 1081 | R17: =VLOOKUP($A17,datos!$A$4:$AD$52,16) -> 212 | S17: =VLOOKUP($A17,datos!$A$4:$AD$52,17) -> 200 | T17: =VLOOKUP($A17,datos!$A$4:$AD$52,18) -> 256 | U17: =VLOOKUP($A17,datos!$A$4:$AD$52,19) -> 156 | V17: =VLOOKUP($A17,datos!$A$4:$AD$52,20) -> 186 | W17: =VLOOKUP($A17,datos!$A$4:$AD$52,21) -> 194 | X17: 1204 | Y17: =VLOOKUP($A17,datos!$A$4:$AD$52,22) -> 148 | Z17: =VLOOKUP($A17,datos!$A$4:$AD$52,23) -> 212 | AA17: =VLOOKUP($A17,datos!$A$4:$AD$52,24) -> 143 | AB17: =VLOOKUP($A17,datos!$A$4:$AD$52,25) -> 190 | AC17: =VLOOKUP($A17,datos!$A$4:$AD$52,26) -> 194 | AD17: =VLOOKUP($A17,datos!$A$4:$AD$52,27) -> 192 | AE17: 1079 | AF17: =VLOOKUP($A17,datos!$A$4:$AD$52,28) -> 24 | AG17: =VLOOKUP($A17,datos!$A$4:$AD$52,29) -> 4471 | AH17: 186.2916667 | AI17: 11º
A18: J35 | B18: =VLOOKUP($A18,datos!$A$4:$AD$52,2) -> RENZO GUIBU K. | C18: =VLOOKUP($A18,datos!$A$4:$AD$52,3) -> Perú | D18: =VLOOKUP($A18,datos!$A$4:$AD$52,4) -> 214 | E18: =VLOOKUP($A18,datos!$A$4:$AD$52,5) -> 214 | F18: =VLOOKUP($A18,datos!$A$4:$AD$52,6) -> 232 | G18: =VLOOKUP($A18,datos!$A$4:$AD$52,7) -> 224 | H18: =VLOOKUP($A18,datos!$A$4:$AD$52,8) -> 192 | I18: =VLOOKUP($A18,datos!$A$4:$AD$52,9) -> 211 | J18: 1287 | K18: =VLOOKUP($A18,datos!$A$4:$AD$52,10) -> 154 | L18: =VLOOKUP($A18,datos!$A$4:$AD$52,11) -> 181 | M18: =VLOOKUP($A18,datos!$A$4:$AD$52,12) -> 145 | N18: =VLOOKUP($A18,datos!$A$4:$AD$52,13) -> 199 | O18: =VLOOKUP($A18,datos!$A$4:$AD$52,14) -> 184 | P18: =VLOOKUP($A18,datos!$A$4:$AD$52,15) -> 189 | Q18: 1052 | R18: =VLOOKUP($A18,datos!$A$4:$AD$52,16) -> 148 | S18: =VLOOKUP($A18,datos!$A$4:$AD$52,17) -> 211 | T18: =VLOOKUP($A18,datos!$A$4:$AD$52,18) -> 157 | U18: =VLOOKUP($A18,datos!$A$4:$AD$52,19) -> 178 | V18: =VLOOKUP($A18,datos!$A$4:$AD$52,20) -> 138 | W18: =VLOOKUP($A18,datos!$A$4:$AD$52,21) -> 188 | X18: 1020 | Y18: =VLOOKUP($A18,datos!$A$4:$AD$52,22) -> 233 | Z18: =VLOOKUP($A18,datos!$A$4:$AD$52,23) -> 168 | AA18: =VLOOKUP($A18,datos!$A$4:$AD$52,24) -> 200 | AB18: =VLOOKUP($A18,datos!$A$4:$AD$52,25) -> 179 | AC18: =VLOOKUP($A18,datos!$A$4:$AD$52,26) -> 154 | AD18: =VLOOKUP($A18,datos!$A$4:$AD$52,27) -> 167 | AE18: 1101 | AF18: =VLOOKUP($A18,datos!$A$4:$AD$52,28) -> 24 | AG18: =VLOOKUP($A18,datos!$A$4:$AD$52,29) -> 4460 | AH18: 185.8333333 | AI18: 12º
A19: J17 | B19: =VLOOKUP($A19,datos!$A$4:$AD$52,2) -> YANNICK ROOS | C19: =VLOOKUP($A19,datos!$A$4:$AD$52,3) -> Aruba | D19: =VLOOKUP($A19,datos!$A$4:$AD$52,4) -> 162 | E19: =VLOOKUP($A19,datos!$A$4:$AD$52,5) -> 206 | F19: =VLOOKUP($A19,datos!$A$4:$AD$52,6) -> 207 | G19: =VLOOKUP($A19,datos!$A$4:$AD$52,7) -> 204 | H19: =VLOOKUP($A19,datos!$A$4:$AD$52,8) -> 193 | I19: =VLOOKUP($A19,datos!$A$4:$AD$52,9) -> 182 | J19: 1154 | K19: =VLOOKUP($A19,datos!$A$4:$AD$52,10) -> 187 | L19: =VLOOKUP($A19,datos!$A$4:$AD$52,11) -> 147 | M19: =VLOOKUP($A19,datos!$A$4:$AD$52,12) -> 135 | N19: =VLOOKUP($A19,datos!$A$4:$AD$52,13) -> 143 | O19: =VLOOKUP($A19,datos!$A$4:$AD$52,14) -> 161 | P19: =VLOOKUP($A19,datos!$A$4:$AD$52,15) -> 158 | Q19: 931 | R19: =VLOOKUP($A19,datos!$A$4:$AD$52,16) -> 195 | S19: =VLOOKUP($A19,datos!$A$4:$AD$52,17) -> 180 | T19: =VLOOKUP($A19,datos!$A$4:$AD$52,18) -> 193 | U19: =VLOOKUP($A19,datos!$A$4:$AD$52,19) -> 182 | V19: =VLOOKUP($A19,datos!$A$4:$AD$52,20) -> 233 | W19: =VLOOKUP($A19,datos!$A$4:$AD$52,21) -> 200 | X19: 1183 | Y19: =VLOOKUP($A19,datos!$A$4:$AD$52,22) -> 178 | Z19: =VLOOKUP($A19,datos!$A$4:$AD$52,23) -> 195 | AA19: =VLOOKUP($A19,datos!$A$4:$AD$52,24) -> 172 | AB19: =VLOOKUP($A19,datos!$A$4:$AD$52,25) -> 212 | AC19: =VLOOKUP($A19,datos!$A$4:$AD$52,26) -> 212 | AD19: =VLOOKUP($A19,datos!$A$4:$AD$52,27) -> 192 | AE19: 1161 | AF19: =VLOOKUP($A19,datos!$A$4:$AD$52,28) -> 24 | AG19: =VLOOKUP($A19,datos!$A$4:$AD$52,29) -> 4429 | AH19: 184.5416667 | AI19: 13º
A20: J12 | B20: =VLOOKUP($A20,datos!$A$4:$AD$52,2) -> AGUSTIN LEANDRO A. | C20: =VLOOKUP($A20,datos!$A$4:$AD$52,3) -> Argentina | D20: =VLOOKUP($A20,datos!$A$4:$AD$52,4) -> 184 | E20: =VLOOKUP($A20,datos!$A$4:$AD$52,5) -> 165 | F20: =VLOOKUP($A20,datos!$A$4:$AD$52,6) -> 165 | G20: =VLOOKUP($A20,datos!$A$4:$AD$52,7) -> 203 | H20: =VLOOKUP($A20,datos!$A$4:$AD$52,8) -> 178 | I20: =VLOOKUP($A20,datos!$A$4:$AD$52,9) -> 172 | J20: 1067 | K20: =VLOOKUP($A20,datos!$A$4:$AD$52,10) -> 147 | L20: =VLOOKUP($A20,datos!$A$4:$AD$52,11) -> 210 | M20: =VLOOKUP($A20,datos!$A$4:$AD$52,12) -> 171 | N20: =VLOOKUP($A20,datos!$A$4:$AD$52,13) -> 219 | O20: =VLOOKUP($A20,datos!$A$4:$AD$52,14) -> 157 | P20: =VLOOKUP($A20,datos!$A$4:$AD$52,15) -> 188 | Q20: 1092 | R20: =VLOOKUP($A20,datos!$A$4:$AD$52,16) -> 138 | S20: =VLOOKUP($A20,datos!$A$4:$AD$52,17) -> 177 | T20: =VLOOKUP($A20,datos!$A$4:$AD$52,18) -> 180 | U20: =VLOOKUP($A20,datos!$A$4:$AD$52,19) -> 184 | V20: =VLOOKUP($A20,datos!$A$4:$AD$52,20) -> 221 | W20: =VLOOKUP($A20,datos!$A$4:$AD$52,21) -> 153 | X20: 1053 | Y20: =VLOOKUP($A20,datos!$A$4:$AD$52,22) -> 188 | Z20: =VLOOKUP($A20,datos!$A$4:$AD$52,23) -> 199 | AA20: =VLOOKUP($A20,datos!$A$4:$AD$52,24) -> 195 | AB20: =VLOOKUP($A20,datos!$A$4:$AD$52,25) -> 181 | AC20: =VLOOKUP($A20,datos!$A$4:$AD$52,26) -> 191 | AD20: =VLOOKUP($A20,datos!$A$4:$AD$52,27) -> 245 | AE20: 1199 | AF20: =VLOOKUP($A20,datos!$A$4:$AD$52,28) -> 24 | AG20: =VLOOKUP($A20,datos!$A$4:$AD$52,29) -> 4411 | AH20: 183.7916667 | AI20: 14º
A21: J19 | B21: =VLOOKUP($A21,datos!$A$4:$AD$52,2) -> ELIAS HALABI | C21: =VLOOKUP($A21,datos!$A$4:$AD$52,3) -> Aruba | D21: =VLOOKUP($A21,datos!$A$4:$AD$52,4) -> 202 | E21: =VLOOKUP($A21,datos!$A$4:$AD$52,5) -> 155 | F21: =VLOOKUP($A21,datos!$A$4:$AD$52,6) -> 220 | G21: =VLOOKUP($A21,datos!$A$4:$AD$52,7) -> 142 | H21: =VLOOKUP($A21,datos!$A$4:$AD$52,8) -> 206 | I21: =VLOOKUP($A21,datos!$A$4:$AD$52,9) -> 207 | J21: 1132 | K21: =VLOOKUP($A21,datos!$A$4:$AD$52,10) -> 202 | L21: =VLOOKUP($A21,datos!$A$4:$AD$52,11) -> 154 | M21: =VLOOKUP($A21,datos!$A$4:$AD$52,12) -> 173 | N21: =VLOOKUP($A21,datos!$A$4:$AD$52,13) -> 186 | O21: =VLOOKUP($A21,datos!$A$4:$AD$52,14) -> 182 | P21: =VLOOKUP($A21,datos!$A$4:$AD$52,15) -> 126 | Q21: 1023 | R21: =VLOOKUP($A21,datos!$A$4:$AD$52,16) -> 178 | S21: =VLOOKUP($A21,datos!$A$4:$AD$52,17) -> 167 | T21: =VLOOKUP($A21,datos!$A$4:$AD$52,18) -> 178 | U21: =VLOOKUP($A21,datos!$A$4:$AD$52,19) -> 210 | V21: =VLOOKUP($A21,datos!$A$4:$AD$52,20) -> 170 | W21: =VLOOKUP($A21,datos!$A$4:$AD$52,21) -> 188 | X21: 1091 | Y21: =VLOOKUP($A21,datos!$A$4:$AD$52,22) -> 171 | Z21: =VLOOKUP($A21,datos!$A$4:$AD$52,23) -> 171 | AA21: =VLOOKUP($A21,datos!$A$4:$AD$52,24) -> 227 | AB21: =VLOOKUP($A21,datos!$A$4:$AD$52,25) -> 229 | AC21: =VLOOKUP($A21,datos!$A$4:$AD$52,26) -> 159 | AD21: =VLOOKUP($A21,datos!$A$4:$AD$52,27) -> 194 | AE21: 1151 | AF21: =VLOOKUP($A21,datos!$A$4:$AD$52,28) -> 24 | AG21: =VLOOKUP($A21,datos!$A$4:$AD$52,29) -> 4397 | AH21: 183.2083333 | AI21: 15º
A22: J28 | B22: =VLOOKUP($A22,datos!$A$4:$AD$52,2) -> BASTIAN MALDONADO R. | C22: =VLOOKUP($A22,datos!$A$4:$AD$52,3) -> Chile | D22: =VLOOKUP($A22,datos!$A$4:$AD$52,4) -> 226 | E22: =VLOOKUP($A22,datos!$A$4:$AD$52,5) -> 169 | F22: =VLOOKUP($A22,datos!$A$4:$AD$52,6) -> 153 | G22: =VLOOKUP($A22,datos!$A$4:$AD$52,7) -> 184 | H22: =VLOOKUP($A22,datos!$A$4:$AD$52,8) -> 189 | I22: =VLOOKUP($A22,datos!$A$4:$AD$52,9) -> 195 | J22: 1116 | K22: =VLOOKUP($A22,datos!$A$4:$AD$52,10) -> 201 | L22: =VLOOKUP($A22,datos!$A$4:$AD$52,11) -> 148 | M22: =VLOOKUP($A22,datos!$A$4:$AD$52,12) -> 130 | N22: =VLOOKUP($A22,datos!$A$4:$AD$52,13) -> 165 | O22: =VLOOKUP($A22,datos!$A$4:$AD$52,14) -> 165 | P22: =VLOOKUP($A22,datos!$A$4:$AD$52,15) -> 152 | Q22: 961 | R22: =VLOOKUP($A22,datos!$A$4:$AD$52,16) -> 182 | S22: =VLOOKUP($A22,datos!$A$4:$AD$52,17) -> 162 | T22: =VLOOKUP($A22,datos!$A$4:$AD$52,18) -> 222 | U22: =VLOOKUP($A22,datos!$A$4:$AD$52,19) -> 234 | V22: =VLOOKUP($A22,datos!$A$4:$AD$52,20) -> 182 | W22: =VLOOKUP($A22,datos!$A$4:$AD$52,21) -> 187 | X22: 1169 | Y22: =VLOOKUP($A22,datos!$A$4:$AD$52,22) -> 148 | Z22: =VLOOKUP($A22,datos!$A$4:$AD$52,23) -> 167 | AA22: =VLOOKUP($A22,datos!$A$4:$AD$52,24) -> 205 | AB22: =VLOOKUP($A22,datos!$A$4:$AD$52,25) -> 200 | AC22: =VLOOKUP($A22,datos!$A$4:$AD$52,26) -> 209 | AD22: =VLOOKUP($A22,datos!$A$4:$AD$52,27) -> 161 | AE22: 1090 | AF22: =VLOOKUP($A22,datos!$A$4:$AD$52,28) -> 24 | AG22: =VLOOKUP($A22,datos!$A$4:$AD$52,29) -> 4336 | AH22: 180.6666667 | AI22: 16º
A23: J18 | B23: =VLOOKUP($A23,datos!$A$4:$AD$52,2) -> OSMAR BISLIP | C23: =VLOOKUP($A23,datos!$A$4:$AD$52,3) -> Aruba | D23: =VLOOKUP($A23,datos!$A$4:$AD$52,4) -> 205 | E23: =VLOOKUP($A23,datos!$A$4:$AD$52,5) -> 195 | F23: =VLOOKUP($A23,datos!$A$4:$AD$52,6) -> 162 | G23: =VLOOKUP($A23,datos!$A$4:$AD$52,7) -> 164 | H23: =VLOOKUP($A23,datos!$A$4:$AD$52,8) -> 192 | I23: =VLOOKUP($A23,datos!$A$4:$AD$52,9) -> 168 | J23: 1086 | K23: =VLOOKUP($A23,datos!$A$4:$AD$52,10) -> 205 | L23: =VLOOKUP($A23,datos!$A$4:$AD$52,11) -> 159 | M23: =VLOOKUP($A23,datos!$A$4:$AD$52,12) -> 158 | N23: =VLOOKUP($A23,datos!$A$4:$AD$52,13) -> 200 | O23: =VLOOKUP($A23,datos!$A$4:$AD$52,14) -> 145 | P23: =VLOOKUP($A23,datos!$A$4:$AD$52,15) -> 175 | Q23: 1042 | R23: =VLOOKUP($A23,datos!$A$4:$AD$52,16) -> 163 | S23: =VLOOKUP($A23,datos!$A$4:$AD$52,17) -> 172 | T23: =VLOOKUP($A23,datos!$A$4:$AD$52,18) -> 161 | U23: =VLOOKUP($A23,datos!$A$4:$AD$52,19) -> 181 | V23: =VLOOKUP($A23,datos!$A$4:$AD$52,20) -> 193 | W23: =VLOOKUP($A23,datos!$A$4:$AD$52,21) -> 256 | X23: 1126 | Y23: =VLOOKUP($A23,datos!$A$4:$AD$52,22) -> 159 | Z23: =VLOOKUP($A23,datos!$A$4:$AD$52,23) -> 195 | AA23: =VLOOKUP($A23,datos!$A$4:$AD$52,24) -> 172 | AB23: =VLOOKUP($A23,datos!$A$4:$AD$52,25) -> 158 | AC23: =VLOOKUP($A23,datos!$A$4:$AD$52,26) -> 221 | AD23: =VLOOKUP($A23,datos!$A$4:$AD$52,27) -> 173 | AE23: 1078 | AF23: =VLOOKUP($A23,datos!$A$4:$AD$52,28) -> 24 | AG23: =VLOOKUP($A23,datos!$A$4:$AD$52,29) -> 4332 | AH23: 180.5 | AI23: 17º
A24: J21 | B24: =VLOOKUP($A24,datos!$A$4:$AD$52,2) -> BERNARDO ABREU | C24: =VLOOKUP($A24,datos!$A$4:$AD$52,3) -> Brasil | D24: =VLOOKUP($A24,datos!$A$4:$AD$52,4) -> 180 | E24: =VLOOKUP($A24,datos!$A$4:$AD$52,5) -> 177 | F24: =VLOOKUP($A24,datos!$A$4:$AD$52,6) -> 175 | G24: =VLOOKUP($A24,datos!$A$4:$AD$52,7) -> 190 | H24: =VLOOKUP($A24,datos!$A$4:$AD$52,8) -> 194 | I24: =VLOOKUP($A24,datos!$A$4:$AD$52,9) -> 173 | J24: 1089 | K24: =VLOOKUP($A24,datos!$A$4:$AD$52,10) -> 176 | L24: =VLOOKUP($A24,datos!$A$4:$AD$52,11) -> 154 | M24: =VLOOKUP($A24,datos!$A$4:$AD$52,12) -> 194 | N24: =VLOOKUP($A24,datos!$A$4:$AD$52,13) -> 131 | O24: =VLOOKUP($A24,datos!$A$4:$AD$52,14) -> 169 | P24: =VLOOKUP($A24,datos!$A$4:$AD$52,15) -> 165 | Q24: 989 | R24: =VLOOKUP($A24,datos!$A$4:$AD$52,16) -> 184 | S24: =VLOOKUP($A24,datos!$A$4:$AD$52,17) -> 216 | T24: =VLOOKUP($A24,datos!$A$4:$AD$52,18) -> 162 | U24: =VLOOKUP($A24,datos!$A$4:$AD$52,19) -> 200 | V24: =VLOOKUP($A24,datos!$A$4:$AD$52,20) -> 194 | W24: =VLOOKUP($A24,datos!$A$4:$AD$52,21) -> 225 | X24: 1181 | Y24: =VLOOKUP($A24,datos!$A$4:$AD$52,22) -> 150 | Z24: =VLOOKUP($A24,datos!$A$4:$AD$52,23) -> 176 | AA24: =VLOOKUP($A24,datos!$A$4:$AD$52,24) -> 181 | AB24: =VLOOKUP($A24,datos!$A$4:$AD$52,25) -> 156 | AC24: =VLOOKUP($A24,datos!$A$4:$AD$52,26) -> 193 | AD24: =VLOOKUP($A24,datos!$A$4:$AD$52,27) -> 205 | AE24: 1061 | AF24: =VLOOKUP($A24,datos!$A$4:$AD$52,28) -> 24 | AG24: =VLOOKUP($A24,datos!$A$4:$AD$52,29) -> 4320 | AH24: 180 | AI24: 18º
A25: J32 | B25: =VLOOKUP($A25,datos!$A$4:$AD$52,2) -> ADRIAN GUIBU K. | C25: =VLOOKUP($A25,datos!$A$4:$AD$52,3) -> Perú | D25: =VLOOKUP($A25,datos!$A$4:$AD$52,4) -> 170 | E25: =VLOOKUP($A25,datos!$A$4:$AD$52,5) -> 142 | F25: =VLOOKUP($A25,datos!$A$4:$AD$52,6) -> 139 | G25: =VLOOKUP($A25,datos!$A$4:$AD$52,7) -> 166 | H25: =VLOOKUP($A25,datos!$A$4:$AD$52,8) -> 269 | I25: =VLOOKUP($A25,datos!$A$4:$AD$52,9) -> 193 | J25: 1079 | K25: =VLOOKUP($A25,datos!$A$4:$AD$52,10) -> 133 | L25: =VLOOKUP($A25,datos!$A$4:$AD$52,11) -> 146 | M25: =VLOOKUP($A25,datos!$A$4:$AD$52,12) -> 224 | N25: =VLOOKUP($A25,datos!$A$4:$AD$52,13) -> 161 | O25: =VLOOKUP($A25,datos!$A$4:$AD$52,14) -> 149 | P25: =VLOOKUP($A25,datos!$A$4:$AD$52,15) -> 191 | Q25: 1004 | R25: =VLOOKUP($A25,datos!$A$4:$AD$52,16) -> 177 | S25: =VLOOKUP($A25,datos!$A$4:$AD$52,17) -> 196 | T25: =VLOOKUP($A25,datos!$A$4:$AD$52,18) -> 172 | U25: =VLOOKUP($A25,datos!$A$4:$AD$52,19) -> 151 | V25: =VLOOKUP($A25,datos!$A$4:$AD$52,20) -> 200 | W25: =VLOOKUP($A25,datos!$A$4:$AD$52,21) -> 148 | X25: 1044 | Y25: =VLOOKUP($A25,datos!$A$4:$AD$52,22) -> 156 | Z25: =VLOOKUP($A25,datos!$A$4:$AD$52,23) -> 158 | AA25: =VLOOKUP($A25,datos!$A$4:$AD$52,24) -> 222 | AB25: =VLOOKUP($A25,datos!$A$4:$AD$52,25) -> 222 | AC25: =VLOOKUP($A25,datos!$A$4:$AD$52,26) -> 195 | AD25: =VLOOKUP($A25,datos!$A$4:$AD$52,27) -> 191 | AE25: 1144 | AF25: =VLOOKUP($A25,datos!$A$4:$AD$52,28) -> 24 | AG25: =VLOOKUP($A25,datos!$A$4:$AD$52,29) -> 4271 | AH25: 177.9583333 | AI25: 19º
A26: J14 | B26: =VLOOKUP($A26,datos!$A$4:$AD$52,2) -> FABRICIO E. SANDUAY | C26: =VLOOKUP($A26,datos!$A$4:$AD$52,3) -> Argentina | D26: =VLOOKUP($A26,datos!$A$4:$AD$52,4) -> 140 | E26: =VLOOKUP($A26,datos!$A$4:$AD$52,5) -> 150 | F26: =VLOOKUP($A26,datos!$A$4:$AD$52,6) -> 204 | G26: =VLOOKUP($A26,datos!$A$4:$AD$52,7) -> 211 | H26: =VLOOKUP($A26,datos!$A$4:$AD$52,8) -> 146 | I26: =VLOOKUP($A26,datos!$A$4:$AD$52,9) -> 194 | J26: 1045 | K26: =VLOOKUP($A26,datos!$A$4:$AD$52,10) -> 170 | L26: =VLOOKUP($A26,datos!$A$4:$AD$52,11) -> 171 | M26: =VLOOKUP($A26,datos!$A$4:$AD$52,12) -> 157 | N26: =VLOOKUP($A26,datos!$A$4:$AD$52,13) -> 168 | O26: =VLOOKUP($A26,datos!$A$4:$AD$52,14) -> 178 | P26: =VLOOKUP($A26,datos!$A$4:$AD$52,15) -> 125 | Q26: 969 | R26: =VLOOKUP($A26,datos!$A$4:$AD$52,16) -> 202 | S26: =VLOOKUP($A26,datos!$A$4:$AD$52,17) -> 162 | T26: =VLOOKUP($A26,datos!$A$4:$AD$52,18) -> 161 | U26: =VLOOKUP($A26,datos!$A$4:$AD$52,19) -> 176 | V26: =VLOOKUP($A26,datos!$A$4:$AD$52,20) -> 211 | W26: =VLOOKUP($A26,datos!$A$4:$AD$52,21) -> 194 | X26: 1106 | Y26: =VLOOKUP($A26,datos!$A$4:$AD$52,22) -> 203 | Z26: =VLOOKUP($A26,datos!$A$4:$AD$52,23) -> 171 | AA26: =VLOOKUP($A26,datos!$A$4:$AD$52,24) -> 209 | AB26: =VLOOKUP($A26,datos!$A$4:$AD$52,25) -> 178 | AC26: =VLOOKUP($A26,datos!$A$4:$AD$52,26) -> 126 | AD26: =VLOOKUP($A26,datos!$A$4:$AD$52,27) -> 179 | AE26: 1066 | AF26: =VLOOKUP($A26,datos!$A$4:$AD$52,28) -> 24 | AG26: =VLOOKUP($A26,datos!$A$4:$AD$52,29) -> 4186 | AH26: 174.4166667 | AI26: 20º
A27: J34 | B27: =VLOOKUP($A27,datos!$A$4:$AD$52,2) -> KEIJI M. CAJACHACAHUA M. | C27: =VLOOKUP($A27,datos!$A$4:$AD$52,3) -> Perú | D27: =VLOOKUP($A27,datos!$A$4:$AD$52,4) -> 178 | E27: =VLOOKUP($A27,datos!$A$4:$AD$52,5) -> 198 | F27: =VLOOKUP($A27,datos!$A$4:$AD$52,6) -> 183 | G27: =VLOOKUP($A27,datos!$A$4:$AD$52,7) -> 127 | H27: =VLOOKUP($A27,datos!$A$4:$AD$52,8) -> 164 | I27: =VLOOKUP($A27,datos!$A$4:$AD$52,9) -> 150 | J27: 1000 | K27: =VLOOKUP($A27,datos!$A$4:$AD$52,10) -> 176 | L27: =VLOOKUP($A27,datos!$A$4:$AD$52,11) -> 155 | M27: =VLOOKUP($A27,datos!$A$4:$AD$52,12) -> 147 | N27: =VLOOKUP($A27,datos!$A$4:$AD$52,13) -> 140 | O27: =VLOOKUP($A27,datos!$A$4:$AD$52,14) -> 170 | P27: =VLOOKUP($A27,datos!$A$4:$AD$52,15) -> 206 | Q27: 994 | R27: =VLOOKUP($A27,datos!$A$4:$AD$52,16) -> 245 | S27: =VLOOKUP($A27,datos!$A$4:$AD$52,17) -> 187 | T27: =VLOOKUP($A27,datos!$A$4:$AD$52,18) -> 166 | U27: =VLOOKUP($A27,datos!$A$4:$AD$52,19) -> 169 | V27: =VLOOKUP($A27,datos!$A$4:$AD$52,20) -> 234 | W27: =VLOOKUP($A27,datos!$A$4:$AD$52,21) -> 206 | X27: 1207 | Y27: =VLOOKUP($A27,datos!$A$4:$AD$52,22) -> 134 | Z27: =VLOOKUP($A27,datos!$A$4:$AD$52,23) -> 138 | AA27: =VLOOKUP($A27,datos!$A$4:$AD$52,24) -> 134 | AB27: =VLOOKUP($A27,datos!$A$4:$AD$52,25) -> 139 | AC27: =VLOOKUP($A27,datos!$A$4:$AD$52,26) -> 135 | AD27: =VLOOKUP($A27,datos!$A$4:$AD$52,27) -> 200 | AE27: 880 | AF27: =VLOOKUP($A27,datos!$A$4:$AD$52,28) -> 24 | AG27: =VLOOKUP($A27,datos!$A$4:$AD$52,29) -> 4081 | AH27: 170.0416667 | AI27: 21º
A28: J29 | B28: =VLOOKUP($A28,datos!$A$4:$AD$52,2) -> MATIAS NAZAR G. | C28: =VLOOKUP($A28,datos!$A$4:$AD$52,3) -> Chile | D28: =VLOOKUP($A28,datos!$A$4:$AD$52,4) -> 157 | E28: =VLOOKUP($A28,datos!$A$4:$AD$52,5) -> 167 | F28: =VLOOKUP($A28,datos!$A$4:$AD$52,6) -> 182 | G28: =VLOOKUP($A28,datos!$A$4:$AD$52,7) -> 159 | H28: =VLOOKUP($A28,datos!$A$4:$AD$52,8) -> 149 | I28: =VLOOKUP($A28,datos!$A$4:$AD$52,9) -> 160 | J28: 974 | K28: =VLOOKUP($A28,datos!$A$4:$AD$52,10) -> 141 | L28: =VLOOKUP($A28,datos!$A$4:$AD$52,11) -> 212 | M28: =VLOOKUP($A28,datos!$A$4:$AD$52,12) -> 189 | N28: =VLOOKUP($A28,datos!$A$4:$AD$52,13) -> 195 | O28: =VLOOKUP($A28,datos!$A$4:$AD$52,14) -> 175 | P28: =VLOOKUP($A28,datos!$A$4:$AD$52,15) -> 165 | Q28: 1077 | R28: =VLOOKUP($A28,datos!$A$4:$AD$52,16) -> 199 | S28: =VLOOKUP($A28,datos!$A$4:$AD$52,17) -> 158 | T28: =VLOOKUP($A28,datos!$A$4:$AD$52,18) -> 180 | U28: =VLOOKUP($A28,datos!$A$4:$AD$52,19) -> 212 | V28: =VLOOKUP($A28,datos!$A$4:$AD$52,20) -> 145 | W28: =VLOOKUP($A28,datos!$A$4:$AD$52,21) -> 144 | X28: 1038 | Y28: =VLOOKUP($A28,datos!$A$4:$AD$52,22) -> 156 | Z28: =VLOOKUP($A28,datos!$A$4:$AD$52,23) -> 160 | AA28: =VLOOKUP($A28,datos!$A$4:$AD$52,24) -> 160 | AB28: =VLOOKUP($A28,datos!$A$4:$AD$52,25) -> 185 | AC28: =VLOOKUP($A28,datos!$A$4:$AD$52,26) -> 167 | AD28: =VLOOKUP($A28,datos!$A$4:$AD$52,27) -> 162 | AE28: 990 | AF28: =VLOOKUP($A28,datos!$A$4:$AD$52,28) -> 24 | AG28: =VLOOKUP($A28,datos!$A$4:$AD$52,29) -> 4079 | AH28: 169.9583333 | AI28: 22º
A29: J36 | B29: =VLOOKUP($A29,datos!$A$4:$AD$52,2) -> MATIAS DA MOTTA L. | C29: =VLOOKUP($A29,datos!$A$4:$AD$52,3) -> Uruguay | D29: =VLOOKUP($A29,datos!$A$4:$AD$52,4) -> 125 | E29: =VLOOKUP($A29,datos!$A$4:$AD$52,5) -> 158 | F29: =VLOOKUP($A29,datos!$A$4:$AD$52,6) -> 139 | G29: =VLOOKUP($A29,datos!$A$4:$AD$52,7) -> 147 | H29: =VLOOKUP($A29,datos!$A$4:$AD$52,8) -> 124 | I29: =VLOOKUP($A29,datos!$A$4:$AD$52,9) -> 151 | J29: 844 | K29: =VLOOKUP($A29,datos!$A$4:$AD$52,10) -> 134 | L29: =VLOOKUP($A29,datos!$A$4:$AD$52,11) -> 200 | M29: =VLOOKUP($A29,datos!$A$4:$AD$52,12) -> 148 | N29: =VLOOKUP($A29,datos!$A$4:$AD$52,13) -> 138 | O29: =VLOOKUP($A29,datos!$A$4:$AD$52,14) -> 189 | P29: =VLOOKUP($A29,datos!$A$4:$AD$52,15) -> 186 | Q29: 995 | R29: =VLOOKUP($A29,datos!$A$4:$AD$52,16) -> 147 | S29: =VLOOKUP($A29,datos!$A$4:$AD$52,17) -> 157 | T29: =VLOOKUP($A29,datos!$A$4:$AD$52,18) -> 144 | U29: =VLOOKUP($A29,datos!$A$4:$AD$52,19) -> 137 | V29: =VLOOKUP($A29,datos!$A$4:$AD$52,20) -> 195 | W29: =VLOOKUP($A29,datos!$A$4:$AD$52,21) -> 137 | X29: 917 | Y29: =VLOOKUP($A29,datos!$A$4:$AD$52,22) -> 174 | Z29: =VLOOKUP($A29,datos!$A$4:$AD$52,23) -> 205 | AA29: =VLOOKUP($A29,datos!$A$4:$AD$52,24) -> 111 | AB29: =VLOOKUP($A29,datos!$A$4:$AD$52,25) -> 125 | AC29: =VLOOKUP($A29,datos!$A$4:$AD$52,26) -> 146 | AD29: =VLOOKUP($A29,datos!$A$4:$AD$52,27) -> 139 | AE29: 900 | AF29: =VLOOKUP($A29,datos!$A$4:$AD$52,28) -> 24 | AG29: =VLOOKUP($A29,datos!$A$4:$AD$52,29) -> 3656 | AH29: 152.3333333 | AI29: 23º
A30: J38 | B30: =VLOOKUP($A30,datos!$A$4:$AD$52,2) -> FELIPE FUENTES F. | C30: =VLOOKUP($A30,datos!$A$4:$AD$52,3) -> Uruguay | D30: =VLOOKUP($A30,datos!$A$4:$AD$52,4) -> 150 | E30: =VLOOKUP($A30,datos!$A$4:$AD$52,5) -> 125 | F30: =VLOOKUP($A30,datos!$A$4:$AD$52,6) -> 174 | G30: =VLOOKUP($A30,datos!$A$4:$AD$52,7) -> 191 | H30: =VLOOKUP($A30,datos!$A$4:$AD$52,8) -> 152 | I30: =VLOOKUP($A30,datos!$A$4:$AD$52,9) -> 140 | J30: 932 | K30: =VLOOKUP($A30,datos!$A$4:$AD$52,10) -> 123 | L30: =VLOOKUP($A30,datos!$A$4:$AD$52,11) -> 146 | M30: =VLOOKUP($A30,datos!$A$4:$AD$52,12) -> 138 | N30: =VLOOKUP($A30,datos!$A$4:$AD$52,13) -> 130 | O30: =VLOOKUP($A30,datos!$A$4:$AD$52,14) -> 154 | P30: =VLOOKUP($A30,datos!$A$4:$AD$52,15) -> 125 | Q30: 816 | R30: =VLOOKUP($A30,datos!$A$4:$AD$52,16) -> 146 | S30: =VLOOKUP($A30,datos!$A$4:$AD$52,17) -> 130 | T30: =VLOOKUP($A30,datos!$A$4:$AD$52,18) -> 108 | U30: =VLOOKUP($A30,datos!$A$4:$AD$52,19) -> 154 | V30: =VLOOKUP($A30,datos!$A$4:$AD$52,20) -> 142 | W30: =VLOOKUP($A30,datos!$A$4:$AD$52,21) -> 194 | X30: 874 | Y30: =VLOOKUP($A30,datos!$A$4:$AD$52,22) -> 157 | Z30: =VLOOKUP($A30,datos!$A$4:$AD$52,23) -> 184 | AA30: =VLOOKUP($A30,datos!$A$4:$AD$52,24) -> 211 | AB30: =VLOOKUP($A30,datos!$A$4:$AD$52,25) -> 131 | AC30: =VLOOKUP($A30,datos!$A$4:$AD$52,26) -> 168 | AD30: =VLOOKUP($A30,datos!$A$4:$AD$52,27) -> 161 | AE30: 1012 | AF30: =VLOOKUP($A30,datos!$A$4:$AD$52,28) -> 24 | AG30: =VLOOKUP($A30,datos!$A$4:$AD$52,29) -> 3634 | AH30: 151.4166667 | AI30: 24º
A31: J37 | B31: =VLOOKUP($A31,datos!$A$4:$AD$52,2) -> ALFONSO RODRIGUEZ L. | C31: =VLOOKUP($A31,datos!$A$4:$AD$52,3) -> Uruguay | D31: =VLOOKUP($A31,datos!$A$4:$AD$52,4) -> 163 | E31: =VLOOKUP($A31,datos!$A$4:$AD$52,5) -> 160 | F31: =VLOOKUP($A31,datos!$A$4:$AD$52,6) -> 107 | G31: =VLOOKUP($A31,datos!$A$4:$AD$52,7) -> 130 | H31: =VLOOKUP($A31,datos!$A$4:$AD$52,8) -> 180 | I31: =VLOOKUP($A31,datos!$A$4:$AD$52,9) -> 151 | J31: 891 | K31: =VLOOKUP($A31,datos!$A$4:$AD$52,10) -> 154 | L31: =VLOOKUP($A31,datos!$A$4:$AD$52,11) -> 158 | M31: =VLOOKUP($A31,datos!$A$4:$AD$52,12) -> 148 | N31: =VLOOKUP($A31,datos!$A$4:$AD$52,13) -> 128 | O31: =VLOOKUP($A31,datos!$A$4:$AD$52,14) -> 142 | P31: =VLOOKUP($A31,datos!$A$4:$AD$52,15) -> 132 | Q31: 862 | R31: =VLOOKUP($A31,datos!$A$4:$AD$52,16) -> 194 | S31: =VLOOKUP($A31,datos!$A$4:$AD$52,17) -> 137 | T31: =VLOOKUP($A31,datos!$A$4:$AD$52,18) -> 128 | U31: =VLOOKUP($A31,datos!$A$4:$AD$52,19) -> 112 | V31: =VLOOKUP($A31,datos!$A$4:$AD$52,20) -> 121 | W31: =VLOOKUP($A31,datos!$A$4:$AD$52,21) -> 144 | X31: 836 | Y31: =VLOOKUP($A31,datos!$A$4:$AD$52,22) -> 139 | Z31: =VLOOKUP($A31,datos!$A$4:$AD$52,23) -> 156 | AA31: =VLOOKUP($A31,datos!$A$4:$AD$52,24) -> 130 | AB31: =VLOOKUP($A31,datos!$A$4:$AD$52,25) -> 151 | AC31: =VLOOKUP($A31,datos!$A$4:$AD$52,26) -> 131 | AD31: =VLOOKUP($A31,datos!$A$4:$AD$52,27) -> 167 | AE31: 874 | AF31: =VLOOKUP($A31,datos!$A$4:$AD$52,28) -> 24 | AG31: =VLOOKUP($A31,datos!$A$4:$AD$52,29) -> 3463 | AH31: 144.2916667 | AI31: 25º
A32: J30 | B32: =VLOOKUP($A32,datos!$A$4:$AD$52,2) -> IVAN VELIZ H. | C32: =VLOOKUP($A32,datos!$A$4:$AD$52,3) -> Chile | D32: =VLOOKUP($A32,datos!$A$4:$AD$52,4) -> 158 | E32: =VLOOKUP($A32,datos!$A$4:$AD$52,5) -> 133 | F32: =VLOOKUP($A32,datos!$A$4:$AD$52,6) -> 123 | G32: =VLOOKUP($A32,datos!$A$4:$AD$52,7) -> 158 | H32: =VLOOKUP($A32,datos!$A$4:$AD$52,8) -> 137 | I32: =VLOOKUP($A32,datos!$A$4:$AD$52,9) -> 112 | J32: 821 | K32: =VLOOKUP($A32,datos!$A$4:$AD$52,10) -> 154 | L32: =VLOOKUP($A32,datos!$A$4:$AD$52,11) -> 144 | M32: =VLOOKUP($A32,datos!$A$4:$AD$52,12) -> 168 | N32: =VLOOKUP($A32,datos!$A$4:$AD$52,13) -> 169 | O32: =VLOOKUP($A32,datos!$A$4:$AD$52,14) -> 158 | P32: =VLOOKUP($A32,datos!$A$4:$AD$52,15) -> 114 | Q32: 907 | R32: =VLOOKUP($A32,datos!$A$4:$AD$52,16) -> 131 | S32: =VLOOKUP($A32,datos!$A$4:$AD$52,17) -> 153 | T32: =VLOOKUP($A32,datos!$A$4:$AD$52,18) -> 110 | U32: =VLOOKUP($A32,datos!$A$4:$AD$52,19) -> 177 | V32: =VLOOKUP($A32,datos!$A$4:$AD$52,20) -> 145 | W32: =VLOOKUP($A32,datos!$A$4:$AD$52,21) -> 142 | X32: 858 | Y32: =VLOOKUP($A32,datos!$A$4:$AD$52,22) -> 150 | Z32: =VLOOKUP($A32,datos!$A$4:$AD$52,23) -> 163 | AA32: =VLOOKUP($A32,datos!$A$4:$AD$52,24) -> 144 | AB32: =VLOOKUP($A32,datos!$A$4:$AD$52,25) -> 168 | AC32: =VLOOKUP($A32,datos!$A$4:$AD$52,26) -> 155 | AD32: =VLOOKUP($A32,datos!$A$4:$AD$52,27) -> 95 | AE32: 875 | AF32: =VLOOKUP($A32,datos!$A$4:$AD$52,28) -> 24 | AG32: =VLOOKUP($A32,datos!$A$4:$AD$52,29) -> 3461 | AH32: 144.2083333 | AI32: 26º
A33: J31 | B33: =VLOOKUP($A33,datos!$A$4:$AD$52,2) -> LUIS JEREZ G. | C33: =VLOOKUP($A33,datos!$A$4:$AD$52,3) -> Chile | D33: =VLOOKUP($A33,datos!$A$4:$AD$52,4) -> 154 | E33: =VLOOKUP($A33,datos!$A$4:$AD$52,5) -> 116 | F33: =VLOOKUP($A33,datos!$A$4:$AD$52,6) -> 117 | G33: =VLOOKUP($A33,datos!$A$4:$AD$52,7) -> 116 | H33: =VLOOKUP($A33,datos!$A$4:$AD$52,8) -> 103 | I33: =VLOOKUP($A33,datos!$A$4:$AD$52,9) -> 103 | J33: 709 | K33: =VLOOKUP($A33,datos!$A$4:$AD$52,10) -> 155 | L33: =VLOOKUP($A33,datos!$A$4:$AD$52,11) -> 159 | M33: =VLOOKUP($A33,datos!$A$4:$AD$52,12) -> 116 | N33: =VLOOKUP($A33,datos!$A$4:$AD$52,13) -> 128 | O33: =VLOOKUP($A33,datos!$A$4:$AD$52,14) -> 103 | P33: =VLOOKUP($A33,datos!$A$4:$AD$52,15) -> 144 | Q33: 805 | R33: =VLOOKUP($A33,datos!$A$4:$AD$52,16) -> 125 | S33: =VLOOKUP($A33,datos!$A$4:$AD$52,17) -> 115 | T33: =VLOOKUP($A33,datos!$A$4:$AD$52,18) -> 89 | U33: =VLOOKUP($A33,datos!$A$4:$AD$52,19) -> 133 | V33: =VLOOKUP($A33,datos!$A$4:$AD$52,20) -> 176 | W33: =VLOOKUP($A33,datos!$A$4:$AD$52,21) -> 151 | X33: 789 | Y33: =VLOOKUP($A33,datos!$A$4:$AD$52,22) -> 157 | Z33: =VLOOKUP($A33,datos!$A$4:$AD$52,23) -> 124 | AA33: =VLOOKUP($A33,datos!$A$4:$AD$52,24) -> 166 | AB33: =VLOOKUP($A33,datos!$A$4:$AD$52,25) -> 125 | AC33: =VLOOKUP($A33,datos!$A$4:$AD$52,26) -> 123 | AD33: =VLOOKUP($A33,datos!$A$4:$AD$52,27) -> 126 | AE33: 821 | AF33: =VLOOKUP($A33,datos!$A$4:$AD$52,28) -> 24 | AG33: =VLOOKUP($A33,datos!$A$4:$AD$52,29) -> 3124 | AH33: 130.1666667 | AI33: 27º
A34: J39 | B34: =VLOOKUP($A34,datos!$A$4:$AD$52,2) -> FELIPE FUENTES F. | C34: =VLOOKUP($A34,datos!$A$4:$AD$52,3) -> Uruguay | D34: =VLOOKUP($A34,datos!$A$4:$AD$52,4) -> 150 | E34: =VLOOKUP($A34,datos!$A$4:$AD$52,5) -> 125 | F34: =VLOOKUP($A34,datos!$A$4:$AD$52,6) -> 174 | G34: =VLOOKUP($A34,datos!$A$4:$AD$52,7) -> 191 | H34: =VLOOKUP($A34,datos!$A$4:$AD$52,8) -> 152 | I34: =VLOOKUP($A34,datos!$A$4:$AD$52,9) -> 140 | J34: 932 | K34: =VLOOKUP($A34,datos!$A$4:$AD$52,10) -> 123 | L34: =VLOOKUP($A34,datos!$A$4:$AD$52,11) -> 146 | M34: =VLOOKUP($A34,datos!$A$4:$AD$52,12) -> 138 | N34: =VLOOKUP($A34,datos!$A$4:$AD$52,13) -> 130 | O34: =VLOOKUP($A34,datos!$A$4:$AD$52,14) -> 154 | P34: =VLOOKUP($A34,datos!$A$4:$AD$52,15) -> 125 | Q34: 816 | R34: =VLOOKUP($A34,datos!$A$4:$AD$52,16) -> 146 | S34: =VLOOKUP($A34,datos!$A$4:$AD$52,17) -> 130 | T34: =VLOOKUP($A34,datos!$A$4:$AD$52,18) -> 108 | U34: =VLOOKUP($A34,datos!$A$4:$AD$52,19) -> 154 | V34: =VLOOKUP($A34,datos!$A$4:$AD$52,20) -> 142 | W34: =VLOOKUP($A34,datos!$A$4:$AD$52,21) -> 194 | X34: 874 | Y34: =VLOOKUP($A34,datos!$A$4:$AD$52,22) -> 157 | Z34: =VLOOKUP($A34,datos!$A$4:$AD$52,23) -> 184 | AA34: =VLOOKUP($A34,datos!$A$4:$AD$52,24) -> 211 | AB34: =VLOOKUP($A34,datos!$A$4:$AD$52,25) -> 131 | AC34: =VLOOKUP($A34,datos!$A$4:$AD$52,26) -> 168 | AD34: =VLOOKUP($A34,datos!$A$4:$AD$52,27) -> 161 | AE34: 1012 | AF34: =VLOOKUP($A34,datos!$A$4:$AD$52,28) -> 24 | AG34: =VLOOKUP($A34,datos!$A$4:$AD$52,29) -> 3634 | AH34: 151.4166667 | AI34: 28º
A35: J40 | B35: =VLOOKUP($A35,datos!$A$4:$AD$52,2) -> FELIPE FUENTES F. | C35: =VLOOKUP($A35,datos!$A$4:$AD$52,3) -> Uruguay | D35: =VLOOKUP($A35,datos!$A$4:$AD$52,4) -> 150 | E35: =VLOOKUP($A35,datos!$A$4:$AD$52,5) -> 125 | F35: =VLOOKUP($A35,datos!$A$4:$AD$52,6) -> 174 | G35: =VLOOKUP($A35,datos!$A$4:$AD$52,7) -> 191 | H35: =VLOOKUP($A35,datos!$A$4:$AD$52,8) -> 152 | I35: =VLOOKUP($A35,datos!$A$4:$AD$52,9) -> 140 | J35: 932 | K35: =VLOOKUP($A35,datos!$A$4:$AD$52,10) -> 123 | L35: =VLOOKUP($A35,datos!$A$4:$AD$52,11) -> 146 | M35: =VLOOKUP($A35,datos!$A$4:$AD$52,12) -> 138 | N35: =VLOOKUP($A35,datos!$A$4:$AD$52,13) -> 130 | O35: =VLOOKUP($A35,datos!$A$4:$AD$52,14) -> 154 | P35: =VLOOKUP($A35,datos!$A$4:$AD$52,15) -> 125 | Q35: 816 | R35: =VLOOKUP($A35,datos!$A$4:$AD$52,16) -> 146 | S35: =VLOOKUP($A35,datos!$A$4:$AD$52,17) -> 130 | T35: =VLOOKUP($A35,datos!$A$4:$AD$52,18) -> 108 | U35: =VLOOKUP($A35,datos!$A$4:$AD$52,19) -> 154 | V35: =VLOOKUP($A35,datos!$A$4:$AD$52,20) -> 142 | W35: =VLOOKUP($A35,datos!$A$4:$AD$52,21) -> 194 | X35: 874 | Y35: =VLOOKUP($A35,datos!$A$4:$AD$52,22) -> 157 | Z35: =VLOOKUP($A35,datos!$A$4:$AD$52,23) -> 184 | AA35: =VLOOKUP($A35,datos!$A$4:$AD$52,24) -> 211 | AB35: =VLOOKUP($A35,datos!$A$4:$AD$52,25) -> 131 | AC35: =VLOOKUP($A35,datos!$A$4:$AD$52,26) -> 168 | AD35: =VLOOKUP($A35,datos!$A$4:$AD$52,27) -> 161 | AE35: 1012 | AF35: =VLOOKUP($A35,datos!$A$4:$AD$52,28) -> 24 | AG35: =VLOOKUP($A35,datos!$A$4:$AD$52,29) -> 3634 | AH35: 151.4166667 | AI35: 29º
A36: J41 | B36: =VLOOKUP($A36,datos!$A$4:$AD$52,2) -> FELIPE FUENTES F. | C36: =VLOOKUP($A36,datos!$A$4:$AD$52,3) -> Uruguay | D36: =VLOOKUP($A36,datos!$A$4:$AD$52,4) -> 150 | E36: =VLOOKUP($A36,datos!$A$4:$AD$52,5) -> 125 | F36: =VLOOKUP($A36,datos!$A$4:$AD$52,6) -> 174 | G36: =VLOOKUP($A36,datos!$A$4:$AD$52,7) -> 191 | H36: =VLOOKUP($A36,datos!$A$4:$AD$52,8) -> 152 | I36: =VLOOKUP($A36,datos!$A$4:$AD$52,9) -> 140 | J36: 932 | K36: =VLOOKUP($A36,datos!$A$4:$AD$52,10) -> 123 | L36: =VLOOKUP($A36,datos!$A$4:$AD$52,11) -> 146 | M36: =VLOOKUP($A36,datos!$A$4:$AD$52,12) -> 138 | N36: =VLOOKUP($A36,datos!$A$4:$AD$52,13) -> 130 | O36: =VLOOKUP($A36,datos!$A$4:$AD$52,14) -> 154 | P36: =VLOOKUP($A36,datos!$A$4:$AD$52,15) -> 125 | Q36: 816 | R36: =VLOOKUP($A36,datos!$A$4:$AD$52,16) -> 146 | S36: =VLOOKUP($A36,datos!$A$4:$AD$52,17) -> 130 | T36: =VLOOKUP($A36,datos!$A$4:$AD$52,18) -> 108 | U36: =VLOOKUP($A36,datos!$A$4:$AD$52,19) -> 154 | V36: =VLOOKUP($A36,datos!$A$4:$AD$52,20) -> 142 | W36: =VLOOKUP($A36,datos!$A$4:$AD$52,21) -> 194 | X36: 874 | Y36: =VLOOKUP($A36,datos!$A$4:$AD$52,22) -> 157 | Z36: =VLOOKUP($A36,datos!$A$4:$AD$52,23) -> 184 | AA36: =VLOOKUP($A36,datos!$A$4:$AD$52,24) -> 211 | AB36: =VLOOKUP($A36,datos!$A$4:$AD$52,25) -> 131 | AC36: =VLOOKUP($A36,datos!$A$4:$AD$52,26) -> 168 | AD36: =VLOOKUP($A36,datos!$A$4:$AD$52,27) -> 161 | AE36: 1012 | AF36: =VLOOKUP($A36,datos!$A$4:$AD$52,28) -> 24 | AG36: =VLOOKUP($A36,datos!$A$4:$AD$52,29) -> 3634 | AH36: 151.4166667 | AI36: 30º
A37: J42 | B37: =VLOOKUP($A37,datos!$A$4:$AD$52,2) -> FELIPE FUENTES F. | C37: =VLOOKUP($A37,datos!$A$4:$AD$52,3) -> Uruguay | D37: =VLOOKUP($A37,datos!$A$4:$AD$52,4) -> 150 | E37: =VLOOKUP($A37,datos!$A$4:$AD$52,5) -> 125 | F37: =VLOOKUP($A37,datos!$A$4:$AD$52,6) -> 174 | G37: =VLOOKUP($A37,datos!$A$4:$AD$52,7) -> 191 | H37: =VLOOKUP($A37,datos!$A$4:$AD$52,8) -> 152 | I37: =VLOOKUP($A37,datos!$A$4:$AD$52,9) -> 140 | J37: 932 | K37: =VLOOKUP($A37,datos!$A$4:$AD$52,10) -> 123 | L37: =VLOOKUP($A37,datos!$A$4:$AD$52,11) -> 146 | M37: =VLOOKUP($A37,datos!$A$4:$AD$52,12) -> 138 | N37: =VLOOKUP($A37,datos!$A$4:$AD$52,13) -> 130 | O37: =VLOOKUP($A37,datos!$A$4:$AD$52,14) -> 154 | P37: =VLOOKUP($A37,datos!$A$4:$AD$52,15) -> 125 | Q37: 816 | R37: =VLOOKUP($A37,datos!$A$4:$AD$52,16) -> 146 | S37: =VLOOKUP($A37,datos!$A$4:$AD$52,17) -> 130 | T37: =VLOOKUP($A37,datos!$A$4:$AD$52,18) -> 108 | U37: =VLOOKUP($A37,datos!$A$4:$AD$52,19) -> 154 | V37: =VLOOKUP($A37,datos!$A$4:$AD$52,20) -> 142 | W37: =VLOOKUP($A37,datos!$A$4:$AD$52,21) -> 194 | X37: 874 | Y37: =VLOOKUP($A37,datos!$A$4:$AD$52,22) -> 157 | Z37: =VLOOKUP($A37,datos!$A$4:$AD$52,23) -> 184 | AA37: =VLOOKUP($A37,datos!$A$4:$AD$52,24) -> 211 | AB37: =VLOOKUP($A37,datos!$A$4:$AD$52,25) -> 131 | AC37: =VLOOKUP($A37,datos!$A$4:$AD$52,26) -> 168 | AD37: =VLOOKUP($A37,datos!$A$4:$AD$52,27) -> 161 | AE37: 1012 | AF37: =VLOOKUP($A37,datos!$A$4:$AD$52,28) -> 24 | AG37: =VLOOKUP($A37,datos!$A$4:$AD$52,29) -> 3634 | AH37: 151.4166667 | AI37: 31º
A38: J43 | B38: =VLOOKUP($A38,datos!$A$4:$AD$52,2) -> FELIPE FUENTES F. | C38: =VLOOKUP($A38,datos!$A$4:$AD$52,3) -> Uruguay | D38: =VLOOKUP($A38,datos!$A$4:$AD$52,4) -> 150 | E38: =VLOOKUP($A38,datos!$A$4:$AD$52,5) -> 125 | F38: =VLOOKUP($A38,datos!$A$4:$AD$52,6) -> 174 | G38: =VLOOKUP($A38,datos!$A$4:$AD$52,7) -> 191 | H38: =VLOOKUP($A38,datos!$A$4:$AD$52,8) -> 152 | I38: =VLOOKUP($A38,datos!$A$4:$AD$52,9) -> 140 | J38: 932 | K38: =VLOOKUP($A38,datos!$A$4:$AD$52,10) -> 123 | L38: =VLOOKUP($A38,datos!$A$4:$AD$52,11) -> 146 | M38: =VLOOKUP($A38,datos!$A$4:$AD$52,12) -> 138 | N38: =VLOOKUP($A38,datos!$A$4:$AD$52,13) -> 130 | O38: =VLOOKUP($A38,datos!$A$4:$AD$52,14) -> 154 | P38: =VLOOKUP($A38,datos!$A$4:$AD$52,15) -> 125 | Q38: 816 | R38: =VLOOKUP($A38,datos!$A$4:$AD$52,16) -> 146 | S38: =VLOOKUP($A38,datos!$A$4:$AD$52,17) -> 130 | T38: =VLOOKUP($A38,datos!$A$4:$AD$52,18) -> 108 | U38: =VLOOKUP($A38,datos!$A$4:$AD$52,19) -> 154 | V38: =VLOOKUP($A38,datos!$A$4:$AD$52,20) -> 142 | W38: =VLOOKUP($A38,datos!$A$4:$AD$52,21) -> 194 | X38: 874 | Y38: =VLOOKUP($A38,datos!$A$4:$AD$52,22) -> 157 | Z38: =VLOOKUP($A38,datos!$A$4:$AD$52,23) -> 184 | AA38: =VLOOKUP($A38,datos!$A$4:$AD$52,24) -> 211 | AB38: =VLOOKUP($A38,datos!$A$4:$AD$52,25) -> 131 | AC38: =VLOOKUP($A38,datos!$A$4:$AD$52,26) -> 168 | AD38: =VLOOKUP($A38,datos!$A$4:$AD$52,27) -> 161 | AE38: 1012 | AF38: =VLOOKUP($A38,datos!$A$4:$AD$52,28) -> 24 | AG38: =VLOOKUP($A38,datos!$A$4:$AD$52,29) -> 3634 | AH38: 151.4166667 | AI38: 32º
A39: J44 | B39: =VLOOKUP($A39,datos!$A$4:$AD$52,2) -> FELIPE FUENTES F. | C39: =VLOOKUP($A39,datos!$A$4:$AD$52,3) -> Uruguay | D39: =VLOOKUP($A39,datos!$A$4:$AD$52,4) -> 150 | E39: =VLOOKUP($A39,datos!$A$4:$AD$52,5) -> 125 | F39: =VLOOKUP($A39,datos!$A$4:$AD$52,6) -> 174 | G39: =VLOOKUP($A39,datos!$A$4:$AD$52,7) -> 191 | H39: =VLOOKUP($A39,datos!$A$4:$AD$52,8) -> 152 | I39: =VLOOKUP($A39,datos!$A$4:$AD$52,9) -> 140 | J39: =SUM(D39:I39) -> 932 | K39: =VLOOKUP($A39,datos!$A$4:$AD$52,10) -> 123 | L39: =VLOOKUP($A39,datos!$A$4:$AD$52,11) -> 146 | M39: =VLOOKUP($A39,datos!$A$4:$AD$52,12) -> 138 | N39: =VLOOKUP($A39,datos!$A$4:$AD$52,13) -> 130 | O39: =VLOOKUP($A39,datos!$A$4:$AD$52,14) -> 154 | P39: =VLOOKUP($A39,datos!$A$4:$AD$52,15) -> 125 | Q39: =SUM(K39:P39) -> 816 | R39: =VLOOKUP($A39,datos!$A$4:$AD$52,16) -> 146 | S39: =VLOOKUP($A39,datos!$A$4:$AD$52,17) -> 130 | T39: =VLOOKUP($A39,datos!$A$4:$AD$52,18) -> 108 | U39: =VLOOKUP($A39,datos!$A$4:$AD$52,19) -> 154 | V39: =VLOOKUP($A39,datos!$A$4:$AD$52,20) -> 142 | W39: =VLOOKUP($A39,datos!$A$4:$AD$52,21) -> 194 | X39: =SUM(R39:W39) -> 874 | Y39: =VLOOKUP($A39,datos!$A$4:$AD$52,22) -> 157 | Z39: =VLOOKUP($A39,datos!$A$4:$AD$52,23) -> 184 | AA39: =VLOOKUP($A39,datos!$A$4:$AD$52,24) -> 211 | AB39: =VLOOKUP($A39,datos!$A$4:$AD$52,25) -> 131 | AC39: =VLOOKUP($A39,datos!$A$4:$AD$52,26) -> 168 | AD39: =VLOOKUP($A39,datos!$A$4:$AD$52,27) -> 161 | AE39: =SUM(Y39:AD39) -> 1012 | AF39: =VLOOKUP($A39,datos!$A$4:$AD$52,28) -> 24 | AG39: =VLOOKUP($A39,datos!$A$4:$AD$52,29) -> 3634 | AH39: =AG39/AF39 -> 151.4166667 | AI39: 33º
A40: J45 | B40: =VLOOKUP($A40,datos!$A$4:$AD$52,2) -> FELIPE FUENTES F. | C40: =VLOOKUP($A40,datos!$A$4:$AD$52,3) -> Uruguay | D40: =VLOOKUP($A40,datos!$A$4:$AD$52,4) -> 150 | E40: =VLOOKUP($A40,datos!$A$4:$AD$52,5) -> 125 | F40: =VLOOKUP($A40,datos!$A$4:$AD$52,6) -> 174 | G40: =VLOOKUP($A40,datos!$A$4:$AD$52,7) -> 191 | H40: =VLOOKUP($A40,datos!$A$4:$AD$52,8) -> 152 | I40: =VLOOKUP($A40,datos!$A$4:$AD$52,9) -> 140 | J40: 932 | K40: =VLOOKUP($A40,datos!$A$4:$AD$52,10) -> 123 | L40: =VLOOKUP($A40,datos!$A$4:$AD$52,11) -> 146 | M40: =VLOOKUP($A40,datos!$A$4:$AD$52,12) -> 138 | N40: =VLOOKUP($A40,datos!$A$4:$AD$52,13) -> 130 | O40: =VLOOKUP($A40,datos!$A$4:$AD$52,14) -> 154 | P40: =VLOOKUP($A40,datos!$A$4:$AD$52,15) -> 125 | Q40: 816 | R40: =VLOOKUP($A40,datos!$A$4:$AD$52,16) -> 146 | S40: =VLOOKUP($A40,datos!$A$4:$AD$52,17) -> 130 | T40: =VLOOKUP($A40,datos!$A$4:$AD$52,18) -> 108 | U40: =VLOOKUP($A40,datos!$A$4:$AD$52,19) -> 154 | V40: =VLOOKUP($A40,datos!$A$4:$AD$52,20) -> 142 | W40: =VLOOKUP($A40,datos!$A$4:$AD$52,21) -> 194 | X40: 874 | Y40: =VLOOKUP($A40,datos!$A$4:$AD$52,22) -> 157 | Z40: =VLOOKUP($A40,datos!$A$4:$AD$52,23) -> 184 | AA40: =VLOOKUP($A40,datos!$A$4:$AD$52,24) -> 211 | AB40: =VLOOKUP($A40,datos!$A$4:$AD$52,25) -> 131 | AC40: =VLOOKUP($A40,datos!$A$4:$AD$52,26) -> 168 | AD40: =VLOOKUP($A40,datos!$A$4:$AD$52,27) -> 161 | AE40: 1012 | AF40: =VLOOKUP($A40,datos!$A$4:$AD$52,28) -> 24 | AG40: =VLOOKUP($A40,datos!$A$4:$AD$52,29) -> 3634 | AH40: 151.4166667 | AI40: 34º
A41: J46 | B41: =VLOOKUP($A41,datos!$A$4:$AD$52,2) -> FELIPE FUENTES F. | C41: =VLOOKUP($A41,datos!$A$4:$AD$52,3) -> Uruguay | D41: =VLOOKUP($A41,datos!$A$4:$AD$52,4) -> 150 | E41: =VLOOKUP($A41,datos!$A$4:$AD$52,5) -> 125 | F41: =VLOOKUP($A41,datos!$A$4:$AD$52,6) -> 174 | G41: =VLOOKUP($A41,datos!$A$4:$AD$52,7) -> 191 | H41: =VLOOKUP($A41,datos!$A$4:$AD$52,8) -> 152 | I41: =VLOOKUP($A41,datos!$A$4:$AD$52,9) -> 140 | J41: 932 | K41: =VLOOKUP($A41,datos!$A$4:$AD$52,10) -> 123 | L41: =VLOOKUP($A41,datos!$A$4:$AD$52,11) -> 146 | M41: =VLOOKUP($A41,datos!$A$4:$AD$52,12) -> 138 | N41: =VLOOKUP($A41,datos!$A$4:$AD$52,13) -> 130 | O41: =VLOOKUP($A41,datos!$A$4:$AD$52,14) -> 154 | P41: =VLOOKUP($A41,datos!$A$4:$AD$52,15) -> 125 | Q41: 816 | R41: =VLOOKUP($A41,datos!$A$4:$AD$52,16) -> 146 | S41: =VLOOKUP($A41,datos!$A$4:$AD$52,17) -> 130 | T41: =VLOOKUP($A41,datos!$A$4:$AD$52,18) -> 108 | U41: =VLOOKUP($A41,datos!$A$4:$AD$52,19) -> 154 | V41: =VLOOKUP($A41,datos!$A$4:$AD$52,20) -> 142 | W41: =VLOOKUP($A41,datos!$A$4:$AD$52,21) -> 194 | X41: 874 | Y41: =VLOOKUP($A41,datos!$A$4:$AD$52,22) -> 157 | Z41: =VLOOKUP($A41,datos!$A$4:$AD$52,23) -> 184 | AA41: =VLOOKUP($A41,datos!$A$4:$AD$52,24) -> 211 | AB41: =VLOOKUP($A41,datos!$A$4:$AD$52,25) -> 131 | AC41: =VLOOKUP($A41,datos!$A$4:$AD$52,26) -> 168 | AD41: =VLOOKUP($A41,datos!$A$4:$AD$52,27) -> 161 | AE41: 1012 | AF41: =VLOOKUP($A41,datos!$A$4:$AD$52,28) -> 24 | AG41: =VLOOKUP($A41,datos!$A$4:$AD$52,29) -> 3634 | AH41: 151.4166667 | AI41: 35º
A42: J47 | B42: =VLOOKUP($A42,datos!$A$4:$AD$52,2) -> FELIPE FUENTES F. | C42: =VLOOKUP($A42,datos!$A$4:$AD$52,3) -> Uruguay | D42: =VLOOKUP($A42,datos!$A$4:$AD$52,4) -> 150 | E42: =VLOOKUP($A42,datos!$A$4:$AD$52,5) -> 125 | F42: =VLOOKUP($A42,datos!$A$4:$AD$52,6) -> 174 | G42: =VLOOKUP($A42,datos!$A$4:$AD$52,7) -> 191 | H42: =VLOOKUP($A42,datos!$A$4:$AD$52,8) -> 152 | I42: =VLOOKUP($A42,datos!$A$4:$AD$52,9) -> 140 | J42: 932 | K42: =VLOOKUP($A42,datos!$A$4:$AD$52,10) -> 123 | L42: =VLOOKUP($A42,datos!$A$4:$AD$52,11) -> 146 | M42: =VLOOKUP($A42,datos!$A$4:$AD$52,12) -> 138 | N42: =VLOOKUP($A42,datos!$A$4:$AD$52,13) -> 130 | O42: =VLOOKUP($A42,datos!$A$4:$AD$52,14) -> 154 | P42: =VLOOKUP($A42,datos!$A$4:$AD$52,15) -> 125 | Q42: 816 | R42: =VLOOKUP($A42,datos!$A$4:$AD$52,16) -> 146 | S42: =VLOOKUP($A42,datos!$A$4:$AD$52,17) -> 130 | T42: =VLOOKUP($A42,datos!$A$4:$AD$52,18) -> 108 | U42: =VLOOKUP($A42,datos!$A$4:$AD$52,19) -> 154 | V42: =VLOOKUP($A42,datos!$A$4:$AD$52,20) -> 142 | W42: =VLOOKUP($A42,datos!$A$4:$AD$52,21) -> 194 | X42: 874 | Y42: =VLOOKUP($A42,datos!$A$4:$AD$52,22) -> 157 | Z42: =VLOOKUP($A42,datos!$A$4:$AD$52,23) -> 184 | AA42: =VLOOKUP($A42,datos!$A$4:$AD$52,24) -> 211 | AB42: =VLOOKUP($A42,datos!$A$4:$AD$52,25) -> 131 | AC42: =VLOOKUP($A42,datos!$A$4:$AD$52,26) -> 168 | AD42: =VLOOKUP($A42,datos!$A$4:$AD$52,27) -> 161 | AE42: 1012 | AF42: =VLOOKUP($A42,datos!$A$4:$AD$52,28) -> 24 | AG42: =VLOOKUP($A42,datos!$A$4:$AD$52,29) -> 3634 | AH42: 151.4166667 | AI42: 36º
A43: J48 | B43: =VLOOKUP($A43,datos!$A$4:$AD$52,2) -> FELIPE FUENTES F. | C43: =VLOOKUP($A43,datos!$A$4:$AD$52,3) -> Uruguay | D43: =VLOOKUP($A43,datos!$A$4:$AD$52,4) -> 150 | E43: =VLOOKUP($A43,datos!$A$4:$AD$52,5) -> 125 | F43: =VLOOKUP($A43,datos!$A$4:$AD$52,6) -> 174 | G43: =VLOOKUP($A43,datos!$A$4:$AD$52,7) -> 191 | H43: =VLOOKUP($A43,datos!$A$4:$AD$52,8) -> 152 | I43: =VLOOKUP($A43,datos!$A$4:$AD$52,9) -> 140 | J43: 932 | K43: =VLOOKUP($A43,datos!$A$4:$AD$52,10) -> 123 | L43: =VLOOKUP($A43,datos!$A$4:$AD$52,11) -> 146 | M43: =VLOOKUP($A43,datos!$A$4:$AD$52,12) -> 138 | N43: =VLOOKUP($A43,datos!$A$4:$AD$52,13) -> 130 | O43: =VLOOKUP($A43,datos!$A$4:$AD$52,14) -> 154 | P43: =VLOOKUP($A43,datos!$A$4:$AD$52,15) -> 125 | Q43: 816 | R43: =VLOOKUP($A43,datos!$A$4:$AD$52,16) -> 146 | S43: =VLOOKUP($A43,datos!$A$4:$AD$52,17) -> 130 | T43: =VLOOKUP($A43,datos!$A$4:$AD$52,18) -> 108 | U43: =VLOOKUP($A43,datos!$A$4:$AD$52,19) -> 154 | V43: =VLOOKUP($A43,datos!$A$4:$AD$52,20) -> 142 | W43: =VLOOKUP($A43,datos!$A$4:$AD$52,21) -> 194 | X43: 874 | Y43: =VLOOKUP($A43,datos!$A$4:$AD$52,22) -> 157 | Z43: =VLOOKUP($A43,datos!$A$4:$AD$52,23) -> 184 | AA43: =VLOOKUP($A43,datos!$A$4:$AD$52,24) -> 211 | AB43: =VLOOKUP($A43,datos!$A$4:$AD$52,25) -> 131 | AC43: =VLOOKUP($A43,datos!$A$4:$AD$52,26) -> 168 | AD43: =VLOOKUP($A43,datos!$A$4:$AD$52,27) -> 161 | AE43: 1012 | AF43: =VLOOKUP($A43,datos!$A$4:$AD$52,28) -> 24 | AG43: =VLOOKUP($A43,datos!$A$4:$AD$52,29) -> 3634 | AH43: 151.4166667 | AI43: 37º
A44: C12 | B44: =VLOOKUP($A44,datos!$A$4:$AD$52,2) ->  | C44: =VLOOKUP($A44,datos!$A$4:$AD$52,3) ->  | D44: =VLOOKUP($A44,datos!$A$4:$AD$52,4) ->  | E44: =VLOOKUP($A44,datos!$A$4:$AD$52,5) ->  | F44: =VLOOKUP($A44,datos!$A$4:$AD$52,6) ->  | G44: =VLOOKUP($A44,datos!$A$4:$AD$52,7) ->  | H44: =VLOOKUP($A44,datos!$A$4:$AD$52,8) ->  | I44: =VLOOKUP($A44,datos!$A$4:$AD$52,9) ->  | K44: =VLOOKUP($A44,datos!$A$4:$AD$52,10) ->  | L44: =VLOOKUP($A44,datos!$A$4:$AD$52,11) ->  | M44: =VLOOKUP($A44,datos!$A$4:$AD$52,12) ->  | N44: =VLOOKUP($A44,datos!$A$4:$AD$52,13) ->  | O44: =VLOOKUP($A44,datos!$A$4:$AD$52,14) ->  | P44: =VLOOKUP($A44,datos!$A$4:$AD$52,15) ->  | R44: =VLOOKUP($A44,datos!$A$4:$AD$52,16) ->  | S44: =VLOOKUP($A44,datos!$A$4:$AD$52,17) ->  | T44: =VLOOKUP($A44,datos!$A$4:$AD$52,18) ->  | U44: =VLOOKUP($A44,datos!$A$4:$AD$52,19) ->  | V44: =VLOOKUP($A44,datos!$A$4:$AD$52,20) ->  | W44: =VLOOKUP($A44,datos!$A$4:$AD$52,21) ->  | Y44: =VLOOKUP($A44,datos!$A$4:$AD$52,22) ->  | Z44: =VLOOKUP($A44,datos!$A$4:$AD$52,23) ->  | AA44: =VLOOKUP($A44,datos!$A$4:$AD$52,24) ->  | AB44: =VLOOKUP($A44,datos!$A$4:$AD$52,25) ->  | AC44: =VLOOKUP($A44,datos!$A$4:$AD$52,26) ->  | AD44: =VLOOKUP($A44,datos!$A$4:$AD$52,27) ->  | AF44: =VLOOKUP($A44,datos!$A$4:$AD$52,28) ->  | AG44: =VLOOKUP($A44,datos!$A$4:$AD$52,29) ->  | AI44: 38º
A45: C06 | B45: =VLOOKUP($A45,datos!$A$4:$AD$52,2) ->  | C45: =VLOOKUP($A45,datos!$A$4:$AD$52,3) ->  | D45: =VLOOKUP($A45,datos!$A$4:$AD$52,4) ->  | E45: =VLOOKUP($A45,datos!$A$4:$AD$52,5) ->  | F45: =VLOOKUP($A45,datos!$A$4:$AD$52,6) ->  | G45: =VLOOKUP($A45,datos!$A$4:$AD$52,7) ->  | H45: =VLOOKUP($A45,datos!$A$4:$AD$52,8) ->  | I45: =VLOOKUP($A45,datos!$A$4:$AD$52,9) ->  | K45: =VLOOKUP($A45,datos!$A$4:$AD$52,10) ->  | L45: =VLOOKUP($A45,datos!$A$4:$AD$52,11) ->  | M45: =VLOOKUP($A45,datos!$A$4:$AD$52,12) ->  | N45: =VLOOKUP($A45,datos!$A$4:$AD$52,13) ->  | O45: =VLOOKUP($A45,datos!$A$4:$AD$52,14) ->  | P45: =VLOOKUP($A45,datos!$A$4:$AD$52,15) ->  | R45: =VLOOKUP($A45,datos!$A$4:$AD$52,16) ->  | S45: =VLOOKUP($A45,datos!$A$4:$AD$52,17) ->  | T45: =VLOOKUP($A45,datos!$A$4:$AD$52,18) ->  | U45: =VLOOKUP($A45,datos!$A$4:$AD$52,19) ->  | V45: =VLOOKUP($A45,datos!$A$4:$AD$52,20) ->  | W45: =VLOOKUP($A45,datos!$A$4:$AD$52,21) ->  | Y45: =VLOOKUP($A45,datos!$A$4:$AD$52,22) ->  | Z45: =VLOOKUP($A45,datos!$A$4:$AD$52,23) ->  | AA45: =VLOOKUP($A45,datos!$A$4:$AD$52,24) ->  | AB45: =VLOOKUP($A45,datos!$A$4:$AD$52,25) ->  | AC45: =VLOOKUP($A45,datos!$A$4:$AD$52,26) ->  | AD45: =VLOOKUP($A45,datos!$A$4:$AD$52,27) ->  | AF45: =VLOOKUP($A45,datos!$A$4:$AD$52,28) ->  | AG45: =VLOOKUP($A45,datos!$A$4:$AD$52,29) ->  | AI45: 39º
A46: C47 | B46: =VLOOKUP($A46,datos!$A$4:$AD$52,2) ->  | C46: =VLOOKUP($A46,datos!$A$4:$AD$52,3) ->  | D46: =VLOOKUP($A46,datos!$A$4:$AD$52,4) ->  | E46: =VLOOKUP($A46,datos!$A$4:$AD$52,5) ->  | F46: =VLOOKUP($A46,datos!$A$4:$AD$52,6) ->  | G46: =VLOOKUP($A46,datos!$A$4:$AD$52,7) ->  | H46: =VLOOKUP($A46,datos!$A$4:$AD$52,8) ->  | I46: =VLOOKUP($A46,datos!$A$4:$AD$52,9) ->  | K46: =VLOOKUP($A46,datos!$A$4:$AD$52,10) ->  | L46: =VLOOKUP($A46,datos!$A$4:$AD$52,11) ->  | M46: =VLOOKUP($A46,datos!$A$4:$AD$52,12) ->  | N46: =VLOOKUP($A46,datos!$A$4:$AD$52,13) ->  | O46: =VLOOKUP($A46,datos!$A$4:$AD$52,14) ->  | P46: =VLOOKUP($A46,datos!$A$4:$AD$52,15) ->  | R46: =VLOOKUP($A46,datos!$A$4:$AD$52,16) ->  | S46: =VLOOKUP($A46,datos!$A$4:$AD$52,17) ->  | T46: =VLOOKUP($A46,datos!$A$4:$AD$52,18) ->  | U46: =VLOOKUP($A46,datos!$A$4:$AD$52,19) ->  | V46: =VLOOKUP($A46,datos!$A$4:$AD$52,20) ->  | W46: =VLOOKUP($A46,datos!$A$4:$AD$52,21) ->  | Y46: =VLOOKUP($A46,datos!$A$4:$AD$52,22) ->  | Z46: =VLOOKUP($A46,datos!$A$4:$AD$52,23) ->  | AA46: =VLOOKUP($A46,datos!$A$4:$AD$52,24) ->  | AB46: =VLOOKUP($A46,datos!$A$4:$AD$52,25) ->  | AC46: =VLOOKUP($A46,datos!$A$4:$AD$52,26) ->  | AD46: =VLOOKUP($A46,datos!$A$4:$AD$52,27) ->  | AF46: =VLOOKUP($A46,datos!$A$4:$AD$52,28) ->  | AG46: =VLOOKUP($A46,datos!$A$4:$AD$52,29) ->  | AI46: 40º
A47: C11 | B47: =VLOOKUP($A47,datos!$A$4:$AD$52,2) ->  | C47: =VLOOKUP($A47,datos!$A$4:$AD$52,3) ->  | D47: =VLOOKUP($A47,datos!$A$4:$AD$52,4) ->  | E47: =VLOOKUP($A47,datos!$A$4:$AD$52,5) ->  | F47: =VLOOKUP($A47,datos!$A$4:$AD$52,6) ->  | G47: =VLOOKUP($A47,datos!$A$4:$AD$52,7) ->  | H47: =VLOOKUP($A47,datos!$A$4:$AD$52,8) ->  | I47: =VLOOKUP($A47,datos!$A$4:$AD$52,9) ->  | K47: =VLOOKUP($A47,datos!$A$4:$AD$52,10) ->  | L47: =VLOOKUP($A47,datos!$A$4:$AD$52,11) ->  | M47: =VLOOKUP($A47,datos!$A$4:$AD$52,12) ->  | N47: =VLOOKUP($A47,datos!$A$4:$AD$52,13) ->  | O47: =VLOOKUP($A47,datos!$A$4:$AD$52,14) ->  | P47: =VLOOKUP($A47,datos!$A$4:$AD$52,15) ->  | R47: =VLOOKUP($A47,datos!$A$4:$AD$52,16) ->  | S47: =VLOOKUP($A47,datos!$A$4:$AD$52,17) ->  | T47: =VLOOKUP($A47,datos!$A$4:$AD$52,18) ->  | U47: =VLOOKUP($A47,datos!$A$4:$AD$52,19) ->  | V47: =VLOOKUP($A47,datos!$A$4:$AD$52,20) ->  | W47: =VLOOKUP($A47,datos!$A$4:$AD$52,21) ->  | Y47: =VLOOKUP($A47,datos!$A$4:$AD$52,22) ->  | Z47: =VLOOKUP($A47,datos!$A$4:$AD$52,23) ->  | AA47: =VLOOKUP($A47,datos!$A$4:$AD$52,24) ->  | AB47: =VLOOKUP($A47,datos!$A$4:$AD$52,25) ->  | AC47: =VLOOKUP($A47,datos!$A$4:$AD$52,26) ->  | AD47: =VLOOKUP($A47,datos!$A$4:$AD$52,27) ->  | AF47: =VLOOKUP($A47,datos!$A$4:$AD$52,28) ->  | AG47: =VLOOKUP($A47,datos!$A$4:$AD$52,29) ->  | AI47: 41º
A48: C17 | B48: =VLOOKUP($A48,datos!$A$4:$AD$52,2) ->  | C48: =VLOOKUP($A48,datos!$A$4:$AD$52,3) ->  | D48: =VLOOKUP($A48,datos!$A$4:$AD$52,4) ->  | E48: =VLOOKUP($A48,datos!$A$4:$AD$52,5) ->  | F48: =VLOOKUP($A48,datos!$A$4:$AD$52,6) ->  | G48: =VLOOKUP($A48,datos!$A$4:$AD$52,7) ->  | H48: =VLOOKUP($A48,datos!$A$4:$AD$52,8) ->  | I48: =VLOOKUP($A48,datos!$A$4:$AD$52,9) ->  | K48: =VLOOKUP($A48,datos!$A$4:$AD$52,10) ->  | L48: =VLOOKUP($A48,datos!$A$4:$AD$52,11) ->  | M48: =VLOOKUP($A48,datos!$A$4:$AD$52,12) ->  | N48: =VLOOKUP($A48,datos!$A$4:$AD$52,13) ->  | O48: =VLOOKUP($A48,datos!$A$4:$AD$52,14) ->  | P48: =VLOOKUP($A48,datos!$A$4:$AD$52,15) ->  | R48: =VLOOKUP($A48,datos!$A$4:$AD$52,16) ->  | S48: =VLOOKUP($A48,datos!$A$4:$AD$52,17) ->  | T48: =VLOOKUP($A48,datos!$A$4:$AD$52,18) ->  | U48: =VLOOKUP($A48,datos!$A$4:$AD$52,19) ->  | V48: =VLOOKUP($A48,datos!$A$4:$AD$52,20) ->  | W48: =VLOOKUP($A48,datos!$A$4:$AD$52,21) ->  | Y48: =VLOOKUP($A48,datos!$A$4:$AD$52,22) ->  | Z48: =VLOOKUP($A48,datos!$A$4:$AD$52,23) ->  | AA48: =VLOOKUP($A48,datos!$A$4:$AD$52,24) ->  | AB48: =VLOOKUP($A48,datos!$A$4:$AD$52,25) ->  | AC48: =VLOOKUP($A48,datos!$A$4:$AD$52,26) ->  | AD48: =VLOOKUP($A48,datos!$A$4:$AD$52,27) ->  | AF48: =VLOOKUP($A48,datos!$A$4:$AD$52,28) ->  | AG48: =VLOOKUP($A48,datos!$A$4:$AD$52,29) ->  | AI48: 42º
A49: C21 | B49: =VLOOKUP($A49,datos!$A$4:$AD$52,2) ->  | C49: =VLOOKUP($A49,datos!$A$4:$AD$52,3) ->  | D49: =VLOOKUP($A49,datos!$A$4:$AD$52,4) ->  | E49: =VLOOKUP($A49,datos!$A$4:$AD$52,5) ->  | F49: =VLOOKUP($A49,datos!$A$4:$AD$52,6) ->  | G49: =VLOOKUP($A49,datos!$A$4:$AD$52,7) ->  | H49: =VLOOKUP($A49,datos!$A$4:$AD$52,8) ->  | I49: =VLOOKUP($A49,datos!$A$4:$AD$52,9) ->  | K49: =VLOOKUP($A49,datos!$A$4:$AD$52,10) ->  | L49: =VLOOKUP($A49,datos!$A$4:$AD$52,11) ->  | M49: =VLOOKUP($A49,datos!$A$4:$AD$52,12) ->  | N49: =VLOOKUP($A49,datos!$A$4:$AD$52,13) ->  | O49: =VLOOKUP($A49,datos!$A$4:$AD$52,14) ->  | P49: =VLOOKUP($A49,datos!$A$4:$AD$52,15) ->  | R49: =VLOOKUP($A49,datos!$A$4:$AD$52,16) ->  | S49: =VLOOKUP($A49,datos!$A$4:$AD$52,17) ->  | T49: =VLOOKUP($A49,datos!$A$4:$AD$52,18) ->  | U49: =VLOOKUP($A49,datos!$A$4:$AD$52,19) ->  | V49: =VLOOKUP($A49,datos!$A$4:$AD$52,20) ->  | W49: =VLOOKUP($A49,datos!$A$4:$AD$52,21) ->  | Y49: =VLOOKUP($A49,datos!$A$4:$AD$52,22) ->  | Z49: =VLOOKUP($A49,datos!$A$4:$AD$52,23) ->  | AA49: =VLOOKUP($A49,datos!$A$4:$AD$52,24) ->  | AB49: =VLOOKUP($A49,datos!$A$4:$AD$52,25) ->  | AC49: =VLOOKUP($A49,datos!$A$4:$AD$52,26) ->  | AD49: =VLOOKUP($A49,datos!$A$4:$AD$52,27) ->  | AF49: =VLOOKUP($A49,datos!$A$4:$AD$52,28) ->  | AG49: =VLOOKUP($A49,datos!$A$4:$AD$52,29) ->  | AI49: 43º
A50: C45 | B50: =VLOOKUP($A50,datos!$A$4:$AD$52,2) ->  | C50: =VLOOKUP($A50,datos!$A$4:$AD$52,3) ->  | D50: =VLOOKUP($A50,datos!$A$4:$AD$52,4) ->  | E50: =VLOOKUP($A50,datos!$A$4:$AD$52,5) ->  | F50: =VLOOKUP($A50,datos!$A$4:$AD$52,6) ->  | G50: =VLOOKUP($A50,datos!$A$4:$AD$52,7) ->  | H50: =VLOOKUP($A50,datos!$A$4:$AD$52,8) ->  | I50: =VLOOKUP($A50,datos!$A$4:$AD$52,9) ->  | K50: =VLOOKUP($A50,datos!$A$4:$AD$52,10) ->  | L50: =VLOOKUP($A50,datos!$A$4:$AD$52,11) ->  | M50: =VLOOKUP($A50,datos!$A$4:$AD$52,12) ->  | N50: =VLOOKUP($A50,datos!$A$4:$AD$52,13) ->  | O50: =VLOOKUP($A50,datos!$A$4:$AD$52,14) ->  | P50: =VLOOKUP($A50,datos!$A$4:$AD$52,15) ->  | R50: =VLOOKUP($A50,datos!$A$4:$AD$52,16) ->  | S50: =VLOOKUP($A50,datos!$A$4:$AD$52,17) ->  | T50: =VLOOKUP($A50,datos!$A$4:$AD$52,18) ->  | U50: =VLOOKUP($A50,datos!$A$4:$AD$52,19) ->  | V50: =VLOOKUP($A50,datos!$A$4:$AD$52,20) ->  | W50: =VLOOKUP($A50,datos!$A$4:$AD$52,21) ->  | Y50: =VLOOKUP($A50,datos!$A$4:$AD$52,22) ->  | Z50: =VLOOKUP($A50,datos!$A$4:$AD$52,23) ->  | AA50: =VLOOKUP($A50,datos!$A$4:$AD$52,24) ->  | AB50: =VLOOKUP($A50,datos!$A$4:$AD$52,25) ->  | AC50: =VLOOKUP($A50,datos!$A$4:$AD$52,26) ->  | AD50: =VLOOKUP($A50,datos!$A$4:$AD$52,27) ->  | AF50: =VLOOKUP($A50,datos!$A$4:$AD$52,28) ->  | AG50: =VLOOKUP($A50,datos!$A$4:$AD$52,29) ->  | AI50: 44º
A51: C09 | B51: =VLOOKUP($A51,datos!$A$4:$AD$52,2) ->  | C51: =VLOOKUP($A51,datos!$A$4:$AD$52,3) ->  | D51: =VLOOKUP($A51,datos!$A$4:$AD$52,4) ->  | E51: =VLOOKUP($A51,datos!$A$4:$AD$52,5) ->  | F51: =VLOOKUP($A51,datos!$A$4:$AD$52,6) ->  | G51: =VLOOKUP($A51,datos!$A$4:$AD$52,7) ->  | H51: =VLOOKUP($A51,datos!$A$4:$AD$52,8) ->  | I51: =VLOOKUP($A51,datos!$A$4:$AD$52,9) ->  | K51: =VLOOKUP($A51,datos!$A$4:$AD$52,10) ->  | L51: =VLOOKUP($A51,datos!$A$4:$AD$52,11) ->  | M51: =VLOOKUP($A51,datos!$A$4:$AD$52,12) ->  | N51: =VLOOKUP($A51,datos!$A$4:$AD$52,13) ->  | O51: =VLOOKUP($A51,datos!$A$4:$AD$52,14) ->  | P51: =VLOOKUP($A51,datos!$A$4:$AD$52,15) ->  | R51: =VLOOKUP($A51,datos!$A$4:$AD$52,16) ->  | S51: =VLOOKUP($A51,datos!$A$4:$AD$52,17) ->  | T51: =VLOOKUP($A51,datos!$A$4:$AD$52,18) ->  | U51: =VLOOKUP($A51,datos!$A$4:$AD$52,19) ->  | V51: =VLOOKUP($A51,datos!$A$4:$AD$52,20) ->  | W51: =VLOOKUP($A51,datos!$A$4:$AD$52,21) ->  | Y51: =VLOOKUP($A51,datos!$A$4:$AD$52,22) ->  | Z51: =VLOOKUP($A51,datos!$A$4:$AD$52,23) ->  | AA51: =VLOOKUP($A51,datos!$A$4:$AD$52,24) ->  | AB51: =VLOOKUP($A51,datos!$A$4:$AD$52,25) ->  | AC51: =VLOOKUP($A51,datos!$A$4:$AD$52,26) ->  | AD51: =VLOOKUP($A51,datos!$A$4:$AD$52,27) ->  | AF51: =VLOOKUP($A51,datos!$A$4:$AD$52,28) ->  | AG51: =VLOOKUP($A51,datos!$A$4:$AD$52,29) ->  | AI51: 45º
A52: C18 | B52: =VLOOKUP($A52,datos!$A$4:$AD$52,2) ->  | C52: =VLOOKUP($A52,datos!$A$4:$AD$52,3) ->  | D52: =VLOOKUP($A52,datos!$A$4:$AD$52,4) ->  | E52: =VLOOKUP($A52,datos!$A$4:$AD$52,5) ->  | F52: =VLOOKUP($A52,datos!$A$4:$AD$52,6) ->  | G52: =VLOOKUP($A52,datos!$A$4:$AD$52,7) ->  | H52: =VLOOKUP($A52,datos!$A$4:$AD$52,8) ->  | I52: =VLOOKUP($A52,datos!$A$4:$AD$52,9) ->  | K52: =VLOOKUP($A52,datos!$A$4:$AD$52,10) ->  | L52: =VLOOKUP($A52,datos!$A$4:$AD$52,11) ->  | M52: =VLOOKUP($A52,datos!$A$4:$AD$52,12) ->  | N52: =VLOOKUP($A52,datos!$A$4:$AD$52,13) ->  | O52: =VLOOKUP($A52,datos!$A$4:$AD$52,14) ->  | P52: =VLOOKUP($A52,datos!$A$4:$AD$52,15) ->  | R52: =VLOOKUP($A52,datos!$A$4:$AD$52,16) ->  | S52: =VLOOKUP($A52,datos!$A$4:$AD$52,17) ->  | T52: =VLOOKUP($A52,datos!$A$4:$AD$52,18) ->  | U52: =VLOOKUP($A52,datos!$A$4:$AD$52,19) ->  | V52: =VLOOKUP($A52,datos!$A$4:$AD$52,20) ->  | W52: =VLOOKUP($A52,datos!$A$4:$AD$52,21) ->  | Y52: =VLOOKUP($A52,datos!$A$4:$AD$52,22) ->  | Z52: =VLOOKUP($A52,datos!$A$4:$AD$52,23) ->  | AA52: =VLOOKUP($A52,datos!$A$4:$AD$52,24) ->  | AB52: =VLOOKUP($A52,datos!$A$4:$AD$52,25) ->  | AC52: =VLOOKUP($A52,datos!$A$4:$AD$52,26) ->  | AD52: =VLOOKUP($A52,datos!$A$4:$AD$52,27) ->  | AF52: =VLOOKUP($A52,datos!$A$4:$AD$52,28) ->  | AG52: =VLOOKUP($A52,datos!$A$4:$AD$52,29) ->  | AI52: 46º | AJ52: =MAX($AG$7:$AG$51)-AG52 -> 
A53: C19 | B53: =VLOOKUP($A53,datos!$A$4:$AD$52,2) ->  | C53: =VLOOKUP($A53,datos!$A$4:$AD$52,3) ->  | D53: =VLOOKUP($A53,datos!$A$4:$AD$52,4) ->  | E53: =VLOOKUP($A53,datos!$A$4:$AD$52,5) ->  | F53: =VLOOKUP($A53,datos!$A$4:$AD$52,6) ->  | G53: =VLOOKUP($A53,datos!$A$4:$AD$52,7) ->  | H53: =VLOOKUP($A53,datos!$A$4:$AD$52,8) ->  | I53: =VLOOKUP($A53,datos!$A$4:$AD$52,9) ->  | K53: =VLOOKUP($A53,datos!$A$4:$AD$52,10) ->  | L53: =VLOOKUP($A53,datos!$A$4:$AD$52,11) ->  | M53: =VLOOKUP($A53,datos!$A$4:$AD$52,12) ->  | N53: =VLOOKUP($A53,datos!$A$4:$AD$52,13) ->  | O53: =VLOOKUP($A53,datos!$A$4:$AD$52,14) ->  | P53: =VLOOKUP($A53,datos!$A$4:$AD$52,15) ->  | R53: =VLOOKUP($A53,datos!$A$4:$AD$52,16) ->  | S53: =VLOOKUP($A53,datos!$A$4:$AD$52,17) ->  | T53: =VLOOKUP($A53,datos!$A$4:$AD$52,18) ->  | U53: =VLOOKUP($A53,datos!$A$4:$AD$52,19) ->  | V53: =VLOOKUP($A53,datos!$A$4:$AD$52,20) ->  | W53: =VLOOKUP($A53,datos!$A$4:$AD$52,21) ->  | Y53: =VLOOKUP($A53,datos!$A$4:$AD$52,22) ->  | Z53: =VLOOKUP($A53,datos!$A$4:$AD$52,23) ->  | AA53: =VLOOKUP($A53,datos!$A$4:$AD$52,24) ->  | AB53: =VLOOKUP($A53,datos!$A$4:$AD$52,25) ->  | AC53: =VLOOKUP($A53,datos!$A$4:$AD$52,26) ->  | AD53: =VLOOKUP($A53,datos!$A$4:$AD$52,27) ->  | AF53: =VLOOKUP($A53,datos!$A$4:$AD$52,28) ->  | AG53: =VLOOKUP($A53,datos!$A$4:$AD$52,29) ->  | AI53: 47º | AJ53: =MAX($AG$7:$AG$51)-AG53 -> 
A54: C49 | B54: =VLOOKUP($A54,datos!$A$4:$AD$52,2) ->  | C54: =VLOOKUP($A54,datos!$A$4:$AD$52,3) ->  | D54: =VLOOKUP($A54,datos!$A$4:$AD$52,4) ->  | E54: =VLOOKUP($A54,datos!$A$4:$AD$52,5) ->  | F54: =VLOOKUP($A54,datos!$A$4:$AD$52,6) ->  | G54: =VLOOKUP($A54,datos!$A$4:$AD$52,7) ->  | H54: =VLOOKUP($A54,datos!$A$4:$AD$52,8) ->  | I54: =VLOOKUP($A54,datos!$A$4:$AD$52,9) ->  | K54: =VLOOKUP($A54,datos!$A$4:$AD$52,10) ->  | L54: =VLOOKUP($A54,datos!$A$4:$AD$52,11) ->  | M54: =VLOOKUP($A54,datos!$A$4:$AD$52,12) ->  | N54: =VLOOKUP($A54,datos!$A$4:$AD$52,13) ->  | O54: =VLOOKUP($A54,datos!$A$4:$AD$52,14) ->  | P54: =VLOOKUP($A54,datos!$A$4:$AD$52,15) ->  | R54: =VLOOKUP($A54,datos!$A$4:$AD$52,16) ->  | S54: =VLOOKUP($A54,datos!$A$4:$AD$52,17) ->  | T54: =VLOOKUP($A54,datos!$A$4:$AD$52,18) ->  | U54: =VLOOKUP($A54,datos!$A$4:$AD$52,19) ->  | V54: =VLOOKUP($A54,datos!$A$4:$AD$52,20) ->  | W54: =VLOOKUP($A54,datos!$A$4:$AD$52,21) ->  | Y54: =VLOOKUP($A54,datos!$A$4:$AD$52,22) ->  | Z54: =VLOOKUP($A54,datos!$A$4:$AD$52,23) ->  | AA54: =VLOOKUP($A54,datos!$A$4:$AD$52,24) ->  | AB54: =VLOOKUP($A54,datos!$A$4:$AD$52,25) ->  | AC54: =VLOOKUP($A54,datos!$A$4:$AD$52,26) ->  | AD54: =VLOOKUP($A54,datos!$A$4:$AD$52,27) ->  | AF54: =VLOOKUP($A54,datos!$A$4:$AD$52,28) ->  | AG54: =VLOOKUP($A54,datos!$A$4:$AD$52,29) ->  | AI54: 48º | AJ54: =MAX($AG$7:$AG$51)-AG54 -> 
A55: C31 | B55: =VLOOKUP($A55,datos!$A$4:$AD$52,2) ->  | C55: =VLOOKUP($A55,datos!$A$4:$AD$52,3) ->  | D55: =VLOOKUP($A55,datos!$A$4:$AD$52,4) ->  | E55: =VLOOKUP($A55,datos!$A$4:$AD$52,5) ->  | F55: =VLOOKUP($A55,datos!$A$4:$AD$52,6) ->  | G55: =VLOOKUP($A55,datos!$A$4:$AD$52,7) ->  | H55: =VLOOKUP($A55,datos!$A$4:$AD$52,8) ->  | I55: =VLOOKUP($A55,datos!$A$4:$AD$52,9) ->  | K55: =VLOOKUP($A55,datos!$A$4:$AD$52,10) ->  | L55: =VLOOKUP($A55,datos!$A$4:$AD$52,11) ->  | M55: =VLOOKUP($A55,datos!$A$4:$AD$52,12) ->  | N55: =VLOOKUP($A55,datos!$A$4:$AD$52,13) ->  | O55: =VLOOKUP($A55,datos!$A$4:$AD$52,14) ->  | P55: =VLOOKUP($A55,datos!$A$4:$AD$52,15) ->  | R55: =VLOOKUP($A55,datos!$A$4:$AD$52,16) ->  | S55: =VLOOKUP($A55,datos!$A$4:$AD$52,17) ->  | T55: =VLOOKUP($A55,datos!$A$4:$AD$52,18) ->  | U55: =VLOOKUP($A55,datos!$A$4:$AD$52,19) ->  | V55: =VLOOKUP($A55,datos!$A$4:$AD$52,20) ->  | W55: =VLOOKUP($A55,datos!$A$4:$AD$52,21) ->  | Y55: =VLOOKUP($A55,datos!$A$4:$AD$52,22) ->  | Z55: =VLOOKUP($A55,datos!$A$4:$AD$52,23) ->  | AA55: =VLOOKUP($A55,datos!$A$4:$AD$52,24) ->  | AB55: =VLOOKUP($A55,datos!$A$4:$AD$52,25) ->  | AC55: =VLOOKUP($A55,datos!$A$4:$AD$52,26) ->  | AD55: =VLOOKUP($A55,datos!$A$4:$AD$52,27) ->  | AF55: =VLOOKUP($A55,datos!$A$4:$AD$52,28) ->  | AG55: =VLOOKUP($A55,datos!$A$4:$AD$52,29) ->  | AI55: 49º | AJ55: =MAX($AG$7:$AG$51)-AG55 -> 

Sheet EVENTO PAIS
A2: CAMPEONATO SUDAMERICANO JUVENIL 2014
A3: TODO EVENTO PAIS
A5: Cod | B5: Nombre del Jugador | C5: FEDERACION | D5: TOTAL PALOS | E5: PROM IND | F5: =G6 -> 19061 | G5: TOTAL EQ | H5: PROM EQ
A6: j24 | B6: =VLOOKUP($A6,datos!$A$4:$AD$52,2) -> CARLOS F. SAAVEDRA | C6: =VLOOKUP($A6,datos!$A$4:$AD$52,3) -> Colombia | D6: =VLOOKUP($A6,datos!$A$4:$AD$52,29) -> 4636 | E6: =D6/24 -> 193.1666667 | F6: =G6 -> 19061 | G6: =SUM(D6:D9) -> 19061 | H6: =SUM(E6:E9)/4 -> 198.5520833
A7: j25 | B7: =VLOOKUP($A7,datos!$A$4:$AD$52,2) -> SEBASTIAN DONADO | C7: =VLOOKUP($A7,datos!$A$4:$AD$52,3) -> Colombia | D7: =VLOOKUP($A7,datos!$A$4:$AD$52,29) -> 4606 | E7: =D7/24 -> 191.9166667 | F7: =G6 -> 19061
A8: j26 | B8: =VLOOKUP($A8,datos!$A$4:$AD$52,2) -> SEBASTIAN CHARRY | C8: =VLOOKUP($A8,datos!$A$4:$AD$52,3) -> Colombia | D8: =VLOOKUP($A8,datos!$A$4:$AD$52,29) -> 4898 | E8: =D8/24 -> 204.0833333 | F8: =G6 -> 19061
A9: j27 | B9: =VLOOKUP($A9,datos!$A$4:$AD$52,2) -> JORGE FIGUEROA | C9: =VLOOKUP($A9,datos!$A$4:$AD$52,3) -> Colombia | D9: =VLOOKUP($A9,datos!$A$4:$AD$52,29) -> 4921 | E9: =D9/24 -> 205.0416667 | F9: =G6 -> 19061
F10: =G6 -> 19061
A11: Cod | B11: Nombre del Jugador | C11: FEDERACION | D11: TOTAL PALOS | E11: PROM IND | F11: =G12 -> 18410 | G11: TOTAL EQ | H11: PROM EQ
A12: j20 | B12: =VLOOKUP($A12,datos!$A$4:$AD$52,2) -> BRUNO COSTA S | C12: =VLOOKUP($A12,datos!$A$4:$AD$52,3) -> Brasil | D12: =VLOOKUP($A12,datos!$A$4:$AD$52,29) -> 5148 | E12: =D12/24 -> 214.5 | F12: =G12 -> 18410 | G12: =SUM(D12:D15) -> 18410 | H12: =SUM(E12:E15)/4 -> 191.7708333
A13: j21 | B13: =VLOOKUP($A13,datos!$A$4:$AD$52,2) -> BERNARDO ABREU | C13: =VLOOKUP($A13,datos!$A$4:$AD$52,3) -> Brasil | D13: =VLOOKUP($A13,datos!$A$4:$AD$52,29) -> 4320 | E13: =D13/24 -> 180 | F13: =G12 -> 18410
A14: j22 | B14: =VLOOKUP($A14,datos!$A$4:$AD$52,2) -> THIAGO FELICETTI | C14: =VLOOKUP($A14,datos!$A$4:$AD$52,3) -> Brasil | D14: =VLOOKUP($A14,datos!$A$4:$AD$52,29) -> 4471 | E14: =D14/24 -> 186.2916667 | F14: =G12 -> 18410
A15: j23 | B15: =VLOOKUP($A15,datos!$A$4:$AD$52,2) -> JOAO I. FERREIRA N. | C15: =VLOOKUP($A15,datos!$A$4:$AD$52,3) -> Brasil | D15: =VLOOKUP($A15,datos!$A$4:$AD$52,29) -> 4471 | E15: =D15/24 -> 186.2916667 | F15: =G12 -> 18410
F16: =G12 -> 18410
A17: Cod | B17: Nombre del Jugador | C17: FEDERACION | D17: TOTAL PALOS | E17: PROM IND | F17: =G18 -> 17887 | G17: TOTAL EQ | H17: PROM EQ
A18: j16 | B18: =VLOOKUP($A18,datos!$A$4:$AD$52,2) -> BRIAN HELMEYER | C18: =VLOOKUP($A18,datos!$A$4:$AD$52,3) -> Aruba | D18: =VLOOKUP($A18,datos!$A$4:$AD$52,29) -> 4729 | E18: =D18/24 -> 197.0416667 | F18: =G18 -> 17887 | G18: =SUM(D18:D21) -> 17887 | H18: =SUM(E18:E21)/4 -> 186.3229167
A19: j17 | B19: =VLOOKUP($A19,datos!$A$4:$AD$52,2) -> YANNICK ROOS | C19: =VLOOKUP($A19,datos!$A$4:$AD$52,3) -> Aruba | D19: =VLOOKUP($A19,datos!$A$4:$AD$52,29) -> 4429 | E19: =D19/24 -> 184.5416667 | F19: =G18 -> 17887
A20: j18 | B20: =VLOOKUP($A20,datos!$A$4:$AD$52,2) -> OSMAR BISLIP | C20: =VLOOKUP($A20,datos!$A$4:$AD$52,3) -> Aruba | D20: =VLOOKUP($A20,datos!$A$4:$AD$52,29) -> 4332 | E20: =D20/24 -> 180.5 | F20: =G18 -> 17887
A21: j19 | B21: =VLOOKUP($A21,datos!$A$4:$AD$52,2) -> ELIAS HALABI | C21: =VLOOKUP($A21,datos!$A$4:$AD$52,3) -> Aruba | D21: =VLOOKUP($A21,datos!$A$4:$AD$52,29) -> 4397 | E21: =D21/24 -> 183.2083333 | F21: =G18 -> 17887
F22: =G18 -> 17887
A23: Cod | B23: Nombre del Jugador | C23: FEDERACION | D23: TOT IND | E23: PROM IND | F23: =G24 -> 17654 | G23: TOTAL EQ | H23: PROM EQ
A24: j12 | B24: =VLOOKUP($A24,datos!$A$4:$AD$52,2) -> AGUSTIN LEANDRO A. | C24: =VLOOKUP($A24,datos!$A$4:$AD$52,3) -> Argentina | D24: =VLOOKUP($A24,datos!$A$4:$AD$52,29) -> 4411 | E24: =D24/24 -> 183.7916667 | F24: =G24 -> 17654 | G24: =SUM(D24:D27) -> 17654 | H24: =SUM(E24:E27)/4 -> 183.8958333
A25: j13 | B25: =VLOOKUP($A25,datos!$A$4:$AD$52,2) -> FRANCO R. GUALINI | C25: =VLOOKUP($A25,datos!$A$4:$AD$52,3) -> Argentina | D25: =VLOOKUP($A25,datos!$A$4:$AD$52,29) -> 4564 | E25: =D25/24 -> 190.1666667 | F25: =G24 -> 17654
A26: j14 | B26: =VLOOKUP($A26,datos!$A$4:$AD$52,2) -> FABRICIO E. SANDUAY | C26: =VLOOKUP($A26,datos!$A$4:$AD$52,3) -> Argentina | D26: =VLOOKUP($A26,datos!$A$4:$AD$52,29) -> 4186 | E26: =D26/24 -> 174.4166667 | F26: =G24 -> 17654
A27: j15 | B27: =VLOOKUP($A27,datos!$A$4:$AD$52,2) -> FERNANDO TAPIA M. | C27: =VLOOKUP($A27,datos!$A$4:$AD$52,3) -> Argentina | D27: =VLOOKUP($A27,datos!$A$4:$AD$52,29) -> 4493 | E27: =D27/24 -> 187.2083333 | F27: =G24 -> 17654
F28: =G24 -> 17654
A29: Cod | B29: Nombre del Jugador | C29: FEDERACION | D29: TOTAL PALOS | E29: PROM IND | F29: =G30 -> 17411 | G29: TOTAL EQ | H29: PROM EQ
A30: j32 | B30: =VLOOKUP($A30,datos!$A$4:$AD$52,2) -> ADRIAN GUIBU K. | C30: =VLOOKUP($A30,datos!$A$4:$AD$52,3) -> Perú | D30: =VLOOKUP($A30,datos!$A$4:$AD$52,29) -> 4271 | E30: =D30/24 -> 177.9583333 | F30: =G30 -> 17411 | G30: =SUM(D30:D33) -> 17411 | H30: =SUM(E30:E33)/4 -> 181.3645833
A31: j33 | B31: =VLOOKUP($A31,datos!$A$4:$AD$52,2) -> JUAN ANDRES YUZURIHA | C31: =VLOOKUP($A31,datos!$A$4:$AD$52,3) -> Perú | D31: =VLOOKUP($A31,datos!$A$4:$AD$52,29) -> 4599 | E31: =D31/24 -> 191.625 | F31: =G30 -> 17411
A32: j34 | B32: =VLOOKUP($A32,datos!$A$4:$AD$52,2) -> KEIJI M. CAJACHACAHUA M. | C32: =VLOOKUP($A32,datos!$A$4:$AD$52,3) -> Perú | D32: =VLOOKUP($A32,datos!$A$4:$AD$52,29) -> 4081 | E32: =D32/24 -> 170.0416667 | F32: =G30 -> 17411
A33: j35 | B33: =VLOOKUP($A33,datos!$A$4:$AD$52,2) -> RENZO GUIBU K. | C33: =VLOOKUP($A33,datos!$A$4:$AD$52,3) -> Perú | D33: =VLOOKUP($A33,datos!$A$4:$AD$52,29) -> 4460 | E33: =D33/24 -> 185.8333333 | F33: =G30 -> 17411
F34: =G30 -> 17411
A35: Cod | B35: Nombre del Jugador | C35: FEDERACION | D35: TOTAL PALOS | E35: PROM IND | F35: =G36 -> 15000 | G35: TOTAL EQ | H35: PROM EQ
A36: j28 | B36: =VLOOKUP($A36,datos!$A$4:$AD$52,2) -> BASTIAN MALDONADO R. | C36: =VLOOKUP($A36,datos!$A$4:$AD$52,3) -> Chile | D36: =VLOOKUP($A36,datos!$A$4:$AD$52,29) -> 4336 | E36: =D36/24 -> 180.6666667 | F36: =G36 -> 15000 | G36: =SUM(D36:D39) -> 15000 | H36: =SUM(E36:E39)/4 -> 156.25
A37: j29 | B37: =VLOOKUP($A37,datos!$A$4:$AD$52,2) -> MATIAS NAZAR G. | C37: =VLOOKUP($A37,datos!$A$4:$AD$52,3) -> Chile | D37: =VLOOKUP($A37,datos!$A$4:$AD$52,29) -> 4079 | E37: =D37/24 -> 169.9583333 | F37: =G36 -> 15000
A38: j30 | B38: =VLOOKUP($A38,datos!$A$4:$AD$52,2) -> IVAN VELIZ H. | C38: =VLOOKUP($A38,datos!$A$4:$AD$52,3) -> Chile | D38: =VLOOKUP($A38,datos!$A$4:$AD$52,29) -> 3461 | E38: =D38/24 -> 144.2083333 | F38: =G36 -> 15000
A39: j31 | B39: =VLOOKUP($A39,datos!$A$4:$AD$52,2) -> LUIS JEREZ G. | C39: =VLOOKUP($A39,datos!$A$4:$AD$52,3) -> Chile | D39: =VLOOKUP($A39,datos!$A$4:$AD$52,29) -> 3124 | E39: =D39/24 -> 130.1666667 | F39: =G36 -> 15000
F40: =G36 -> 15000
A41: Cod | B41: Nombre del Jugador | C41: FEDERACION | D41: TOTAL PALOS | E41: PROM IND | F41: =G42 -> 10753 | G41: TOTAL EQ | H41: PROM EQ
A42: j36 | B42: =VLOOKUP($A42,datos!$A$4:$AD$52,2) -> MATIAS DA MOTTA L. | C42: =VLOOKUP($A42,datos!$A$4:$AD$52,3) -> Uruguay | D42: =VLOOKUP($A42,datos!$A$4:$AD$52,29) -> 3656 | E42: =D42/24 -> 152.3333333 | F42: =G42 -> 10753 | G42: =SUM(D42:D45) -> 10753 | H42: =SUM(E42:E45)/3 -> 149.3472222
A43: j37 | B43: =VLOOKUP($A43,datos!$A$4:$AD$52,2) -> ALFONSO RODRIGUEZ L. | C43: =VLOOKUP($A43,datos!$A$4:$AD$52,3) -> Uruguay | D43: =VLOOKUP($A43,datos!$A$4:$AD$52,29) -> 3463 | E43: 144.2916667 | F43: =G42 -> 10753
A44: j38 | B44: =VLOOKUP($A44,datos!$A$4:$AD$52,2) -> FELIPE FUENTES F. | C44: =VLOOKUP($A44,datos!$A$4:$AD$52,3) -> Uruguay | D44: =VLOOKUP($A44,datos!$A$4:$AD$52,29) -> 3634 | E44: 151.4166667 | F44: =G42 -> 10753
F45: =G42 -> 10753

Sheet ROUND ROBIN
B1: CAMPEONATO SUDAMERICANO JUVENIL 2014
B2: SANTIAGO DE CHILE DEL 12 AL 18 DE ABRIL D 2014
B3: FINAL MASTER SUB 20
A4: DEPORTISTA | B4: PAÍS | C4: TODO EVENTO | D4: LÍNEA 1 | E4: BONIF | F4: LÍNEA 2 | G4: BONIF | H4: LÍNEA 3 | I4: BONIF | J4: LÍNEA 4 | K4: BONIF | L4: LÍNEA 5 | M4: BONIF | N4: LÍNEA 6 | O4: BONIF | P4: LÍNEA 7 | Q4: BONIF | R4: TOTAL | S4: Prom s/bonif | T4: DIF. | U4: POSICIÓN
A5: BRUNO SOARES COSTA | B5: Brasil | C5: 5148 | D5: 152 | E5: 0 | F5: 230 | G5: 20 | H5: 179 | I5: 0 | J5: 227 | K5: 20 | L5: 224 | M5: 20 | N5: 204 | O5: 20 | P5: 226 | Q5: 20 | R5: =D5+E5+F5+G5+H5+I5+J5+K5+L5+M5+N5+O5+P5+Q5+C5 -> 6690 | T5: =R5-R5 -> 0 | U5: 1°
A6: JORGE FIGUEROA | B6: Colombia | C6: 4921 | D6: 224 | E6: 20 | F6: 226 | G6: 20 | H6: 225 | I6: 20 | J6: 215 | K6: 0 | L6: 195 | M6: 0 | N6: 194 | O6: 0 | P6: 277 | Q6: 20 | R6: 6557 | T6: =R5-R6 -> 133 | U6: 2°
A7: SEBASTIAN CHARRY | B7: Colombia | C7: 4898 | D7: 212 | E7: 20 | F7: 219 | G7: 0 | H7: 212 | I7: 0 | J7: 228 | K7: 20 | L7: 194 | M7: 0 | N7: 224 | O7: 20 | P7: 224 | Q7: 20 | R7: 6491 | T7: =R5-R7 -> 199 | U7: 3°
A8: CARLOS F. SAAVEDRA | B8: Colombia | C8: 4636 | D8: 220 | E8: 20 | F8: 182 | G8: 10 | H8: 216 | I8: 20 | J8: 244 | K8: 20 | L8: 254 | M8: 20 | N8: 183 | O8: 20 | P8: 191 | Q8: 20 | R8: 6256 | T8: =R5-R8 -> 434 | U8: 4°
A9: SEBASTIAN DONADO | B9: Colombia | C9: 4606 | D9: 184 | E9: 0 | F9: 247 | G9: 20 | H9: 186 | I9: 20 | J9: 215 | K9: 20 | L9: 199 | M9: 20 | N9: 157 | O9: 0 | P9: 215 | Q9: 20 | R9: 6109 | T9: =R5-R9 -> 581 | U9: 5°
A10: FRANCO R. GUALINI | B10: Argentina | C10: 4564 | D10: 165 | E10: 20 | F10: 222 | G10: 0 | H10: 223 | I10: 0 | J10: 190 | K10: 20 | L10: 248 | M10: 20 | N10: 174 | O10: 20 | P10: 214 | Q10: 20 | R10: 6100 | T10: =R5-R10 -> 590 | U10: 6°
A11: BRIAN HELMEYER | B11: Aruba | C11: 4729 | D11: 143 | E11: 0 | F11: 185 | G11: 0 | H11: 183 | I11: 0 | J11: 192 | K11: 20 | L11: 182 | M11: 20 | N11: 170 | O11: 0 | P11: 195 | Q11: 20 | R11: 6039 | T11: =R5-R11 -> 651 | U11: 7°
A12: JUAN ANDRES YUZURIHA | B12: Perú | C12: 4599 | D12: 188 | E12: 0 | F12: 182 | G12: 10 | H12: 221 | I12: 20 | J12: 145 | K12: 0 | L12: 183 | M12: 0 | N12: 179 | O12: 0 | P12: 206 | Q12: 20 | R12: 5953 | T12: =R5-R12 -> 737 | U12: 8°
A13: THIAGO FELICETTI | B13: Brasil | C13: 4471 | D13: 175 | E13: 0 | F13: 182 | G13: 20 | H13: 212 | I13: 20 | J13: 265 | K13: 20 | L13: 184 | M13: 0 | N13: 183 | O13: 20 | P13: 180 | Q13: 0 | R13: 5932 | T13: =R5-R13 -> 758 | U13: 9°
A14: FERNANDO M. TAPIA | B14: Argentina | C14: 4493 | D14: 168 | E14: 0 | F14: 203 | G14: 20 | H14: 199 | I14: 20 | J14: 198 | K14: 0 | L14: 211 | M14: 20 | N14: 159 | O14: 0 | P14: 179 | Q14: 0 | R14: 5870 | T14: =R5-R14 -> 820 | U14: 10°
A15: JOAO I. FERREIRA N. | B15: Brasil | C15: 4471 | D15: 193 | E15: 0 | F15: 173 | G15: 0 | H15: 192 | I15: 0 | J15: 215 | K15: 20 | L15: 219 | M15: 20 | N15: 144 | O15: 0 | P15: 148 | Q15: 0 | R15: 5795 | T15: =R5-R15 -> 895 | U15: 11°
A16: ELIAS HALABI | B16: Aruba | C16: 4397 | D16: 233 | E16: 20 | F16: 185 | G16: 0 | H16: 192 | I16: 0 | J16: 163 | K16: 0 | L16: 192 | M16: 0 | N16: 201 | O16: 20 | P16: 179 | Q16: 0 | R16: 5782 | T16: =R5-R16 -> 908 | U16: 12°
A17: YANNICK ROOS | B17: Aruba | C17: 4429 | D17: 196 | E17: 20 | F17: 201 | G17: 20 | H17: 211 | I17: 20 | J17: 165 | K17: 0 | L17: 157 | M17: 0 | N17: 149 | O17: 0 | P17: 200 | Q17: 0 | R17: 5768 | T17: =R5-R17 -> 922 | U17: 13°
A18: AGUSTIN L. ARANGUREN | B18: Argentina | C18: 4411 | D18: 183 | E18: 20 | F18: 158 | G18: 0 | H18: 211 | I18: 20 | J18: 158 | K18: 0 | L18: 156 | M18: 0 | N18: 199 | O18: 20 | P18: 183 | Q18: 0 | R18: 5719 | T18: =R5-R18 -> 971 | U18: 14°
A19: RENZO GUIBU K. | B19: Perú | C19: 4460 | D19: 182 | E19: 0 | F19: 141 | G19: 0 | H19: 191 | I19: 0 | J19: 165 | K19: 0 | L19: 153 | M19: 0 | N19: 180 | O19: 20 | P19: 221 | Q19: 0 | R19: 5713 | T19: =R5-R19 -> 977 | U19: 15°
A20: BASTIAN MALDONADO R. | B20: Chile | C20: 4336 | D20: 225 | E20: 20 | F20: 162 | G20: 20 | H20: 211 | I20: 0 | J20: 172 | K20: 0 | L20: 215 | M20: 20 | N20: 162 | O20: 0 | P20: 149 | Q20: 0 | R20: 5692 | T20: =R5-R20 -> 998 | U20: 16°
A24: BRUNO COSTA | B24: 223
A25: 1° VS 4° | D25: BRUNO COSTA | G25: G1 | J25: 201 | L25: CAMPEÓN | P25: JORGE FIGUEROA
A26: CARLOS SAAVEDRA | B26: 205 | H26: G1 VS G2
A28: SEBASTIÁN CHARRY | B28: 208
A29: 2° VS 3° | D29: JORGE FIGUEROA | G29: G2 | I29: 222 | L29: SUBCAMPEÓN | P29: BRUNO COSTA
A30: JORGE FIGUEROA | B30: 216
A31: TERCERO | C31: BRONCE | F31: SEBASTIÁN CHARRY
A33: TERCERO | C33: BRONCE | F33: CARLOS SAAVEDRA
